Workbook

Sheet Orçamento
O3: UNIDADE ESCOLAR | X3: CÓDIGO INEP
M4: =IF($M$7="MANUAL","DESPROTEJA A PLANILHA PARA FORMATAR","") ->  | O4: COORDENAÇÃO REGIONAL DE EDUCAÇÃO DE TRINDADE
A6: Nmax | O6: OBRA | S6: DATA | X6: CIDADE
A7: =MAX($C$18:$C$530) -> 4 | O7: REFORMA E AMPLIAÇÃO | S7: 2020-09-02 | X7: TRINDADE
O9: CRE | R9: ENDEREÇO | S9: REFERÊNCIA AGETOP | X9: REFERÊNCIA SINAPI
O10: CRE-TRINDADE | R10: AVENIDA MANOEL MONTEIRO, 163 - BAIRRO SANTUÁRIO | S10: ABR/19 | T10: ONERADA | X10: ABR/20 | Y10: ONERADA
O12: ÁREA EXISTENTE (M²) | R12: ÁREA A CONSTRUIR (M²) | S12: ÁREA A DEMOLIR (M²) | X12: ÁREA TOTAL CONSTRUÍDA (M²)
O13: 503.98 | R13: 281.89 | S13: 16.7 | X13: 769.17
L15: FILTRO | O15: PLANILHA ORÇAMENTÁRIA
A16: Nível E | B16: Save Nivel | C16: Nível C | D16: Altura | E16: n1 | F16: n2 | G16: n3 | H16: n4 | I16: n5 | J16: Czero | K16: Cnível | L16: ↓ | M16: Nível | N16: Nível Corrigido | O16: ITEM | P16: TABELA | Q16: CODIGO | R16: DESCRIÇÃO DOS SERVIÇOS | S16: UNID | T16: QUANT | U16: REPET | V16: QUANT TOTAL | W16: MAT | X16: MO | Y16: T.SERVIÇO UNIT | Z16: VALOR TOTAL | AA16: OBSERVAÇÕES¹
A17: =CHOOSE(1+LOG(1+2*(ORÇAMENTO.Nivel="Nível 1")+4*(ORÇAMENTO.Nivel="Nível 2")+8*(ORÇAMENTO.Nivel="Nível 3")+16*(ORÇAMENTO.Nivel="Nível 4")+32*(ORÇAMENTO.Nivel="Serviço"),2),0,1,2,3,4,"S") -> S | B17: =IF(OR(C17="s",C17=0),OFFSET(B17,-1,0),C17) -> Save Nivel | C17: =IF(OFFSET(C17,-1,0)="L",1,IF(OFFSET(C17,-1,0)=1,2,IF(OR(A17="s",A17=0),"S",IF(AND(OFFSET(C17,-1,0)=2,A17=4),3,IF(AND(OR(OFFSET(C17,-1,0)="s",OFFSET(C17,-1,0)=0),A17<>"s",A17>OFFSET(B17,-1,0)),OFFSET(B17,-1,0),A17))))) -> S | D17: =IF(OR(C17="S",C17=0),0,IF(ISERROR(K17),J17,SMALL(J17:K17,1))) -> 0 | E17: =IF($C17=1,OFFSET(E17,-1,0)+1,OFFSET(E17,-1,0)) -> n1 | F17: =IF($C17=1,0,IF($C17=2,OFFSET(F17,-1,0)+1,OFFSET(F17,-1,0))) -> n2 | G17: =IF(AND($C17<=2,$C17<>0),0,IF($C17=3,OFFSET(G17,-1,0)+1,OFFSET(G17,-1,0))) -> n3 | H17: =IF(AND($C17<=3,$C17<>0),0,IF($C17=4,OFFSET(H17,-1,0)+1,OFFSET(H17,-1,0))) -> n4 | I17: =IF(AND($C17<=4,$C17<>0),0,IF(AND($C17="S",$Y17>0),OFFSET(I17,-1,0)+1,OFFSET(I17,-1,0))) -> n5 | J17: =IF(OR($C17="S",$C17=0),0,MATCH(0,OFFSET($D17,1,$C17,ROW($C$530)-ROW($C17)),0)) -> 0 | K17: =IF(OR($C17="S",$C17=0),0,MATCH(OFFSET($D17,0,$C17)+1,OFFSET($D17,1,$C17,ROW($C$530)-ROW($C17)),0)) -> 0 | L17: =IF(OR(Y17>0,$C17=1),"F","") ->  | M17: Serviço | N17: =CHOOSE(1+LOG(1+2*(C17=1)+4*(C17=2)+8*(C17=3)+16*(C17=4)+32*(C17="S"),2),"","Nível 1","Nível 2","Nível 3","Nível 4","Serviço") -> Serviço | O17: - | P17: SINAPI | R17: (sem código) | S17: - | U17: REPET | V17: - | W17: 0 | X17: 0 | Y17: 0 | Z17: -
A18: 0 | C18: L | D18: =COUNTA(OFFSET(D18,1,0):D$530) -> 511 | E18: =LEFT(O19,1)-1 -> 0 | L18: F | M18: LOTE | N18: LOTE | O18: REFORMA E AMPLIAÇÃO - COORDENAÇÃO REGIONAL DE EDUCAÇÃO DE TRINDADE | Z18: 0
A19: =CHOOSE(1+LOG(1+2*(ORÇAMENTO.Nivel="Nível 1")+4*(ORÇAMENTO.Nivel="Nível 2")+8*(ORÇAMENTO.Nivel="Nível 3")+16*(ORÇAMENTO.Nivel="Nível 4")+32*(ORÇAMENTO.Nivel="Serviço"),2),0,1,2,3,4,"S") -> 1 | B19: =IF(OR(C19="s",C19=0),OFFSET(B19,-1,0),C19) -> 1 | C19: =IF(OFFSET(C19,-1,0)="L",1,IF(OFFSET(C19,-1,0)=1,2,IF(OR(A19="s",A19=0),"S",IF(AND(OFFSET(C19,-1,0)=2,A19=4),3,IF(AND(OR(OFFSET(C19,-1,0)="s",OFFSET(C19,-1,0)=0),A19<>"s",A19>OFFSET(B19,-1,0)),OFFSET(B19,-1,0),A19))))) -> 1 | D19: =IF(OR(C19="S",C19=0),0,IF(ISERROR(K19),J19,SMALL(J19:K19,1))) -> 27 | E19: =IF($C19=1,OFFSET(E19,-1,0)+1,OFFSET(E19,-1,0)) -> 1 | F19: =IF($C19=1,0,IF($C19=2,OFFSET(F19,-1,0)+1,OFFSET(F19,-1,0))) -> 0 | G19: =IF(AND($C19<=2,$C19<>0),0,IF($C19=3,OFFSET(G19,-1,0)+1,OFFSET(G19,-1,0))) -> 0 | H19: =IF(AND($C19<=3,$C19<>0),0,IF($C19=4,OFFSET(H19,-1,0)+1,OFFSET(H19,-1,0))) -> 0 | I19: =IF(AND($C19<=4,$C19<>0),0,IF(AND($C19="S",$Y19>0),OFFSET(I19,-1,0)+1,OFFSET(I19,-1,0))) -> 0 | J19: =IF(OR($C19="S",$C19=0),0,MATCH(0,OFFSET($D19,1,$C19,ROW($C$530)-ROW($C19)),0)) -> 511 | K19: =IF(OR($C19="S",$C19=0),0,MATCH(OFFSET($D19,0,$C19)+1,OFFSET($D19,1,$C19,ROW($C$530)-ROW($C19)),0)) -> 27 | L19: =IF(OR(Y19>0,$C19=1),"F","") -> F | M19: Nível 1 | N19: =CHOOSE(1+LOG(1+2*(C19=1)+4*(C19=2)+8*(C19=3)+16*(C19=4)+32*(C19="S"),2),"","Nível 1","Nível 2","Nível 3","Nível 4","Serviço") -> Nível 1 | O19: 1. | P19: AGETOP | R19: 1. ADEQUAÇÕES EXTERNAS ACESSIBILIDADE | S19: UN | T19: 1 | U19: 1 | V19: 1 | Y19: 0 | Z19: 0
A20: 2 | B20: 2 | C20: 2 | D20: 4 | E20: 1 | F20: 1 | G20: 0 | H20: 0 | I20: 0 | J20: 26 | K20: 4 | M20: Nível 2 | N20: Nível 2 | O20: - | P20: SINAPI | R20: SERVIÇOS PRELIMINARES | S20: - | U20: 1 | V20: - | W20: 0 | X20: 0 | Y20: 0 | Z20: 0
A21: S | B21: 2 | C21: S | D21: 0 | E21: 1 | F21: 1 | G21: 0 | H21: 0 | I21: 0 | J21: 0 | K21: 0 | M21: Serviço | N21: Serviço | O21: - | P21: AGETOP | Q21: 20121 | R21: DEM. MANUAL EM CONCR.SIMPLES C/TR.ATE CB.E CARGA (O.C.) | S21: m3 | T21: 1.87 | U21: 1 | V21: 1.87 | Y21: 0 | Z21: 0
A22: S | B22: 2 | C22: S | D22: 0 | E22: 1 | F22: 1 | G22: 0 | H22: 0 | I22: 0 | J22: 0 | K22: 0 | M22: Serviço | N22: Serviço | O22: - | P22: COMPOSIÇÃO | Q22: COMP 010_SEE | R22: DEMOLIÇÃO DE GRADE/GRELHA/CORRIMÃO/GUARDA CORPO - METÁLICO | S22: M2 | T22: 14.3 | U22: 1 | V22: 14.3 | Y22: 0 | Z22: 0
A23: S | B23: 2 | C23: S | D23: 0 | E23: 1 | F23: 1 | G23: 0 | H23: 0 | I23: 0 | J23: 0 | K23: 0 | M23: Serviço | N23: Serviço | O23: - | P23: SINAPI | Q23: 97624 | R23: DEMOLIÇÃO DE ALVENARIA DE TIJOLO MACIÇO, DE FORMA MANUAL, SEM REAPROVEITAMENTO. AF_12/2017 | S23: M3 | T23: 0.18 | U23: 1 | V23: 0.18 | Y23: 0 | Z23: 0
A24: 2 | B24: 2 | C24: 2 | D24: 3 | E24: 1 | F24: 2 | G24: 0 | H24: 0 | I24: 0 | J24: 22 | K24: 3 | M24: Nível 2 | N24: Nível 2 | O24: - | P24: AGETOP | R24: TRANSPORTES | S24: - | U24: 1 | V24: - | Y24: 0 | Z24: 0
A25: S | B25: 2 | C25: S | D25: 0 | E25: 1 | F25: 2 | G25: 0 | H25: 0 | I25: 0 | J25: 0 | K25: 0 | M25: Serviço | N25: Serviço | O25: - | P25: SINAPI | Q25: 72900 | R25: TRANSPORTE DE ENTULHO COM CAMINHAO BASCULANTE 6 M3, RODOVIA PAVIMENTADA, DMT 0,5 A 1,0 KM | S25: M3 | T25: 2.76 | U25: 1 | V25: 2.76 | Y25: 0 | Z25: 0
A26: S | B26: 2 | C26: S | D26: 0 | E26: 1 | F26: 2 | G26: 0 | H26: 0 | I26: 0 | J26: 0 | K26: 0 | M26: Serviço | N26: Serviço | O26: - | P26: SINAPI | Q26: 72897 | R26: CARGA MANUAL DE ENTULHO EM CAMINHAO BASCULANTE 6 M3 | S26: M3 | T26: 2.76 | U26: 1 | V26: 2.76 | Y26: 0 | Z26: 0
A27: 2 | B27: 2 | C27: 2 | D27: 5 | E27: 1 | F27: 3 | G27: 0 | H27: 0 | I27: 0 | J27: 19 | K27: 5 | M27: Nível 2 | N27: Nível 2 | O27: - | P27: SINAPI | R27: REVESTIMENTO DE PISO | S27: - | U27: 1 | V27: - | Y27: 0 | Z27: 0
A28: 3 | B28: 3 | C28: 3 | D28: 2 | E28: 1 | F28: 3 | G28: 1 | H28: 0 | I28: 0 | J28: 4 | K28: 2 | M28: Nível 3 | N28: Nível 3 | O28: - | P28: SINAPI | R28: CONCRETO | S28: - | U28: 1 | V28: - | Y28: 0 | Z28: 0
A29: S | B29: 3 | C29: S | D29: 0 | E29: 1 | F29: 3 | G29: 1 | H29: 0 | I29: 0 | J29: 0 | K29: 0 | M29: Serviço | N29: Serviço | O29: - | P29: AGETOP | Q29: 220104 | R29: PISO EM CONCRETO DESEMPENADO ESPESSURA = 7 CM 1:2,5:3,5 | S29: m2 | T29: 23.6 | U29: 1 | V29: 23.6 | Y29: 0 | Z29: 0
A30: 3 | B30: 3 | C30: 3 | D30: 2 | E30: 1 | F30: 3 | G30: 2 | H30: 0 | I30: 0 | J30: 2 | K30: 81 | M30: Nível 3 | N30: Nível 3 | O30: - | R30: PODOTÁTIL | S30: - | U30: 1 | V30: - | Y30: 0 | Z30: 0
A31: S | B31: 3 | C31: S | D31: 0 | E31: 1 | F31: 3 | G31: 2 | H31: 0 | I31: 0 | J31: 0 | K31: 0 | M31: Serviço | N31: Serviço | O31: - | P31: AGETOP | Q31: 221126 | R31: PISO DE LADRILHO HIDRÁULICO COLORIDO MODELO TÁTIL ( ALERTA OU DIRECIONAL) SEM LASTRO | S31: m2 | T31: 13.81 | U31: 1 | V31: 13.81 | Y31: 0 | Z31: 0
A32: 2 | B32: 2 | C32: 2 | D32: 2 | E32: 1 | F32: 4 | G32: 0 | H32: 0 | I32: 0 | J32: 14 | K32: 2 | M32: Nível 2 | N32: Nível 2 | O32: - | P32: SINAPI | R32: ALVENARIAS E DIVISÓRIAS | S32: - | U32: 1 | V32: - | Y32: 0 | Z32: 0
A33: S | B33: 2 | C33: S | D33: 0 | E33: 1 | F33: 4 | G33: 0 | H33: 0 | I33: 0 | J33: 0 | K33: 0 | M33: Serviço | N33: Serviço | O33: - | P33: AGETOP | Q33: 100203 | R33: ALVENARIA DE TIJOLO COMUM 1 VEZ - ARG. (1CI : 2CH : 8ARML) | S33: m2 | T33: 2.38 | U33: 1 | V33: 2.38 | Y33: 0 | Z33: 0
A34: 2 | B34: 2 | C34: 2 | D34: 3 | E34: 1 | F34: 5 | G34: 0 | H34: 0 | I34: 0 | J34: 12 | K34: 3 | M34: Nível 2 | N34: Nível 2 | O34: - | P34: SINAPI | R34: REVESTIMENTO DE PAREDE | S34: - | U34: 1 | V34: - | Y34: 0 | Z34: 0
A35: S | B35: 2 | C35: S | D35: 0 | E35: 1 | F35: 5 | G35: 0 | H35: 0 | I35: 0 | J35: 0 | K35: 0 | M35: Serviço | N35: Serviço | O35: - | P35: AGETOP | Q35: 200101 | R35: CHAPISCO COMUM | S35: m2 | T35: 4.76 | U35: 1 | V35: 4.76 | Y35: 0 | Z35: 0
A36: S | B36: 2 | C36: S | D36: 0 | E36: 1 | F36: 5 | G36: 0 | H36: 0 | I36: 0 | J36: 0 | K36: 0 | M36: Serviço | N36: Serviço | O36: - | P36: AGETOP | Q36: 200499 | R36: REBOCO PAULISTA A-14 (1CALH:4ARMLC+100kgCI/M3) | S36: m2 | T36: 2.38 | U36: 1 | V36: 2.38 | Y36: 0 | Z36: 0
A37: 2 | B37: 2 | C37: 2 | D37: 2 | E37: 1 | F37: 6 | G37: 0 | H37: 0 | I37: 0 | J37: 9 | K37: 2 | M37: Nível 2 | N37: Nível 2 | O37: - | P37: SINAPI | R37: ESQUADRIAS METÁLICAS | S37: - | U37: 1 | V37: - | Y37: 0 | Z37: 0
A38: S | B38: 2 | C38: S | D38: 0 | E38: 1 | F38: 6 | G38: 0 | H38: 0 | I38: 0 | J38: 0 | K38: 0 | M38: Serviço | N38: Serviço | O38: - | P38: COMPOSIÇÃO | Q38: COMP 084_SEE | R38: GUARDA-CORPO COM CORRIMÃO - SEDUC | S38: M | T38: 25.5 | U38: 1 | V38: 25.5 | Y38: 0 | Z38: 0
A39: 2 | B39: 2 | C39: 2 | D39: 7 | E39: 1 | F39: 7 | G39: 0 | H39: 0 | I39: 0 | J39: 7 | K39: 221 | M39: Nível 2 | N39: Nível 2 | O39: - | P39: AGETOP | R39: SERVIÇO EM TERRA | S39: - | U39: 1 | V39: - | Y39: 0 | Z39: 0
A40: 3 | B40: 3 | C40: 3 | D40: 6 | E40: 1 | F40: 7 | G40: 1 | H40: 0 | I40: 0 | J40: 6 | K40: 13 | M40: Nível 3 | N40: Nível 3 | O40: - | R40: AQUISIÇÃO DE TERRA (SOMENTE ATERRO) | S40: - | U40: 1 | V40: - | Y40: 0 | Z40: 0
A41: S | B41: 3 | C41: S | D41: 0 | E41: 1 | F41: 7 | G41: 1 | H41: 0 | I41: 0 | J41: 0 | K41: 0 | M41: Serviço | N41: Serviço | O41: - | P41: AGETOP | Q41: 41004 | R41: ESCAVACAO MECANICA | S41: m3 | T41: 2.12 | U41: 1 | V41: 2.12 | Y41: 0 | Z41: 0
A42: S | B42: 3 | C42: S | D42: 0 | E42: 1 | F42: 7 | G42: 1 | H42: 0 | I42: 0 | J42: 0 | K42: 0 | M42: Serviço | N42: Serviço | O42: - | P42: AGETOP | Q42: 41005 | R42: CARGA MECANIZADA | S42: m3 | T42: 2.12 | U42: 1 | V42: 2.12 | Y42: 0 | Z42: 0
A43: S | B43: 3 | C43: S | D43: 0 | E43: 1 | F43: 7 | G43: 1 | H43: 0 | I43: 0 | J43: 0 | K43: 0 | M43: Serviço | N43: Serviço | O43: - | P43: AGETOP | Q43: 41012 | R43: INDENIZAÇÃO DE JAZIDA | S43: m3 | T43: 2.12 | U43: 1 | V43: 2.12 | Y43: 0 | Z43: 0
A44: S | B44: 3 | C44: S | D44: 0 | E44: 1 | F44: 7 | G44: 1 | H44: 0 | I44: 0 | J44: 0 | K44: 0 | M44: Serviço | N44: Serviço | O44: - | P44: AGETOP | Q44: 41006 | R44: TRANSPORTE DE MATERIAL ESCAVADO M3.KM | S44: m3km | T44: 21.25 | U44: 1 | V44: 21.25 | Y44: 0 | Z44: 0
A45: S | B45: 3 | C45: S | D45: 0 | E45: 1 | F45: 7 | G45: 1 | H45: 0 | I45: 0 | J45: 0 | K45: 0 | M45: Serviço | N45: Serviço | O45: - | P45: AGETOP | Q45: 41002 | R45: APILOAMENTO | S45: m2 | T45: 3.68 | U45: 1 | V45: 3.68 | Y45: 0 | Z45: 0
A46: 1 | B46: 1 | C46: 1 | D46: 36 | E46: 2 | F46: 0 | G46: 0 | H46: 0 | I46: 0 | J46: 484 | K46: 36 | L46: F | M46: Nível 1 | N46: Nível 1 | O46: 2. | P46: SINAPI | R46: 2. EXECUÇÃO DE NOVA COBERTURA | S46: UN | T46: 1 | U46: 1 | V46: 1 | Y46: 0 | Z46: 0
A47: 2 | B47: 2 | C47: 2 | D47: 9 | E47: 2 | F47: 1 | G47: 0 | H47: 0 | I47: 0 | J47: 35 | K47: 9 | M47: Nível 2 | N47: Nível 2 | O47: - | P47: SINAPI | R47: SERVIÇOS PRELIMINARES | S47: - | U47: 1 | V47: - | Y47: 0 | Z47: 0
A48: =CHOOSE(1+LOG(1+2*(ORÇAMENTO.Nivel="Nível 1")+4*(ORÇAMENTO.Nivel="Nível 2")+8*(ORÇAMENTO.Nivel="Nível 3")+16*(ORÇAMENTO.Nivel="Nível 4")+32*(ORÇAMENTO.Nivel="Serviço"),2),0,1,2,3,4,"S") -> 3 | B48: =IF(OR(C48="s",C48=0),OFFSET(B48,-1,0),C48) -> 3 | C48: =IF(OFFSET(C48,-1,0)="L",1,IF(OFFSET(C48,-1,0)=1,2,IF(OR(A48="s",A48=0),"S",IF(AND(OFFSET(C48,-1,0)=2,A48=4),3,IF(AND(OR(OFFSET(C48,-1,0)="s",OFFSET(C48,-1,0)=0),A48<>"s",A48>OFFSET(B48,-1,0)),OFFSET(B48,-1,0),A48))))) -> 3 | D48: =IF(OR(C48="S",C48=0),0,IF(ISERROR(K48),J48,SMALL(J48:K48,1))) -> 5 | E48: =IF($C48=1,OFFSET(E48,-1,0)+1,OFFSET(E48,-1,0)) -> 2 | F48: =IF($C48=1,0,IF($C48=2,OFFSET(F48,-1,0)+1,OFFSET(F48,-1,0))) -> 1 | G48: =IF(AND($C48<=2,$C48<>0),0,IF($C48=3,OFFSET(G48,-1,0)+1,OFFSET(G48,-1,0))) -> 1 | H48: =IF(AND($C48<=3,$C48<>0),0,IF($C48=4,OFFSET(H48,-1,0)+1,OFFSET(H48,-1,0))) -> 0 | I48: =IF(AND($C48<=4,$C48<>0),0,IF(AND($C48="S",$Y48>0),OFFSET(I48,-1,0)+1,OFFSET(I48,-1,0))) -> 0 | J48: 8 | K48: 5 | L48: =IF(OR(Y48>0,$C48=1),"F","") ->  | M48: Nível 3 | N48: =CHOOSE(1+LOG(1+2*(C48=1)+4*(C48=2)+8*(C48=3)+16*(C48=4)+32*(C48="S"),2),"","Nível 1","Nível 2","Nível 3","Nível 4","Serviço") -> Nível 3 | O48: - | P48: SINAPI | R48: OUTROS | S48: - | U48: 1 | V48: - | Y48: 0 | Z48: 0
A49: S | B49: 3 | C49: S | D49: 0 | E49: 2 | F49: 1 | G49: 1 | H49: 0 | I49: 0 | J49: 0 | K49: 0 | M49: Serviço | N49: Serviço | O49: - | P49: AGETOP | Q49: 20101 | R49: DEMOLICAO COBERTURA TELHA CERAMICA C/ TRANSP. ATÉ CB. E CARGA | S49: m2 | T49: 495.3 | U49: 1 | V49: 495.3 | Y49: 0 | Z49: 0
A50: S | B50: 3 | C50: S | D50: 0 | E50: 2 | F50: 1 | G50: 1 | H50: 0 | I50: 0 | J50: 0 | K50: 0 | M50: Serviço | N50: Serviço | O50: - | P50: AGETOP | Q50: 20103 | R50: DEMOLIÇÃO ESTRUTURA EM MADEIRA TELHADO C/ TRANSP. ATÉ CB. E CARGA | S50: m2 | T50: 495.3 | U50: 1 | V50: 495.3 | Y50: 0 | Z50: 0
A51: S | B51: 3 | C51: S | D51: 0 | E51: 2 | F51: 1 | G51: 1 | H51: 0 | I51: 0 | J51: 0 | K51: 0 | M51: Serviço | N51: Serviço | O51: - | P51: AGETOP | Q51: 20157 | R51: DEMOLIÇÃO CALHAS/ RUFOS EM CHAPA C/TR.AT.C.B.E CARGA | S51: m2 | T51: 5.2 | U51: 1 | V51: 5.2 | Y51: 0 | Z51: 0
A52: =CHOOSE(1+LOG(1+2*(ORÇAMENTO.Nivel="Nível 1")+4*(ORÇAMENTO.Nivel="Nível 2")+8*(ORÇAMENTO.Nivel="Nível 3")+16*(ORÇAMENTO.Nivel="Nível 4")+32*(ORÇAMENTO.Nivel="Serviço"),2),0,1,2,3,4,"S") -> S | B52: =IF(OR(C52="s",C52=0),OFFSET(B52,-1,0),C52) -> 3 | C52: =IF(OFFSET(C52,-1,0)="L",1,IF(OFFSET(C52,-1,0)=1,2,IF(OR(A52="s",A52=0),"S",IF(AND(OFFSET(C52,-1,0)=2,A52=4),3,IF(AND(OR(OFFSET(C52,-1,0)="s",OFFSET(C52,-1,0)=0),A52<>"s",A52>OFFSET(B52,-1,0)),OFFSET(B52,-1,0),A52))))) -> S | D52: =IF(OR(C52="S",C52=0),0,IF(ISERROR(K52),J52,SMALL(J52:K52,1))) -> 0 | E52: =IF($C52=1,OFFSET(E52,-1,0)+1,OFFSET(E52,-1,0)) -> 2 | F52: =IF($C52=1,0,IF($C52=2,OFFSET(F52,-1,0)+1,OFFSET(F52,-1,0))) -> 1 | G52: =IF(AND($C52<=2,$C52<>0),0,IF($C52=3,OFFSET(G52,-1,0)+1,OFFSET(G52,-1,0))) -> 1 | H52: =IF(AND($C52<=3,$C52<>0),0,IF($C52=4,OFFSET(H52,-1,0)+1,OFFSET(H52,-1,0))) -> 0 | I52: =IF(AND($C52<=4,$C52<>0),0,IF(AND($C52="S",$Y52>0),OFFSET(I52,-1,0)+1,OFFSET(I52,-1,0))) -> 0 | J52: 0 | K52: 0 | L52: =IF(OR(Y52>0,$C52=1),"F","") ->  | M52: Serviço | N52: =CHOOSE(1+LOG(1+2*(C52=1)+4*(C52=2)+8*(C52=3)+16*(C52=4)+32*(C52="S"),2),"","Nível 1","Nível 2","Nível 3","Nível 4","Serviço") -> Serviço | O52: - | P52: SINAPI | Q52: 97622 | R52: DEMOLIÇÃO DE ALVENARIA DE BLOCO FURADO, DE FORMA MANUAL, SEM REAPROVEITAMENTO. AF_12/2017 | S52: M3 | T52: 2 | U52: 1 | V52: 2 | Y52: 0 | Z52: 0 | AA52: Referência: AGETOP - 20118
A53: 3 | B53: 3 | C53: 3 | D53: 3 | E53: 2 | F53: 1 | G53: 2 | H53: 0 | I53: 0 | J53: 3 | K53: 58 | M53: Nível 3 | N53: Nível 3 | O53: - | P53: SINAPI | R53: FORRO PVC COM ESTRUTURA | S53: - | U53: 1 | V53: - | Y53: 0 | Z53: 0
A54: S | B54: 3 | C54: S | D54: 0 | E54: 2 | F54: 1 | G54: 2 | H54: 0 | I54: 0 | J54: 0 | K54: 0 | M54: Serviço | N54: Serviço | O54: - | P54: SINAPI | Q54: 97640 | R54: REMOÇÃO DE FORROS DE DRYWALL, PVC E FIBROMINERAL, DE FORMA MANUAL, SEM REAPROVEITAMENTO. AF_12/2017 | S54: M2 | T54: 340.42 | U54: 1 | V54: 340.42 | Y54: 0 | Z54: 0
A55: S | B55: 3 | C55: S | D55: 0 | E55: 2 | F55: 1 | G55: 2 | H55: 0 | I55: 0 | J55: 0 | K55: 0 | M55: Serviço | N55: Serviço | O55: - | P55: SINAPI | Q55: 97642 | R55: REMOÇÃO DE TRAMA METÁLICA OU DE MADEIRA PARA FORRO, DE FORMA MANUAL, SEM REAPROVEITAMENTO. AF_12/2017 | S55: M2 | T55: 340.42 | U55: 1 | V55: 340.42 | Y55: 0 | Z55: 0
A56: 2 | B56: 2 | C56: 2 | D56: 3 | E56: 2 | F56: 2 | G56: 0 | H56: 0 | I56: 0 | J56: 26 | K56: 3 | M56: Nível 2 | N56: Nível 2 | O56: - | P56: AGETOP | R56: TRANSPORTES | S56: - | U56: 1 | V56: - | Y56: 0 | Z56: 0
A57: S | B57: 2 | C57: S | D57: 0 | E57: 2 | F57: 2 | G57: 0 | H57: 0 | I57: 0 | J57: 0 | K57: 0 | M57: Serviço | N57: Serviço | O57: - | P57: SINAPI | Q57: 72900 | R57: TRANSPORTE DE ENTULHO COM CAMINHAO BASCULANTE 6 M3, RODOVIA PAVIMENTADA, DMT 0,5 A 1,0 KM | S57: M3 | T57: 61.06 | U57: 1 | V57: 61.06 | Y57: 0 | Z57: 0
A58: S | B58: 2 | C58: S | D58: 0 | E58: 2 | F58: 2 | G58: 0 | H58: 0 | I58: 0 | J58: 0 | K58: 0 | M58: Serviço | N58: Serviço | O58: - | P58: SINAPI | Q58: 72897 | R58: CARGA MANUAL DE ENTULHO EM CAMINHAO BASCULANTE 6 M3 | S58: M3 | T58: 61.06 | U58: 1 | V58: 61.06 | Y58: 0 | Z58: 0
A59: 2 | B59: 2 | C59: 2 | D59: 4 | E59: 2 | F59: 3 | G59: 0 | H59: 0 | I59: 0 | J59: 23 | K59: 4 | M59: Nível 2 | N59: Nível 2 | O59: - | P59: SINAPI | R59: ALVENARIAS E DIVISÓRIAS | S59: - | U59: 1 | V59: - | Y59: 0 | Z59: 0
A60: S | B60: 2 | C60: S | D60: 0 | E60: 2 | F60: 3 | G60: 0 | H60: 0 | I60: 0 | J60: 0 | K60: 0 | M60: Serviço | N60: Serviço | O60: - | P60: AGETOP | Q60: 100201 | R60: ALVENARIA DE TIJOLO FURADO 1/2 VEZ - 9 x 19 x 19 - ARG. (1CALH:4ARML+100KG DE CI/M3) | S60: m2 | T60: 140 | U60: 1 | V60: 140 | Y60: 0 | Z60: 0
A61: S | B61: 2 | C61: S | D61: 0 | E61: 2 | F61: 3 | G61: 0 | H61: 0 | I61: 0 | J61: 0 | K61: 0 | M61: Serviço | N61: Serviço | O61: - | P61: AGETOP | Q61: 200101 | R61: CHAPISCO COMUM | S61: m2 | T61: 280 | U61: 1 | V61: 280 | Y61: 0 | Z61: 0
A62: S | B62: 2 | C62: S | D62: 0 | E62: 2 | F62: 3 | G62: 0 | H62: 0 | I62: 0 | J62: 0 | K62: 0 | M62: Serviço | N62: Serviço | O62: - | P62: AGETOP | Q62: 200499 | R62: REBOCO PAULISTA A-14 (1CALH:4ARMLC+100kgCI/M3) | S62: m2 | T62: 280 | U62: 1 | V62: 280 | Y62: 0 | Z62: 0
A63: 2 | B63: 2 | C63: 2 | D63: 3 | E63: 2 | F63: 4 | G63: 0 | H63: 0 | I63: 0 | J63: 19 | K63: 3 | M63: Nível 2 | N63: Nível 2 | O63: - | P63: SINAPI | R63: PINTURA | S63: - | U63: 1 | V63: - | Y63: 0 | Z63: 0
A64: =CHOOSE(1+LOG(1+2*(ORÇAMENTO.Nivel="Nível 1")+4*(ORÇAMENTO.Nivel="Nível 2")+8*(ORÇAMENTO.Nivel="Nível 3")+16*(ORÇAMENTO.Nivel="Nível 4")+32*(ORÇAMENTO.Nivel="Serviço"),2),0,1,2,3,4,"S") -> 3 | B64: =IF(OR(C64="s",C64=0),OFFSET(B64,-1,0),C64) -> 3 | C64: =IF(OFFSET(C64,-1,0)="L",1,IF(OFFSET(C64,-1,0)=1,2,IF(OR(A64="s",A64=0),"S",IF(AND(OFFSET(C64,-1,0)=2,A64=4),3,IF(AND(OR(OFFSET(C64,-1,0)="s",OFFSET(C64,-1,0)=0),A64<>"s",A64>OFFSET(B64,-1,0)),OFFSET(B64,-1,0),A64))))) -> 3 | D64: =IF(OR(C64="S",C64=0),0,IF(ISERROR(K64),J64,SMALL(J64:K64,1))) -> 2 | E64: =IF($C64=1,OFFSET(E64,-1,0)+1,OFFSET(E64,-1,0)) -> 2 | F64: =IF($C64=1,0,IF($C64=2,OFFSET(F64,-1,0)+1,OFFSET(F64,-1,0))) -> 4 | G64: =IF(AND($C64<=2,$C64<>0),0,IF($C64=3,OFFSET(G64,-1,0)+1,OFFSET(G64,-1,0))) -> 1 | H64: =IF(AND($C64<=3,$C64<>0),0,IF($C64=4,OFFSET(H64,-1,0)+1,OFFSET(H64,-1,0))) -> 0 | I64: =IF(AND($C64<=4,$C64<>0),0,IF(AND($C64="S",$Y64>0),OFFSET(I64,-1,0)+1,OFFSET(I64,-1,0))) -> 0 | J64: 2 | K64: 9 | L64: =IF(OR(Y64>0,$C64=1),"F","") ->  | M64: Nível 3 | N64: =CHOOSE(1+LOG(1+2*(C64=1)+4*(C64=2)+8*(C64=3)+16*(C64=4)+32*(C64="S"),2),"","Nível 1","Nível 2","Nível 3","Nível 4","Serviço") -> Nível 3 | O64: - | P64: SINAPI | R64: ESTRUTURA METÁLICA | S64: - | U64: 1 | V64: - | Y64: 0 | Z64: 0
A65: S | B65: 3 | C65: S | D65: 0 | E65: 2 | F65: 4 | G65: 1 | H65: 0 | I65: 0 | J65: 0 | K65: 0 | M65: Serviço | N65: Serviço | O65: - | P65: AGETOP | Q65: 261610 | R65: PINTURA ESMALTE ALQUIDICO EST.METALICA 1 DEMAO | S65: m2 | T65: 465 | U65: 1 | V65: 465 | Y65: 0 | Z65: 0
A66: 2 | B66: 2 | C66: 2 | D66: 3 | E66: 2 | F66: 5 | G66: 0 | H66: 0 | I66: 0 | J66: 16 | K66: 3 | M66: Nível 2 | N66: Nível 2 | O66: - | P66: SINAPI | R66: PINTURA | S66: - | U66: 1 | V66: - | Y66: 0 | Z66: 0
A67: S | B67: 2 | C67: S | D67: 0 | E67: 2 | F67: 5 | G67: 0 | H67: 0 | I67: 0 | J67: 0 | K67: 0 | M67: Serviço | N67: Serviço | O67: - | P67: AGETOP | Q67: 261300 | R67: EMASSAMENTO COM MASSA PVA DUAS DEMAOS | S67: m2 | T67: 26.45 | U67: 1 | V67: 26.45 | Y67: 0 | Z67: 0
A68: S | B68: 2 | C68: S | D68: 0 | E68: 2 | F68: 5 | G68: 0 | H68: 0 | I68: 0 | J68: 0 | K68: 0 | M68: Serviço | N68: Serviço | O68: - | P68: AGETOP | Q68: 261307 | R68: PINTURA PVA LATEX 2 DEMAOS SEM SELADOR | S68: m2 | T68: 26.45 | U68: 1 | V68: 26.45 | Y68: 0 | Z68: 0
A69: 2 | B69: 2 | C69: 2 | D69: 7 | E69: 2 | F69: 6 | G69: 0 | H69: 0 | I69: 0 | J69: 13 | K69: 7 | M69: Nível 2 | N69: Nível 2 | O69: - | P69: SINAPI | R69: COBERTURAS | S69: - | U69: 1 | V69: - | Y69: 0 | Z69: 0
A70: =CHOOSE(1+LOG(1+2*(ORÇAMENTO.Nivel="Nível 1")+4*(ORÇAMENTO.Nivel="Nível 2")+8*(ORÇAMENTO.Nivel="Nível 3")+16*(ORÇAMENTO.Nivel="Nível 4")+32*(ORÇAMENTO.Nivel="Serviço"),2),0,1,2,3,4,"S") -> 3 | B70: =IF(OR(C70="s",C70=0),OFFSET(B70,-1,0),C70) -> 3 | C70: =IF(OFFSET(C70,-1,0)="L",1,IF(OFFSET(C70,-1,0)=1,2,IF(OR(A70="s",A70=0),"S",IF(AND(OFFSET(C70,-1,0)=2,A70=4),3,IF(AND(OR(OFFSET(C70,-1,0)="s",OFFSET(C70,-1,0)=0),A70<>"s",A70>OFFSET(B70,-1,0)),OFFSET(B70,-1,0),A70))))) -> 3 | D70: =IF(OR(C70="S",C70=0),0,IF(ISERROR(K70),J70,SMALL(J70:K70,1))) -> 3 | E70: =IF($C70=1,OFFSET(E70,-1,0)+1,OFFSET(E70,-1,0)) -> 2 | F70: =IF($C70=1,0,IF($C70=2,OFFSET(F70,-1,0)+1,OFFSET(F70,-1,0))) -> 6 | G70: =IF(AND($C70<=2,$C70<>0),0,IF($C70=3,OFFSET(G70,-1,0)+1,OFFSET(G70,-1,0))) -> 1 | H70: =IF(AND($C70<=3,$C70<>0),0,IF($C70=4,OFFSET(H70,-1,0)+1,OFFSET(H70,-1,0))) -> 0 | I70: =IF(AND($C70<=4,$C70<>0),0,IF(AND($C70="S",$Y70>0),OFFSET(I70,-1,0)+1,OFFSET(I70,-1,0))) -> 0 | J70: 6 | K70: 3 | L70: =IF(OR(Y70>0,$C70=1),"F","") ->  | M70: Nível 3 | N70: =CHOOSE(1+LOG(1+2*(C70=1)+4*(C70=2)+8*(C70=3)+16*(C70=4)+32*(C70="S"),2),"","Nível 1","Nível 2","Nível 3","Nível 4","Serviço") -> Nível 3 | O70: - | P70: SINAPI | R70: FIBROCIMENTO | S70: - | U70: 1 | V70: - | Y70: 0 | Z70: 0
A71: S | B71: 3 | C71: S | D71: 0 | E71: 2 | F71: 6 | G71: 1 | H71: 0 | I71: 0 | J71: 0 | K71: 0 | M71: Serviço | N71: Serviço | O71: - | P71: AGETOP | Q71: 160501 | R71: COBERTURA COM TELHA ONDULADA OU EQUIV. | S71: m2 | T71: 465 | U71: 1 | V71: 465 | Y71: 0 | Z71: 0
A72: S | B72: 3 | C72: S | D72: 0 | E72: 2 | F72: 6 | G72: 1 | H72: 0 | I72: 0 | J72: 0 | K72: 0 | M72: Serviço | N72: Serviço | O72: - | P72: AGETOP | Q72: 160502 | R72: CUMEEIRA PARA TELHA ONDULADA OU EQUIV. | S72: m | T72: 24.5 | U72: 1 | V72: 24.5 | Y72: 0 | Z72: 0
A73: =CHOOSE(1+LOG(1+2*(ORÇAMENTO.Nivel="Nível 1")+4*(ORÇAMENTO.Nivel="Nível 2")+8*(ORÇAMENTO.Nivel="Nível 3")+16*(ORÇAMENTO.Nivel="Nível 4")+32*(ORÇAMENTO.Nivel="Serviço"),2),0,1,2,3,4,"S") -> 3 | B73: =IF(OR(C73="s",C73=0),OFFSET(B73,-1,0),C73) -> 3 | C73: =IF(OFFSET(C73,-1,0)="L",1,IF(OFFSET(C73,-1,0)=1,2,IF(OR(A73="s",A73=0),"S",IF(AND(OFFSET(C73,-1,0)=2,A73=4),3,IF(AND(OR(OFFSET(C73,-1,0)="s",OFFSET(C73,-1,0)=0),A73<>"s",A73>OFFSET(B73,-1,0)),OFFSET(B73,-1,0),A73))))) -> 3 | D73: =IF(OR(C73="S",C73=0),0,IF(ISERROR(K73),J73,SMALL(J73:K73,1))) -> 3 | E73: =IF($C73=1,OFFSET(E73,-1,0)+1,OFFSET(E73,-1,0)) -> 2 | F73: =IF($C73=1,0,IF($C73=2,OFFSET(F73,-1,0)+1,OFFSET(F73,-1,0))) -> 6 | G73: =IF(AND($C73<=2,$C73<>0),0,IF($C73=3,OFFSET(G73,-1,0)+1,OFFSET(G73,-1,0))) -> 2 | H73: =IF(AND($C73<=3,$C73<>0),0,IF($C73=4,OFFSET(H73,-1,0)+1,OFFSET(H73,-1,0))) -> 0 | I73: =IF(AND($C73<=4,$C73<>0),0,IF(AND($C73="S",$Y73>0),OFFSET(I73,-1,0)+1,OFFSET(I73,-1,0))) -> 0 | J73: 3 | K73: 38 | L73: =IF(OR(Y73>0,$C73=1),"F","") ->  | M73: Nível 3 | N73: =CHOOSE(1+LOG(1+2*(C73=1)+4*(C73=2)+8*(C73=3)+16*(C73=4)+32*(C73="S"),2),"","Nível 1","Nível 2","Nível 3","Nível 4","Serviço") -> Nível 3 | O73: - | P73: SINAPI | R73: CALHAS E RUFOS | S73: - | U73: 1 | V73: - | Y73: 0 | Z73: 0
A74: S | B74: =IF(OR(C74="s",C74=0),OFFSET(B74,-1,0),C74) -> 3 | C74: =IF(OFFSET(C74,-1,0)="L",1,IF(OFFSET(C74,-1,0)=1,2,IF(OR(A74="s",A74=0),"S",IF(AND(OFFSET(C74,-1,0)=2,A74=4),3,IF(AND(OR(OFFSET(C74,-1,0)="s",OFFSET(C74,-1,0)=0),A74<>"s",A74>OFFSET(B74,-1,0)),OFFSET(B74,-1,0),A74))))) -> S | D74: =IF(OR(C74="S",C74=0),0,IF(ISERROR(K74),J74,SMALL(J74:K74,1))) -> 0 | E74: =IF($C74=1,OFFSET(E74,-1,0)+1,OFFSET(E74,-1,0)) -> 2 | F74: =IF($C74=1,0,IF($C74=2,OFFSET(F74,-1,0)+1,OFFSET(F74,-1,0))) -> 6 | G74: =IF(AND($C74<=2,$C74<>0),0,IF($C74=3,OFFSET(G74,-1,0)+1,OFFSET(G74,-1,0))) -> 2 | H74: =IF(AND($C74<=3,$C74<>0),0,IF($C74=4,OFFSET(H74,-1,0)+1,OFFSET(H74,-1,0))) -> 0 | I74: =IF(AND($C74<=4,$C74<>0),0,IF(AND($C74="S",$Y74>0),OFFSET(I74,-1,0)+1,OFFSET(I74,-1,0))) -> 0 | J74: 0 | K74: 0 | L74: =IF(OR(Y74>0,$C74=1),"F","") ->  | M74: Serviço | N74: =CHOOSE(1+LOG(1+2*(C74=1)+4*(C74=2)+8*(C74=3)+16*(C74=4)+32*(C74="S"),2),"","Nível 1","Nível 2","Nível 3","Nível 4","Serviço") -> Serviço | O74: - | P74: AGETOP | Q74: 160602 | R74: RUFO DE CHAPA GALVANIZADA | S74: m | T74: 38.4 | U74: 1 | V74: 38.4 | Y74: 0 | Z74: 0
A75: S | B75: =IF(OR(C75="s",C75=0),OFFSET(B75,-1,0),C75) -> 3 | C75: =IF(OFFSET(C75,-1,0)="L",1,IF(OFFSET(C75,-1,0)=1,2,IF(OR(A75="s",A75=0),"S",IF(AND(OFFSET(C75,-1,0)=2,A75=4),3,IF(AND(OR(OFFSET(C75,-1,0)="s",OFFSET(C75,-1,0)=0),A75<>"s",A75>OFFSET(B75,-1,0)),OFFSET(B75,-1,0),A75))))) -> S | D75: =IF(OR(C75="S",C75=0),0,IF(ISERROR(K75),J75,SMALL(J75:K75,1))) -> 0 | E75: =IF($C75=1,OFFSET(E75,-1,0)+1,OFFSET(E75,-1,0)) -> 2 | F75: =IF($C75=1,0,IF($C75=2,OFFSET(F75,-1,0)+1,OFFSET(F75,-1,0))) -> 6 | G75: =IF(AND($C75<=2,$C75<>0),0,IF($C75=3,OFFSET(G75,-1,0)+1,OFFSET(G75,-1,0))) -> 2 | H75: =IF(AND($C75<=3,$C75<>0),0,IF($C75=4,OFFSET(H75,-1,0)+1,OFFSET(H75,-1,0))) -> 0 | I75: =IF(AND($C75<=4,$C75<>0),0,IF(AND($C75="S",$Y75>0),OFFSET(I75,-1,0)+1,OFFSET(I75,-1,0))) -> 0 | J75: 0 | K75: 0 | L75: =IF(OR(Y75>0,$C75=1),"F","") ->  | M75: Serviço | N75: =CHOOSE(1+LOG(1+2*(C75=1)+4*(C75=2)+8*(C75=3)+16*(C75=4)+32*(C75="S"),2),"","Nível 1","Nível 2","Nível 3","Nível 4","Serviço") -> Serviço | O75: - | P75: AGETOP | Q75: 160601 | R75: CALHA DE CHAPA GALVANIZADA | S75: m | T75: 48 | U75: 1 | V75: 48 | Y75: 0 | Z75: 0
A76: 2 | B76: =IF(OR(C76="s",C76=0),OFFSET(B76,-1,0),C76) -> 2 | C76: =IF(OFFSET(C76,-1,0)="L",1,IF(OFFSET(C76,-1,0)=1,2,IF(OR(A76="s",A76=0),"S",IF(AND(OFFSET(C76,-1,0)=2,A76=4),3,IF(AND(OR(OFFSET(C76,-1,0)="s",OFFSET(C76,-1,0)=0),A76<>"s",A76>OFFSET(B76,-1,0)),OFFSET(B76,-1,0),A76))))) -> 2 | D76: =IF(OR(C76="S",C76=0),0,IF(ISERROR(K76),J76,SMALL(J76:K76,1))) -> 6 | E76: =IF($C76=1,OFFSET(E76,-1,0)+1,OFFSET(E76,-1,0)) -> 2 | F76: =IF($C76=1,0,IF($C76=2,OFFSET(F76,-1,0)+1,OFFSET(F76,-1,0))) -> 7 | G76: =IF(AND($C76<=2,$C76<>0),0,IF($C76=3,OFFSET(G76,-1,0)+1,OFFSET(G76,-1,0))) -> 0 | H76: =IF(AND($C76<=3,$C76<>0),0,IF($C76=4,OFFSET(H76,-1,0)+1,OFFSET(H76,-1,0))) -> 0 | I76: =IF(AND($C76<=4,$C76<>0),0,IF(AND($C76="S",$Y76>0),OFFSET(I76,-1,0)+1,OFFSET(I76,-1,0))) -> 0 | J76: 6 | K76: 184 | L76: =IF(OR(Y76>0,$C76=1),"F","") ->  | M76: Nível 2 | N76: =CHOOSE(1+LOG(1+2*(C76=1)+4*(C76=2)+8*(C76=3)+16*(C76=4)+32*(C76="S"),2),"","Nível 1","Nível 2","Nível 3","Nível 4","Serviço") -> Nível 2 | O76: - | P76: SINAPI | R76: FORROS | S76: - | U76: 1 | V76: - | Y76: 0 | Z76: 0
A77: 3 | B77: 3 | C77: 3 | D77: 2 | E77: 2 | F77: 7 | G77: 1 | H77: 0 | I77: 0 | J77: 5 | K77: 2 | M77: Nível 3 | N77: Nível 3 | O77: - | P77: SINAPI | R77: PVC COM ESTRUTURA | S77: - | U77: 1 | V77: - | Y77: 0 | Z77: 0
A78: S | B78: 3 | C78: S | D78: 0 | E78: 2 | F78: 7 | G78: 1 | H78: 0 | I78: 0 | J78: 0 | K78: 0 | M78: Serviço | N78: Serviço | O78: - | P78: AGETOP | Q78: 210460 | R78: FORRO DE PVC COM ESTRUTURA EM METALON PINTADA COM TINTA ALQUÍDICA D.F. | S78: m2 | T78: 425.55 | U78: 1 | V78: 425.55 | Y78: 0 | Z78: 0
A79: 3 | B79: 3 | C79: 3 | D79: 3 | E79: 2 | F79: 7 | G79: 2 | H79: 0 | I79: 0 | J79: 3 | K79: 32 | M79: Nível 3 | N79: Nível 3 | O79: - | P79: SINAPI | R79: GESSO | S79: - | U79: 1 | V79: - | Y79: 0 | Z79: 0
A80: S | B80: 3 | C80: S | D80: 0 | E80: 2 | F80: 7 | G80: 2 | H80: 0 | I80: 0 | J80: 0 | K80: 0 | M80: Serviço | N80: Serviço | O80: - | P80: AGETOP | Q80: 210498 | R80: FORRO DE GESSO ACARTONADO PARA ÁREAS SECAS ESPESSURA DE 12,5MM | S80: m2 | T80: 26.45 | U80: 1 | V80: 26.45 | Y80: 0 | Z80: 0
A81: S | B81: 3 | C81: S | D81: 0 | E81: 2 | F81: 7 | G81: 2 | H81: 0 | I81: 0 | J81: 0 | K81: 0 | M81: Serviço | N81: Serviço | O81: - | P81: AGETOP | Q81: 210506 | R81: TABICA PARA FORRO DE GESSO COMUM | S81: m | T81: 31.3 | U81: 1 | V81: 31.3 | Y81: 0 | Z81: 0
A82: 1 | B82: 1 | C82: 1 | D82: 40 | E82: 3 | F82: 0 | G82: 0 | H82: 0 | I82: 0 | J82: 448 | K82: 40 | L82: F | M82: Nível 1 | N82: Nível 1 | O82: 3. | P82: SINAPI | R82: 3. REFORMA GERAL | S82: UN | T82: 1 | U82: 1 | V82: 1 | Y82: 0 | Z82: 0
A83: 2 | B83: 2 | C83: 2 | D83: 8 | E83: 3 | F83: 1 | G83: 0 | H83: 0 | I83: 0 | J83: =IF(OR($C83="S",$C83=0),0,MATCH(0,OFFSET($D83,1,$C83,ROW($C$530)-ROW($C83)),0)) -> 39 | K83: =IF(OR($C83="S",$C83=0),0,MATCH(OFFSET($D83,0,$C83)+1,OFFSET($D83,1,$C83,ROW($C$530)-ROW($C83)),0)) -> 8 | M83: Nível 2 | N83: Nível 2 | O83: - | P83: SINAPI | R83: SERVIÇOS PRELIMINARES | S83: - | U83: 1 | V83: - | Y83: 0 | Z83: 0
A84: S | B84: 2 | C84: S | D84: 0 | E84: 3 | F84: 1 | G84: 0 | H84: 0 | I84: 0 | J84: 0 | K84: 0 | M84: Serviço | N84: Serviço | O84: - | P84: SINAPI | Q84: 97644 | R84: REMOÇÃO DE PORTAS, DE FORMA MANUAL, SEM REAPROVEITAMENTO. AF_12/2017 | S84: M2 | T84: 6.09 | U84: 1 | V84: 6.09 | Y84: 0 | Z84: 0 | AA84: Referência: AGETOP - 20106
A85: S | B85: 2 | C85: S | D85: 0 | E85: 3 | F85: 1 | G85: 0 | H85: 0 | I85: 0 | J85: 0 | K85: 0 | M85: Serviço | N85: Serviço | O85: - | P85: AGETOP | Q85: 20111 | R85: DEM.PISO CERAM.SOBRE LASTRO CONC.C/TR.CB.E CARGA | S85: m2 | T85: 3.86 | U85: 1 | V85: 3.86 | Y85: 0 | Z85: 0
A86: S | B86: 2 | C86: S | D86: 0 | E86: 3 | F86: 1 | G86: 0 | H86: 0 | I86: 0 | J86: 0 | K86: 0 | M86: Serviço | N86: Serviço | O86: - | P86: SINAPI | Q86: 97633 | R86: DEMOLIÇÃO DE REVESTIMENTO CERÂMICO, DE FORMA MANUAL, SEM REAPROVEITAMENTO. AF_12/2017 | S86: M2 | T86: 13.8 | U86: 1 | V86: 13.8 | Y86: 0 | Z86: 0 | AA86: Referência: AGETOP - 20115
A87: S | B87: 2 | C87: S | D87: 0 | E87: 3 | F87: 1 | G87: 0 | H87: 0 | I87: 0 | J87: 0 | K87: 0 | M87: Serviço | N87: Serviço | O87: - | P87: AGETOP | Q87: 20137 | R87: DEMOLIÇAO BACIA SANITARIA C/ TRANSP. ATÉ CB. E CARGA | S87: Un | T87: 1 | U87: 1 | V87: 1 | Y87: 0 | Z87: 0
A88: S | B88: 2 | C88: S | D88: 0 | E88: 3 | F88: 1 | G88: 0 | H88: 0 | I88: 0 | J88: 0 | K88: 0 | M88: Serviço | N88: Serviço | O88: - | P88: AGETOP | Q88: 20140 | R88: DEMOLIÇAO DE VÁLVULA DE DESCARGA C/ TRANSP. ATÉ CB. E CARGA | S88: Un | T88: 1 | U88: 1 | V88: 1 | Y88: 0 | Z88: 0
A89: S | B89: 2 | C89: S | D89: 0 | E89: 3 | F89: 1 | G89: 0 | H89: 0 | I89: 0 | J89: 0 | K89: 0 | M89: Serviço | N89: Serviço | O89: - | P89: AGETOP | Q89: 20138 | R89: DEMOLIÇAO DE LAVATÓRIO C/ TRANSP. ATÉ CB. E CARGA | S89: Un | T89: 3 | U89: 1 | V89: 3 | Y89: 0 | Z89: 0
A90: =CHOOSE(1+LOG(1+2*(ORÇAMENTO.Nivel="Nível 1")+4*(ORÇAMENTO.Nivel="Nível 2")+8*(ORÇAMENTO.Nivel="Nível 3")+16*(ORÇAMENTO.Nivel="Nível 4")+32*(ORÇAMENTO.Nivel="Serviço"),2),0,1,2,3,4,"S") -> S | B90: =IF(OR(C90="s",C90=0),OFFSET(B90,-1,0),C90) -> 2 | C90: =IF(OFFSET(C90,-1,0)="L",1,IF(OFFSET(C90,-1,0)=1,2,IF(OR(A90="s",A90=0),"S",IF(AND(OFFSET(C90,-1,0)=2,A90=4),3,IF(AND(OR(OFFSET(C90,-1,0)="s",OFFSET(C90,-1,0)=0),A90<>"s",A90>OFFSET(B90,-1,0)),OFFSET(B90,-1,0),A90))))) -> S | D90: =IF(OR(C90="S",C90=0),0,IF(ISERROR(K90),J90,SMALL(J90:K90,1))) -> 0 | E90: =IF($C90=1,OFFSET(E90,-1,0)+1,OFFSET(E90,-1,0)) -> 3 | F90: =IF($C90=1,0,IF($C90=2,OFFSET(F90,-1,0)+1,OFFSET(F90,-1,0))) -> 1 | G90: =IF(AND($C90<=2,$C90<>0),0,IF($C90=3,OFFSET(G90,-1,0)+1,OFFSET(G90,-1,0))) -> 0 | H90: =IF(AND($C90<=3,$C90<>0),0,IF($C90=4,OFFSET(H90,-1,0)+1,OFFSET(H90,-1,0))) -> 0 | I90: =IF(AND($C90<=4,$C90<>0),0,IF(AND($C90="S",$Y90>0),OFFSET(I90,-1,0)+1,OFFSET(I90,-1,0))) -> 0 | J90: 0 | K90: 0 | L90: =IF(OR(Y90>0,$C90=1),"F","") ->  | M90: Serviço | N90: =CHOOSE(1+LOG(1+2*(C90=1)+4*(C90=2)+8*(C90=3)+16*(C90=4)+32*(C90="S"),2),"","Nível 1","Nível 2","Nível 3","Nível 4","Serviço") -> Serviço | O90: - | P90: SINAPI | Q90: 97622 | R90: DEMOLIÇÃO DE ALVENARIA DE BLOCO FURADO, DE FORMA MANUAL, SEM REAPROVEITAMENTO. AF_12/2017 | S90: M3 | T90: 0.25 | U90: 1 | V90: 0.25 | Y90: 0 | Z90: 0 | AA90: Referência: AGETOP - 20118
A91: 2 | B91: 2 | C91: 2 | D91: 3 | E91: 3 | F91: 2 | G91: 0 | H91: 0 | I91: 0 | J91: 31 | K91: 3 | M91: Nível 2 | N91: Nível 2 | O91: - | P91: AGETOP | R91: TRANSPORTES | S91: - | U91: 1 | V91: - | Y91: 0 | Z91: 0
A92: S | B92: 2 | C92: S | D92: 0 | E92: 3 | F92: 2 | G92: 0 | H92: 0 | I92: 0 | J92: 0 | K92: 0 | M92: Serviço | N92: Serviço | O92: - | P92: SINAPI | Q92: 72900 | R92: TRANSPORTE DE ENTULHO COM CAMINHAO BASCULANTE 6 M3, RODOVIA PAVIMENTADA, DMT 0,5 A 1,0 KM | S92: M3 | T92: 1.68 | U92: 1 | V92: 1.68 | Y92: 0 | Z92: 0
A93: S | B93: 2 | C93: S | D93: 0 | E93: 3 | F93: 2 | G93: 0 | H93: 0 | I93: 0 | J93: 0 | K93: 0 | M93: Serviço | N93: Serviço | O93: - | P93: SINAPI | Q93: 72897 | R93: CARGA MANUAL DE ENTULHO EM CAMINHAO BASCULANTE 6 M3 | S93: M3 | T93: 1.68 | U93: 1 | V93: 1.68 | Y93: 0 | Z93: 0
A94: 2 | B94: 2 | C94: 2 | D94: 3 | E94: 3 | F94: 3 | G94: 0 | H94: 0 | I94: 0 | J94: 28 | K94: 3 | M94: Nível 2 | N94: Nível 2 | O94: - | P94: SINAPI | R94: REVESTIMENTO DE PISO | S94: - | U94: 1 | V94: - | Y94: 0 | Z94: 0
A95: 3 | B95: 3 | C95: 3 | D95: 2 | E95: 3 | F95: 3 | G95: 1 | H95: 0 | I95: 0 | J95: 2 | K95: 12 | M95: Nível 3 | N95: Nível 3 | O95: - | R95: CERÂMICO | S95: - | U95: 1 | V95: - | Y95: 0 | Z95: 0
A96: S | B96: 3 | C96: S | D96: 0 | E96: 3 | F96: 3 | G96: 1 | H96: 0 | I96: 0 | J96: 0 | K96: 0 | M96: Serviço | N96: Serviço | O96: - | P96: SINAPI | Q96: 87251 | R96: REVESTIMENTO CERÂMICO PARA PISO COM PLACAS TIPO ESMALTADA EXTRA DE DIMENSÕES 45X45 CM APLICADA EM AMBIENTES DE ÁREA MAIOR QUE 10 M2. AF_06/2014 | S96: M2 | T96: 3.86 | U96: 1 | V96: 3.86 | Y96: 0 | Z96: 0
A97: 2 | B97: 2 | C97: 2 | D97: 2 | E97: 3 | F97: 4 | G97: 0 | H97: 0 | I97: 0 | J97: 25 | K97: 2 | M97: Nível 2 | N97: Nível 2 | O97: - | P97: SINAPI | R97: REVESTIMENTO DE PAREDE | S97: - | U97: 1 | V97: - | Y97: 0 | Z97: 0
A98: S | B98: 2 | C98: S | D98: 0 | E98: 3 | F98: 4 | G98: 0 | H98: 0 | I98: 0 | J98: 0 | K98: 0 | M98: Serviço | N98: Serviço | O98: - | P98: SINAPI | Q98: 87273 | R98: REVESTIMENTO CERÂMICO PARA PAREDES INTERNAS COM PLACAS TIPO ESMALTADA EXTRA DE DIMENSÕES 33X45 CM APLICADAS EM AMBIENTES DE ÁREA MAIOR QUE 5 M² NA ALTURA INTEIRA DAS PAREDES. AF_06/2014 | S98: M2 | T98: 13.8 | U98: 1 | V98: 13.8 | Y98: 0 | Z98: 0
A99: 2 | B99: 2 | C99: 2 | D99: 3 | E99: 3 | F99: 5 | G99: 0 | H99: 0 | I99: 0 | J99: 23 | K99: 3 | M99: Nível 2 | N99: Nível 2 | O99: - | P99: SINAPI | R99: FERRAGENS | S99: - | U99: 1 | V99: - | Y99: 0 | Z99: 0
A100: S | B100: 2 | C100: S | D100: 0 | E100: 3 | F100: 5 | G100: 0 | H100: 0 | I100: 0 | J100: 0 | K100: 0 | M100: Serviço | N100: Serviço | O100: - | P100: AGETOP | Q100: 230174 | R100: BARRA DE APOIO EM AÇO INOX - 40 CM | S100: un | T100: 9 | U100: 1 | V100: 9 | Y100: 0 | Z100: 0
A101: S | B101: 2 | C101: S | D101: 0 | E101: 3 | F101: 5 | G101: 0 | H101: 0 | I101: 0 | J101: 0 | K101: 0 | M101: Serviço | N101: Serviço | O101: - | P101: AGETOP | Q101: 230176 | R101: BARRA DE APOIO EM AÇO INOX - 80 CM | S101: un | T101: 9 | U101: 1 | V101: 9 | Y101: 0 | Z101: 0
A102: =CHOOSE(1+LOG(1+2*(ORÇAMENTO.Nivel="Nível 1")+4*(ORÇAMENTO.Nivel="Nível 2")+8*(ORÇAMENTO.Nivel="Nível 3")+16*(ORÇAMENTO.Nivel="Nível 4")+32*(ORÇAMENTO.Nivel="Serviço"),2),0,1,2,3,4,"S") -> 2 | B102: =IF(OR(C102="s",C102=0),OFFSET(B102,-1,0),C102) -> 2 | C102: =IF(OFFSET(C102,-1,0)="L",1,IF(OFFSET(C102,-1,0)=1,2,IF(OR(A102="s",A102=0),"S",IF(AND(OFFSET(C102,-1,0)=2,A102=4),3,IF(AND(OR(OFFSET(C102,-1,0)="s",OFFSET(C102,-1,0)=0),A102<>"s",A102>OFFSET(B102,-1,0)),OFFSET(B102,-1,0),A102))))) -> 2 | D102: =IF(OR(C102="S",C102=0),0,IF(ISERROR(K102),J102,SMALL(J102:K102,1))) -> 2 | E102: =IF($C102=1,OFFSET(E102,-1,0)+1,OFFSET(E102,-1,0)) -> 3 | F102: =IF($C102=1,0,IF($C102=2,OFFSET(F102,-1,0)+1,OFFSET(F102,-1,0))) -> 6 | G102: =IF(AND($C102<=2,$C102<>0),0,IF($C102=3,OFFSET(G102,-1,0)+1,OFFSET(G102,-1,0))) -> 0 | H102: =IF(AND($C102<=3,$C102<>0),0,IF($C102=4,OFFSET(H102,-1,0)+1,OFFSET(H102,-1,0))) -> 0 | I102: =IF(AND($C102<=4,$C102<>0),0,IF(AND($C102="S",$Y102>0),OFFSET(I102,-1,0)+1,OFFSET(I102,-1,0))) -> 0 | J102: 20 | K102: 2 | L102: =IF(OR(Y102>0,$C102=1),"F","") ->  | M102: Nível 2 | N102: =CHOOSE(1+LOG(1+2*(C102=1)+4*(C102=2)+8*(C102=3)+16*(C102=4)+32*(C102="S"),2),"","Nível 1","Nível 2","Nível 3","Nível 4","Serviço") -> Nível 2 | O102: - | P102: SINAPI | R102: ESQUADRIAS METÁLICAS | S102: - | U102: 1 | V102: - | Y102: 0 | Z102: 0
A103: S | B103: 2 | C103: S | D103: 0 | E103: 3 | F103: 6 | G103: 0 | H103: 0 | I103: 0 | J103: 0 | K103: 0 | M103: Serviço | N103: Serviço | O103: - | P103: AGETOP | Q103: 180501 | R103: PORTA DE ABRIR EM CHAPA PF-1 C/FERRAGENS | S103: m2 | T103: 7.35 | U103: 1 | V103: 7.35 | Y103: 0 | Z103: 0
A104: 2 | B104: 2 | C104: 2 | D104: 18 | E104: 3 | F104: 7 | G104: 0 | H104: 0 | I104: 0 | J104: 18 | K104: 156 | M104: Nível 2 | N104: Nível 2 | O104: - | R104: PINTURA | S104: - | U104: 1 | V104: - | Y104: 0 | Z104: 0
A105: 3 | B105: 3 | C105: 3 | D105: 2 | E105: 3 | F105: 7 | G105: 1 | H105: 0 | I105: 0 | J105: 17 | K105: 2 | M105: Nível 3 | N105: Nível 3 | O105: - | R105: ESMALTE SINTÉTICO | S105: - | U105: 1 | V105: - | Y105: 0 | Z105: 0
A106: S | B106: 3 | C106: S | D106: 0 | E106: 3 | F106: 7 | G106: 1 | H106: 0 | I106: 0 | J106: 0 | K106: 0 | M106: Serviço | N106: Serviço | O106: - | P106: AGETOP | Q106: 261550 | R106: PINT.ESMALTE SINT.PAREDES - 2 DEM.C/SELADOR | S106: m2 | T106: 402 | U106: 1 | V106: 402 | Y106: 0 | Z106: 0
A107: 3 | B107: 3 | C107: 3 | D107: 4 | E107: 3 | F107: 7 | G107: 2 | H107: 0 | I107: 0 | J107: 15 | K107: 4 | M107: Nível 3 | N107: Nível 3 | O107: - | P107: AGETOP | R107: LÁTEX ACRÍLICA | S107: - | U107: 1 | V107: - | Y107: 0 | Z107: 0
A108: S | B108: 3 | C108: S | D108: 0 | E108: 3 | F108: 7 | G108: 2 | H108: 0 | I108: 0 | J108: 0 | K108: 0 | M108: Serviço | N108: Serviço | O108: - | P108: AGETOP | Q108: 260104 | R108: REMOCAO DE PINTURA ANTIGA A LATEX | S108: m2 | T108: 50 | U108: 1 | V108: 50 | Y108: 0 | Z108: 0
A109: S | B109: 3 | C109: S | D109: 0 | E109: 3 | F109: 7 | G109: 2 | H109: 0 | I109: 0 | J109: 0 | K109: 0 | M109: Serviço | N109: Serviço | O109: - | P109: AGETOP | Q109: 261300 | R109: EMASSAMENTO COM MASSA PVA DUAS DEMAOS | S109: m2 | T109: 53.36 | U109: 1 | V109: 53.36 | Y109: 0 | Z109: 0
A110: S | B110: 3 | C110: S | D110: 0 | E110: 3 | F110: 7 | G110: 2 | H110: 0 | I110: 0 | J110: 0 | K110: 0 | M110: Serviço | N110: Serviço | O110: - | P110: AGETOP | Q110: 261001 | R110: PINTURA LATEX ACRILICO 2 DEMAOS | S110: m2 | T110: 402 | U110: 1 | V110: 402 | Y110: 0 | Z110: 0
A111: 3 | B111: 3 | C111: 3 | D111: 2 | E111: 3 | F111: 7 | G111: 3 | H111: 0 | I111: 0 | J111: 11 | K111: 2 | M111: Nível 3 | N111: Nível 3 | O111: - | P111: AGETOP | R111: EXTERNA | S111: - | U111: 1 | V111: - | Y111: 0 | Z111: 0
A112: S | B112: 3 | C112: S | D112: 0 | E112: 3 | F112: 7 | G112: 3 | H112: 0 | I112: 0 | J112: 0 | K112: 0 | M112: Serviço | N112: Serviço | O112: - | P112: AGETOP | Q112: 261001 | R112: PINTURA LATEX ACRILICO 2 DEMAOS | S112: m2 | T112: 600 | U112: 1 | V112: 600 | Y112: 0 | Z112: 0
A113: =CHOOSE(1+LOG(1+2*(ORÇAMENTO.Nivel="Nível 1")+4*(ORÇAMENTO.Nivel="Nível 2")+8*(ORÇAMENTO.Nivel="Nível 3")+16*(ORÇAMENTO.Nivel="Nível 4")+32*(ORÇAMENTO.Nivel="Serviço"),2),0,1,2,3,4,"S") -> 3 | B113: =IF(OR(C113="s",C113=0),OFFSET(B113,-1,0),C113) -> 3 | C113: =IF(OFFSET(C113,-1,0)="L",1,IF(OFFSET(C113,-1,0)=1,2,IF(OR(A113="s",A113=0),"S",IF(AND(OFFSET(C113,-1,0)=2,A113=4),3,IF(AND(OR(OFFSET(C113,-1,0)="s",OFFSET(C113,-1,0)=0),A113<>"s",A113>OFFSET(B113,-1,0)),OFFSET(B113,-1,0),A113))))) -> 3 | D113: =IF(OR(C113="S",C113=0),0,IF(ISERROR(K113),J113,SMALL(J113:K113,1))) -> 2 | E113: =IF($C113=1,OFFSET(E113,-1,0)+1,OFFSET(E113,-1,0)) -> 3 | F113: =IF($C113=1,0,IF($C113=2,OFFSET(F113,-1,0)+1,OFFSET(F113,-1,0))) -> 7 | G113: =IF(AND($C113<=2,$C113<>0),0,IF($C113=3,OFFSET(G113,-1,0)+1,OFFSET(G113,-1,0))) -> 4 | H113: =IF(AND($C113<=3,$C113<>0),0,IF($C113=4,OFFSET(H113,-1,0)+1,OFFSET(H113,-1,0))) -> 0 | I113: =IF(AND($C113<=4,$C113<>0),0,IF(AND($C113="S",$Y113>0),OFFSET(I113,-1,0)+1,OFFSET(I113,-1,0))) -> 0 | J113: 9 | K113: 2 | L113: =IF(OR(Y113>0,$C113=1),"F","") ->  | M113: Nível 3 | N113: =CHOOSE(1+LOG(1+2*(C113=1)+4*(C113=2)+8*(C113=3)+16*(C113=4)+32*(C113="S"),2),"","Nível 1","Nível 2","Nível 3","Nível 4","Serviço") -> Nível 3 | O113: - | P113: SINAPI | R113: MURO | S113: - | U113: 1 | V113: - | Y113: 0 | Z113: 0
A114: =CHOOSE(1+LOG(1+2*(ORÇAMENTO.Nivel="Nível 1")+4*(ORÇAMENTO.Nivel="Nível 2")+8*(ORÇAMENTO.Nivel="Nível 3")+16*(ORÇAMENTO.Nivel="Nível 4")+32*(ORÇAMENTO.Nivel="Serviço"),2),0,1,2,3,4,"S") -> S | B114: 3 | C114: S | D114: 0 | E114: 3 | F114: 7 | G114: 4 | H114: 0 | I114: 0 | J114: 0 | K114: 0 | M114: Serviço | N114: Serviço | O114: - | P114: AGETOP | Q114: 261001 | R114: PINTURA LATEX ACRILICO 2 DEMAOS | S114: m2 | T114: 256.4 | U114: 1 | V114: 256.4 | Y114: 0 | Z114: 0
A115: 3 | B115: 3 | C115: 3 | D115: 2 | E115: 3 | F115: 7 | G115: 5 | H115: 0 | I115: 0 | J115: 7 | K115: 2 | M115: Nível 3 | N115: Nível 3 | O115: - | P115: AGETOP | R115: ESQUADRIAS NOVAS | S115: - | U115: 1 | V115: - | Y115: 0 | Z115: 0
A116: S | B116: 3 | C116: S | D116: 0 | E116: 3 | F116: 7 | G116: 5 | H116: 0 | I116: 0 | J116: 0 | K116: 0 | M116: Serviço | N116: Serviço | O116: - | P116: AGETOP | Q116: 261503 | R116: PINT.ESMALTE 2 DEM. ESQ.FERRO (SEM FUNDO ANTICOR.) | S116: m2 | T116: 22.05 | U116: 1 | V116: 22.05 | Y116: 0 | Z116: 0
A117: 3 | B117: 3 | C117: 3 | D117: 3 | E117: 3 | F117: 7 | G117: 6 | H117: 0 | I117: 0 | J117: 5 | K117: 3 | M117: Nível 3 | N117: Nível 3 | O117: - | P117: SINAPI | R117: ESQUADRIAS EXISTENTES | S117: - | U117: 1 | V117: - | Y117: 0 | Z117: 0
A118: S | B118: 3 | C118: S | D118: 0 | E118: 3 | F118: 7 | G118: 6 | H118: 0 | I118: 0 | J118: 0 | K118: 0 | M118: Serviço | N118: Serviço | O118: - | P118: AGETOP | Q118: 260105 | R118: REMOCAO DE PINTURA ANTIGA A OLEO OU ESMALTE | S118: m2 | T118: 225 | U118: 1 | V118: 225 | Y118: 0 | Z118: 0
A119: S | B119: 3 | C119: S | D119: 0 | E119: 3 | F119: 7 | G119: 6 | H119: 0 | I119: 0 | J119: 0 | K119: 0 | M119: Serviço | N119: Serviço | O119: - | P119: AGETOP | Q119: 261503 | R119: PINT.ESMALTE 2 DEM. ESQ.FERRO (SEM FUNDO ANTICOR.) | S119: m2 | T119: 225 | U119: 1 | V119: 225 | Y119: 0 | Z119: 0
A120: 3 | B120: 3 | C120: 3 | D120: 2 | E120: 3 | F120: 7 | G120: 7 | H120: 0 | I120: 0 | J120: 2 | M120: Nível 3 | N120: Nível 3 | O120: - | P120: SINAPI | R120: OUTROS | S120: - | U120: 1 | V120: - | Y120: 0 | Z120: 0
A121: S | B121: 3 | C121: S | D121: 0 | E121: 3 | F121: 7 | G121: 7 | H121: 0 | I121: 0 | J121: 0 | K121: 0 | M121: Serviço | N121: Serviço | O121: - | P121: AGETOP | Q121: 261620 | R121: LETREIRO MÉDIO A GRANDE PORTE EM PAREDE FEITO A PINCEL | S121: m2 | T121: 7.2 | U121: 1 | V121: 7.2 | Y121: 0 | Z121: 0
A122: 1 | B122: 1 | C122: 1 | D122: 11 | E122: 4 | F122: 0 | G122: 0 | H122: 0 | I122: 0 | J122: 408 | K122: 11 | L122: F | M122: Nível 1 | N122: Nível 1 | O122: 4. | P122: SINAPI | R122: 7 - IMPLANTAÇÃO DE PASSARELA COBERTA | S122: UN | T122: 1 | U122: 1 | V122: 1 | Y122: 0 | Z122: 0
A123: 2 | B123: 2 | C123: 2 | D123: 2 | E123: 4 | F123: 1 | G123: 0 | H123: 0 | I123: 0 | J123: 10 | K123: 2 | M123: Nível 2 | N123: Nível 2 | O123: - | P123: SINAPI | R123: SERVIÇOS PRELIMINARES | S123: - | U123: 1 | V123: - | Y123: 0 | Z123: 0
A124: S | B124: 2 | C124: S | D124: 0 | E124: 4 | F124: 1 | G124: 0 | H124: 0 | I124: 0 | J124: 0 | K124: 0 | M124: Serviço | N124: Serviço | O124: - | P124: AGETOP | Q124: 20121 | R124: DEM. MANUAL EM CONCR.SIMPLES C/TR.ATE CB.E CARGA (O.C.) | S124: m3 | T124: 5.47 | U124: 1 | V124: 5.47 | Y124: 0 | Z124: 0
A125: 2 | B125: 2 | C125: 2 | D125: 3 | E125: 4 | F125: 2 | G125: 0 | H125: 0 | I125: 0 | J125: 8 | K125: 3 | M125: Nível 2 | N125: Nível 2 | O125: - | P125: AGETOP | R125: TRANSPORTES | S125: - | U125: 1 | V125: - | Y125: 0 | Z125: 0
A126: S | B126: 2 | C126: S | D126: 0 | E126: 4 | F126: 2 | G126: 0 | H126: 0 | I126: 0 | J126: 0 | K126: 0 | M126: Serviço | N126: Serviço | O126: - | P126: SINAPI | Q126: 72900 | R126: TRANSPORTE DE ENTULHO COM CAMINHAO BASCULANTE 6 M3, RODOVIA PAVIMENTADA, DMT 0,5 A 1,0 KM | S126: M3 | T126: 5.47 | U126: 1 | V126: 5.47 | Y126: 0 | Z126: 0
A127: S | B127: 2 | C127: S | D127: 0 | E127: 4 | F127: 2 | G127: 0 | H127: 0 | I127: 0 | J127: 0 | K127: 0 | M127: Serviço | N127: Serviço | O127: - | P127: SINAPI | Q127: 72897 | R127: CARGA MANUAL DE ENTULHO EM CAMINHAO BASCULANTE 6 M3 | S127: M3 | T127: 5.47 | U127: 1 | V127: 5.47 | Y127: 0 | Z127: 0
A128: 2 | B128: 2 | C128: 2 | D128: 3 | E128: 4 | F128: 3 | G128: 0 | H128: 0 | I128: 0 | J128: 5 | K128: 3 | M128: Nível 2 | N128: Nível 2 | O128: - | P128: SINAPI | R128: SERVIÇO EM TERRA | S128: - | U128: 1 | V128: - | Y128: 0 | Z128: 0
A129: =CHOOSE(1+LOG(1+2*(ORÇAMENTO.Nivel="Nível 1")+4*(ORÇAMENTO.Nivel="Nível 2")+8*(ORÇAMENTO.Nivel="Nível 3")+16*(ORÇAMENTO.Nivel="Nível 4")+32*(ORÇAMENTO.Nivel="Serviço"),2),0,1,2,3,4,"S") -> S | B129: =IF(OR(C129="s",C129=0),OFFSET(B129,-1,0),C129) -> 2 | C129: =IF(OFFSET(C129,-1,0)="L",1,IF(OFFSET(C129,-1,0)=1,2,IF(OR(A129="s",A129=0),"S",IF(AND(OFFSET(C129,-1,0)=2,A129=4),3,IF(AND(OR(OFFSET(C129,-1,0)="s",OFFSET(C129,-1,0)=0),A129<>"s",A129>OFFSET(B129,-1,0)),OFFSET(B129,-1,0),A129))))) -> S | D129: =IF(OR(C129="S",C129=0),0,IF(ISERROR(K129),J129,SMALL(J129:K129,1))) -> 0 | E129: =IF($C129=1,OFFSET(E129,-1,0)+1,OFFSET(E129,-1,0)) -> 4 | F129: =IF($C129=1,0,IF($C129=2,OFFSET(F129,-1,0)+1,OFFSET(F129,-1,0))) -> 3 | G129: =IF(AND($C129<=2,$C129<>0),0,IF($C129=3,OFFSET(G129,-1,0)+1,OFFSET(G129,-1,0))) -> 0 | H129: =IF(AND($C129<=3,$C129<>0),0,IF($C129=4,OFFSET(H129,-1,0)+1,OFFSET(H129,-1,0))) -> 0 | I129: =IF(AND($C129<=4,$C129<>0),0,IF(AND($C129="S",$Y129>0),OFFSET(I129,-1,0)+1,OFFSET(I129,-1,0))) -> 0 | J129: 0 | K129: 0 | L129: =IF(OR(Y129>0,$C129=1),"F","") ->  | M129: Serviço | N129: =CHOOSE(1+LOG(1+2*(C129=1)+4*(C129=2)+8*(C129=3)+16*(C129=4)+32*(C129="S"),2),"","Nível 1","Nível 2","Nível 3","Nível 4","Serviço") -> Serviço | O129: - | P129: AGETOP | Q129: 41140 | R129: REGULARIZAÇÃO DO TERRENO SEM APILOAMENTO COM TRANSPORTE MANUAL DA TERRA ESCAVADA | S129: m2 | T129: 20.16 | U129: 1 | V129: 20.16 | Y129: 0 | Z129: 0
A130: S | B130: 2 | C130: S | D130: 0 | E130: 4 | F130: 3 | G130: 0 | H130: 0 | I130: 0 | J130: 0 | K130: 0 | M130: Serviço | N130: Serviço | O130: - | P130: AGETOP | Q130: 41002 | R130: APILOAMENTO | S130: m2 | T130: 20.16 | U130: 1 | V130: 20.16 | Y130: 0 | Z130: 0
A131: 2 | B131: 2 | C131: 2 | D131: 2 | E131: 4 | F131: 4 | G131: 0 | H131: 0 | I131: 0 | J131: 2 | K131: 14 | M131: Nível 2 | N131: Nível 2 | O131: - | P131: SINAPI | R131: DIVERSOS | S131: - | U131: 1 | V131: - | Y131: 0 | Z131: 0
A132: S | B132: 2 | C132: S | D132: 0 | E132: 4 | F132: 4 | G132: 0 | H132: 0 | I132: 0 | J132: 0 | K132: 0 | M132: Serviço | N132: Serviço | O132: - | P132: AGETOP | Q132: 60010 | R132: VERGA/CONTRAVERGA EM CONCRETO ARMADO FCK = 20 MPA | S132: m3 | T132: 0.02 | U132: 1 | V132: 0.02 | Y132: 0 | Z132: 0
A133: =CHOOSE(1+LOG(1+2*(ORÇAMENTO.Nivel="Nível 1")+4*(ORÇAMENTO.Nivel="Nível 2")+8*(ORÇAMENTO.Nivel="Nível 3")+16*(ORÇAMENTO.Nivel="Nível 4")+32*(ORÇAMENTO.Nivel="Serviço"),2),0,1,2,3,4,"S") -> 1 | B133: =IF(OR(C133="s",C133=0),OFFSET(B133,-1,0),C133) -> 1 | C133: =IF(OFFSET(C133,-1,0)="L",1,IF(OFFSET(C133,-1,0)=1,2,IF(OR(A133="s",A133=0),"S",IF(AND(OFFSET(C133,-1,0)=2,A133=4),3,IF(AND(OR(OFFSET(C133,-1,0)="s",OFFSET(C133,-1,0)=0),A133<>"s",A133>OFFSET(B133,-1,0)),OFFSET(B133,-1,0),A133))))) -> 1 | D133: =IF(OR(C133="S",C133=0),0,IF(ISERROR(K133),J133,SMALL(J133:K133,1))) -> 14 | E133: =IF($C133=1,OFFSET(E133,-1,0)+1,OFFSET(E133,-1,0)) -> 5 | F133: =IF($C133=1,0,IF($C133=2,OFFSET(F133,-1,0)+1,OFFSET(F133,-1,0))) -> 0 | G133: =IF(AND($C133<=2,$C133<>0),0,IF($C133=3,OFFSET(G133,-1,0)+1,OFFSET(G133,-1,0))) -> 0 | H133: =IF(AND($C133<=3,$C133<>0),0,IF($C133=4,OFFSET(H133,-1,0)+1,OFFSET(H133,-1,0))) -> 0 | I133: =IF(AND($C133<=4,$C133<>0),0,IF(AND($C133="S",$Y133>0),OFFSET(I133,-1,0)+1,OFFSET(I133,-1,0))) -> 0 | J133: 397 | K133: 14 | L133: =IF(OR(Y133>0,$C133=1),"F","") -> F | M133: Nível 1 | N133: =CHOOSE(1+LOG(1+2*(C133=1)+4*(C133=2)+8*(C133=3)+16*(C133=4)+32*(C133="S"),2),"","Nível 1","Nível 2","Nível 3","Nível 4","Serviço") -> Nível 1 | O133: 5. | P133: SINAPI | R133: 8 - IMPLANTAÇÃO DE BLOCO PADRÃO SECUC 2017 | S133: UN | T133: 1 | U133: 1 | V133: 1 | Y133: 0 | Z133: 0
A134: 2 | B134: 2 | C134: 2 | D134: 2 | E134: 5 | F134: 1 | G134: 0 | H134: 0 | I134: 0 | J134: 13 | K134: 2 | M134: Nível 2 | N134: Nível 2 | O134: - | P134: SINAPI | R134: SERVIÇOS PRELIMINARES | S134: - | U134: 1 | V134: - | Y134: 0 | Z134: 0
A135: S | B135: 2 | C135: S | D135: 0 | E135: 5 | F135: 1 | G135: 0 | H135: 0 | I135: 0 | J135: 0 | K135: 0 | M135: Serviço | N135: Serviço | O135: - | P135: AGETOP | Q135: 20121 | R135: DEM. MANUAL EM CONCR.SIMPLES C/TR.ATE CB.E CARGA (O.C.) | S135: m3 | T135: 9.5 | U135: 1 | V135: 9.5 | Y135: 0 | Z135: 0
A136: 2 | B136: 2 | C136: 2 | D136: 3 | E136: 5 | F136: 2 | G136: 0 | H136: 0 | I136: 0 | J136: 11 | K136: 3 | M136: Nível 2 | N136: Nível 2 | O136: - | P136: AGETOP | R136: TRANSPORTES | S136: - | U136: 1 | V136: - | Y136: 0 | Z136: 0
A137: S | B137: 2 | C137: S | D137: 0 | E137: 5 | F137: 2 | G137: 0 | H137: 0 | I137: 0 | J137: 0 | K137: 0 | M137: Serviço | N137: Serviço | O137: - | P137: SINAPI | Q137: 72900 | R137: TRANSPORTE DE ENTULHO COM CAMINHAO BASCULANTE 6 M3, RODOVIA PAVIMENTADA, DMT 0,5 A 1,0 KM | S137: M3 | T137: 9.5 | U137: 1 | V137: 9.5 | Y137: 0 | Z137: 0
A138: S | B138: 2 | C138: S | D138: 0 | E138: 5 | F138: 2 | G138: 0 | H138: 0 | I138: 0 | J138: 0 | K138: 0 | M138: Serviço | N138: Serviço | O138: - | P138: SINAPI | Q138: 72897 | R138: CARGA MANUAL DE ENTULHO EM CAMINHAO BASCULANTE 6 M3 | S138: M3 | T138: 9.5 | U138: 1 | V138: 9.5 | Y138: 0 | Z138: 0
A139: 2 | B139: 2 | C139: 2 | D139: 3 | E139: 5 | F139: 3 | G139: 0 | H139: 0 | I139: 0 | J139: 8 | K139: 3 | M139: Nível 2 | N139: Nível 2 | O139: - | P139: SINAPI | R139: DIVERSOS | S139: - | U139: 1 | V139: - | Y139: 0 | Z139: 0
A140: S | B140: 2 | C140: S | D140: 0 | E140: 5 | F140: 3 | G140: 0 | H140: 0 | I140: 0 | J140: 0 | K140: 0 | M140: Serviço | N140: Serviço | O140: - | P140: AGETOP | Q140: 270312 | R140: MURO DE ALVENARIA TIJOLO FURADO 1/2 VEZ ( H=2,50M) COM FUNDAÇÃO - SEM REVESTIMENTOS (PADRÃO GOINFRA) | S140: m2 | T140: 112.5 | U140: 1 | V140: 112.5 | Y140: 0 | Z140: 0
A141: S | B141: 2 | C141: S | D141: 0 | E141: 5 | F141: 3 | G141: 0 | H141: 0 | I141: 0 | J141: 0 | K141: 0 | M141: Serviço | N141: Serviço | O141: - | P141: AGETOP | Q141: 60010 | R141: VERGA/CONTRAVERGA EM CONCRETO ARMADO FCK = 20 MPA | S141: m3 | T141: 0.02 | U141: 1 | V141: 0.02 | Y141: 0 | Z141: 0
A142: 2 | B142: 2 | C142: 2 | D142: 3 | E142: 5 | F142: 4 | G142: 0 | H142: 0 | I142: 0 | J142: 5 | K142: 3 | M142: Nível 2 | N142: Nível 2 | O142: - | P142: SINAPI | R142: SERVIÇO EM TERRA | S142: - | U142: 1 | V142: - | Y142: 0 | Z142: 0
A143: S | B143: 2 | C143: S | D143: 0 | E143: 5 | F143: 4 | G143: 0 | H143: 0 | I143: 0 | J143: 0 | K143: 0 | M143: Serviço | N143: Serviço | O143: - | P143: AGETOP | Q143: 41140 | R143: REGULARIZAÇÃO DO TERRENO SEM APILOAMENTO COM TRANSPORTE MANUAL DA TERRA ESCAVADA | S143: m2 | T143: 60 | U143: 1 | V143: 60 | Y143: 0 | Z143: 0
A144: S | B144: 2 | C144: S | D144: 0 | E144: 5 | F144: 4 | G144: 0 | H144: 0 | I144: 0 | J144: 0 | K144: 0 | M144: Serviço | N144: Serviço | O144: - | P144: AGETOP | Q144: 41002 | R144: APILOAMENTO | S144: m2 | T144: 60 | U144: 1 | V144: 60 | Y144: 0 | Z144: 0
A145: 2 | B145: 2 | C145: 2 | D145: 2 | E145: 5 | F145: 5 | G145: 0 | H145: 0 | I145: 0 | J145: 2 | K145: 59 | M145: Nível 2 | N145: Nível 2 | O145: - | P145: SINAPI | R145: PINTURA | S145: - | U145: 1 | V145: - | Y145: 0 | Z145: 0
A146: S | B146: 2 | C146: S | D146: 0 | E146: 5 | F146: 5 | G146: 0 | H146: 0 | I146: 0 | J146: 0 | K146: 0 | M146: Serviço | N146: Serviço | O146: - | P146: AGETOP | Q146: 261000 | R146: PINTURA LATEX ACRILICA 2 DEMAOS C/SELADOR | S146: m2 | T146: 225 | U146: 1 | V146: 225 | Y146: 0 | Z146: 0
A147: 1 | B147: 1 | C147: 1 | D147: 157 | E147: 6 | F147: 0 | G147: 0 | H147: 0 | I147: 0 | J147: =IF(OR($C147="S",$C147=0),0,MATCH(0,OFFSET($D147,1,$C147,ROW($C$530)-ROW($C147)),0)) -> 383 | K147: =IF(OR($C147="S",$C147=0),0,MATCH(OFFSET($D147,0,$C147)+1,OFFSET($D147,1,$C147,ROW($C$530)-ROW($C147)),0)) -> 157 | L147: F | M147: Nível 1 | N147: Nível 1 | O147: 6. | P147: AGETOP | R147: BLOCO 03 SALAS PADRÃO SEDUC 2019 - LAJE | S147: UN | T147: 1 | U147: 1 | V147: 1 | Y147: 0 | Z147: 0
A148: 2 | B148: 2 | C148: 2 | D148: 2 | E148: 6 | F148: 1 | G148: 0 | H148: 0 | I148: 0 | J148: 156 | K148: 2 | M148: Nível 2 | N148: Nível 2 | O148: - | P148: AGETOP | R148: SERVIÇOS PRELIMINARES | S148: - | U148: 1 | V148: - | Y148: 0 | Z148: 0
A149: S | B149: 2 | C149: S | D149: 0 | E149: 6 | F149: 1 | G149: 0 | H149: 0 | I149: 0 | J149: 0 | K149: 0 | M149: Serviço | N149: Serviço | O149: - | P149: AGETOP | Q149: 20701 | R149: LOCAÇÃO DA OBRA, EXECUÇÃO DE GABARITO SEM REAPROVEITAMENTO, INCLUSO PINTURA (FACE INTERNA DO RIPÃO 15CM) E PIQUETE COM TESTEMUNHA | S149: m2 | T149: 190.26 | U149: 1 | V149: 190.26 | Y149: 0 | Z149: 0
A150: 2 | B150: 2 | C150: 2 | D150: 3 | E150: 6 | F150: 2 | G150: 0 | H150: 0 | I150: 0 | J150: 154 | K150: 3 | M150: Nível 2 | N150: Nível 2 | O150: - | P150: SINAPI | R150: TRANSPORTES | S150: - | U150: 1 | V150: - | Y150: 0 | Z150: 0
A151: S | B151: 2 | C151: S | D151: 0 | E151: 6 | F151: 2 | G151: 0 | H151: 0 | I151: 0 | J151: 0 | K151: 0 | M151: Serviço | N151: Serviço | O151: - | P151: SINAPI | Q151: 72897 | R151: CARGA MANUAL DE ENTULHO EM CAMINHAO BASCULANTE 6 M3 | S151: M3 | T151: 13.31 | U151: 1 | V151: 13.31 | Y151: 0 | Z151: 0
A152: S | B152: 2 | C152: S | D152: 0 | E152: 6 | F152: 2 | G152: 0 | H152: 0 | I152: 0 | J152: 0 | K152: 0 | M152: Serviço | N152: Serviço | O152: - | P152: SINAPI | Q152: 72900 | R152: TRANSPORTE DE ENTULHO COM CAMINHAO BASCULANTE 6 M3, RODOVIA PAVIMENTADA, DMT 0,5 A 1,0 KM | S152: M3 | T152: 13.31 | U152: 1 | V152: 13.31 | Y152: 0 | Z152: 0
A153: 2 | B153: 2 | C153: 2 | D153: 7 | E153: 6 | F153: 3 | G153: 0 | H153: 0 | I153: 0 | J153: 151 | K153: 7 | M153: Nível 2 | N153: Nível 2 | O153: - | P153: SINAPI | R153: SERVIÇO EM TERRA | S153: - | U153: 1 | V153: - | Y153: 0 | Z153: 0
A154: 3 | B154: 3 | C154: 3 | D154: 3 | E154: 6 | F154: 3 | G154: 1 | H154: 0 | I154: 0 | J154: 6 | K154: 3 | M154: Nível 3 | N154: Nível 3 | O154: - | P154: SINAPI | R154: BLOCO PADRÃO | S154: - | U154: 1 | V154: - | Y154: 0 | Z154: 0
A155: S | B155: 3 | C155: S | D155: 0 | E155: 6 | F155: 3 | G155: 1 | H155: 0 | I155: 0 | J155: 0 | K155: 0 | M155: Serviço | N155: Serviço | O155: - | P155: AGETOP | Q155: 41140 | R155: REGULARIZAÇÃO DO TERRENO SEM APILOAMENTO COM TRANSPORTE MANUAL DA TERRA ESCAVADA | S155: m2 | T155: 190.26 | U155: 1 | V155: 190.26 | Y155: 0 | Z155: 0
A156: S | B156: 3 | C156: S | D156: 0 | E156: 6 | F156: 3 | G156: 1 | H156: 0 | I156: 0 | J156: 0 | K156: 0 | M156: Serviço | N156: Serviço | O156: - | P156: AGETOP | Q156: 40905 | R156: APILOAMENTO MECÂNICO | S156: m2 | T156: 190.26 | U156: 1 | V156: 190.26 | Y156: 0 | Z156: 0
A157: 3 | B157: 3 | C157: 3 | D157: 3 | E157: 6 | F157: 3 | G157: 2 | H157: 0 | I157: 0 | J157: 3 | K157: 17 | M157: Nível 3 | N157: Nível 3 | O157: - | P157: SINAPI | R157: SPDA | S157: - | U157: 1 | V157: - | Y157: 0 | Z157: 0
A158: S | B158: 3 | C158: S | D158: 0 | E158: 6 | F158: 3 | G158: 2 | H158: 0 | I158: 0 | J158: 0 | K158: 0 | M158: Serviço | N158: Serviço | O158: - | P158: SINAPI | Q158: 93358 | R158: ESCAVAÇÃO MANUAL DE VALA COM PROFUNDIDADE MENOR OU IGUAL A 1,30 M. AF_03/2016 | S158: M3 | T158: 7.92 | U158: 1 | V158: 7.92 | Y158: 0 | Z158: 0 | AA158: Referência: AGETOP - 40101
A159: S | B159: 3 | C159: S | D159: 0 | E159: 6 | F159: 3 | G159: 2 | H159: 0 | I159: 0 | J159: 0 | K159: 0 | M159: Serviço | N159: Serviço | O159: - | P159: AGETOP | Q159: 40902 | R159: REATERRO COM APILOAMENTO | S159: m3 | T159: 7.92 | U159: 1 | V159: 7.92 | Y159: 0 | Z159: 0
A160: 2 | B160: 2 | C160: 2 | D160: 17 | E160: 6 | F160: 4 | G160: 0 | H160: 0 | I160: 0 | J160: 144 | K160: 17 | M160: Nível 2 | N160: Nível 2 | O160: - | P160: SINAPI | R160: FUNDAÇÕES E SONDAGENS | S160: - | U160: 1 | V160: - | Y160: 0 | Z160: 0
A161: 3 | B161: 3 | C161: 3 | D161: 4 | E161: 6 | F161: 4 | G161: 1 | H161: 0 | I161: 0 | J161: 16 | K161: 4 | M161: Nível 3 | N161: Nível 3 | O161: - | P161: SINAPI | R161: ESTACAS | S161: - | U161: 1 | V161: - | Y161: 0 | Z161: 0
A162: S | B162: 3 | C162: S | D162: 0 | E162: 6 | F162: 4 | G162: 1 | H162: 0 | I162: 0 | J162: 0 | K162: 0 | M162: Serviço | N162: Serviço | O162: - | P162: SINAPI | Q162: 98230 | R162: ESTACA BROCA DE CONCRETO, DIÂMETRO DE 30 CM, PROFUNDIDADE DE ATÉ 3 M, ESCAVAÇÃO MANUAL COM TRADO CONCHA, NÃO ARMADA. AF_03/2018 | S162: M | T162: 111.5 | U162: 1 | V162: 111.5 | Y162: 0 | Z162: 0 | AA162: Referência: AGETOP - 50302
A163: S | B163: 3 | C163: S | D163: 0 | E163: 6 | F163: 4 | G163: 1 | H163: 0 | I163: 0 | J163: 0 | K163: 0 | M163: Serviço | N163: Serviço | O163: - | P163: SINAPI | Q163: 96543 | R163: ARMAÇÃO DE BLOCO, VIGA BALDRAME E SAPATA UTILIZANDO AÇO CA-60 DE 5 MM - MONTAGEM. AF_06/2017 | S163: KG | T163: 38.15 | U163: 1 | V163: 38.15 | Y163: 0 | Z163: 0 | AA163: Referência: AGETOP - 52014
A164: S | B164: 3 | C164: S | D164: 0 | E164: 6 | F164: 4 | G164: 1 | H164: 0 | I164: 0 | J164: 0 | K164: 0 | M164: Serviço | N164: Serviço | O164: - | P164: SINAPI | Q164: 96545 | R164: ARMAÇÃO DE BLOCO, VIGA BALDRAME OU SAPATA UTILIZANDO AÇO CA-50 DE 8 MM - MONTAGEM. AF_06/2017 | S164: KG | T164: 89.6 | U164: 1 | V164: 89.6 | Y164: 0 | Z164: 0 | AA164: Referência: AGETOP - 52004
A165: 3 | B165: 3 | C165: 3 | D165: 9 | E165: 6 | F165: 4 | G165: 2 | H165: 0 | I165: 0 | J165: 12 | K165: 9 | M165: Nível 3 | N165: Nível 3 | O165: - | P165: SINAPI | R165: BLOCOS | S165: - | U165: 1 | V165: - | Y165: 0 | Z165: 0
A166: S | B166: 3 | C166: S | D166: 0 | E166: 6 | F166: 4 | G166: 2 | H166: 0 | I166: 0 | J166: 0 | K166: 0 | M166: Serviço | N166: Serviço | O166: - | P166: SINAPI | Q166: 96522 | R166: ESCAVAÇÃO MANUAL PARA BLOCO DE COROAMENTO OU SAPATA, SEM PREVISÃO DE FÔRMA. AF_06/2017 | S166: M3 | T166: 4.22 | U166: 1 | V166: 4.22 | Y166: 0 | Z166: 0 | AA166: Referência: AGETOP - 50901
A167: S | B167: 3 | C167: S | D167: 0 | E167: 6 | F167: 4 | G167: 2 | H167: 0 | I167: 0 | J167: 0 | K167: 0 | M167: Serviço | N167: Serviço | O167: - | P167: SINAPI | Q167: 96619 | R167: LASTRO DE CONCRETO MAGRO, APLICADO EM BLOCOS DE COROAMENTO OU SAPATAS, ESPESSURA DE 5 CM. AF_08/2017 | S167: M2 | T167: 0.32 | U167: 1 | V167: 0.32 | Y167: 0 | Z167: 0
A168: S | B168: 3 | C168: S | D168: 0 | E168: 6 | F168: 4 | G168: 2 | H168: 0 | I168: 0 | J168: 0 | K168: 0 | M168: Serviço | N168: Serviço | O168: - | P168: SINAPI | Q168: 94963 | R168: CONCRETO FCK = 15MPA, TRAÇO 1:3,4:3,5 (CIMENTO/ AREIA MÉDIA/ BRITA 1) - PREPARO MECÂNICO COM BETONEIRA 400 L. AF_07/2016 | S168: M3 | T168: 3.9 | U168: 1 | V168: 3.9 | Y168: 0 | Z168: 0
A169: S | B169: 3 | C169: S | D169: 0 | E169: 6 | F169: 4 | G169: 2 | H169: 0 | I169: 0 | J169: 0 | K169: 0 | M169: Serviço | N169: Serviço | O169: - | P169: AGETOP | Q169: 51026 | R169: LANÇAMENTO/APLICAÇÃO/ADENSAMENTO DE CONCRETO EM FUNDAÇÃO- (O.C.) | S169: m3 | T169: 3.9 | U169: 1 | V169: 3.9 | Y169: 0 | Z169: 0
A170: S | B170: 3 | C170: S | D170: 0 | E170: 6 | F170: 4 | G170: 2 | H170: 0 | I170: 0 | J170: 0 | K170: 0 | M170: Serviço | N170: Serviço | O170: - | P170: SINAPI | Q170: 96544 | R170: ARMAÇÃO DE BLOCO, VIGA BALDRAME OU SAPATA UTILIZANDO AÇO CA-50 DE 6,3 MM - MONTAGEM. AF_06/2017 | S170: KG | T170: 66.65 | U170: 1 | V170: 66.65 | Y170: 0 | Z170: 0 | AA170: Referência: AGETOP - 52003
A171: S | B171: 3 | C171: S | D171: 0 | E171: 6 | F171: 4 | G171: 2 | H171: 0 | I171: 0 | J171: 0 | K171: 0 | M171: Serviço | N171: Serviço | O171: - | P171: SINAPI | Q171: 96545 | R171: ARMAÇÃO DE BLOCO, VIGA BALDRAME OU SAPATA UTILIZANDO AÇO CA-50 DE 8 MM - MONTAGEM. AF_06/2017 | S171: KG | T171: 46.4 | U171: 1 | V171: 46.4 | Y171: 0 | Z171: 0 | AA171: Referência: AGETOP - 52004
A172: S | B172: 3 | C172: S | D172: 0 | E172: 6 | F172: 4 | G172: 2 | H172: 0 | I172: 0 | J172: 0 | K172: 0 | M172: Serviço | N172: Serviço | O172: - | P172: SINAPI | Q172: 96546 | R172: ARMAÇÃO DE BLOCO, VIGA BALDRAME OU SAPATA UTILIZANDO AÇO CA-50 DE 10 MM - MONTAGEM. AF_06/2017 | S172: KG | T172: 55.44 | U172: 1 | V172: 55.44 | Y172: 0 | Z172: 0 | AA172: Referência: AGETOP - 52005
A173: S | B173: 3 | C173: S | D173: 0 | E173: 6 | F173: 4 | G173: 2 | H173: 0 | I173: 0 | J173: 0 | K173: 0 | M173: Serviço | N173: Serviço | O173: - | P173: SINAPI | Q173: 96543 | R173: ARMAÇÃO DE BLOCO, VIGA BALDRAME E SAPATA UTILIZANDO AÇO CA-60 DE 5 MM - MONTAGEM. AF_06/2017 | S173: KG | T173: 38.18181818 | U173: 1 | V173: 38.18181818 | Y173: 0 | Z173: 0 | AA173: Referência: AGETOP - 52014
A174: 3 | B174: 3 | C174: 3 | D174: 3 | E174: 6 | F174: 4 | G174: 3 | H174: 0 | I174: 0 | J174: 3 | K174: 26 | M174: Nível 3 | N174: Nível 3 | O174: - | R174: ARRANQUE | S174: - | U174: 1 | V174: - | Y174: 0 | Z174: 0
A175: S | B175: 3 | C175: S | D175: 0 | E175: 6 | F175: 4 | G175: 3 | H175: 0 | I175: 0 | J175: 0 | K175: 0 | M175: Serviço | N175: Serviço | O175: - | P175: SINAPI | Q175: 96543 | R175: ARMAÇÃO DE BLOCO, VIGA BALDRAME E SAPATA UTILIZANDO AÇO CA-60 DE 5 MM - MONTAGEM. AF_06/2017 | S175: KG | T175: 5.71 | U175: 1 | V175: 5.71 | Y175: 0 | Z175: 0 | AA175: Referência: AGETOP - 52014
A176: S | B176: 3 | C176: S | D176: 0 | E176: 6 | F176: 4 | G176: 3 | H176: 0 | I176: 0 | J176: 0 | K176: 0 | M176: Serviço | N176: Serviço | O176: - | P176: SINAPI | Q176: 96546 | R176: ARMAÇÃO DE BLOCO, VIGA BALDRAME OU SAPATA UTILIZANDO AÇO CA-50 DE 10 MM - MONTAGEM. AF_06/2017 | S176: KG | T176: 52.92 | U176: 1 | V176: 52.92 | Y176: 0 | Z176: 0 | AA176: Referência: AGETOP - 52005
A177: 2 | B177: 2 | C177: 2 | D177: 27 | E177: 6 | F177: 5 | G177: 0 | H177: 0 | I177: 0 | J177: 127 | K177: 27 | M177: Nível 2 | N177: Nível 2 | O177: - | P177: SINAPI | R177: ESTRUTURA | S177: - | U177: 1 | V177: - | Y177: 0 | Z177: 0
A178: 3 | B178: 3 | C178: 3 | D178: 8 | E178: 6 | F178: 5 | G178: 1 | H178: 0 | I178: 0 | J178: 26 | K178: 8 | M178: Nível 3 | N178: Nível 3 | O178: - | P178: SINAPI | R178: VIGAS BALDRAMES | S178: - | U178: 1 | V178: - | Y178: 0 | Z178: 0
A179: S | B179: 3 | C179: S | D179: 0 | E179: 6 | F179: 5 | G179: 1 | H179: 0 | I179: 0 | J179: 0 | K179: 0 | M179: Serviço | N179: Serviço | O179: - | P179: SINAPI | Q179: 96527 | R179: ESCAVAÇÃO MANUAL DE VALA PARA VIGA BALDRAME, COM PREVISÃO DE FÔRMA. AF_06/2017 | S179: M3 | T179: 10.32 | U179: 1 | V179: 10.32 | Y179: 0 | Z179: 0 | AA179: Referência: AGETOP - 40101
A180: S | B180: 3 | C180: S | D180: 0 | E180: 6 | F180: 5 | G180: 1 | H180: 0 | I180: 0 | J180: 0 | K180: 0 | M180: Serviço | N180: Serviço | O180: - | P180: SINAPI | Q180: 96995 | R180: REATERRO MANUAL APILOADO COM SOQUETE. AF_10/2017 | S180: M3 | T180: 6.07 | U180: 1 | V180: 6.07 | Y180: 0 | Z180: 0 | AA180: Referência: AGETOP - 40902
A181: S | B181: 3 | C181: S | D181: 0 | E181: 6 | F181: 5 | G181: 1 | H181: 0 | I181: 0 | J181: 0 | K181: 0 | M181: Serviço | N181: Serviço | O181: - | P181: AGETOP | Q181: 60191 | R181: FORMA DE TABUA CINTA BALDRAME U=8 VEZES | S181: m2 | T181: 75.67 | U181: 1 | V181: 75.67 | Y181: 0 | Z181: 0
A182: S | B182: 3 | C182: S | D182: 0 | E182: 6 | F182: 5 | G182: 1 | H182: 0 | I182: 0 | J182: 0 | K182: 0 | M182: Serviço | N182: Serviço | O182: - | P182: SINAPI | Q182: 94964 | R182: CONCRETO FCK = 20MPA, TRAÇO 1:2,7:3 (CIMENTO/ AREIA MÉDIA/ BRITA 1) - PREPARO MECÂNICO COM BETONEIRA 400 L. AF_07/2016 | S182: M3 | T182: 4.25 | U182: 1 | V182: 4.25 | Y182: 0 | Z182: 0
A183: S | B183: 3 | C183: S | D183: 0 | E183: 6 | F183: 5 | G183: 1 | H183: 0 | I183: 0 | J183: 0 | K183: 0 | M183: Serviço | N183: Serviço | O183: - | P183: SINAPI | Q183: 92873 | R183: LANÇAMENTO COM USO DE BALDES, ADENSAMENTO E ACABAMENTO DE CONCRETO EM ESTRUTURAS. AF_12/2015 | S183: M3 | T183: 4.25 | U183: 1 | V183: 4.25 | Y183: 0 | Z183: 0 | AA183: Referência: AGETOP - 60801
A184: S | B184: 3 | C184: S | D184: 0 | E184: 6 | F184: 5 | G184: 1 | H184: 0 | I184: 0 | J184: 0 | K184: 0 | M184: Serviço | N184: Serviço | O184: - | P184: SINAPI | Q184: 96545 | R184: ARMAÇÃO DE BLOCO, VIGA BALDRAME OU SAPATA UTILIZANDO AÇO CA-50 DE 8 MM - MONTAGEM. AF_06/2017 | S184: KG | T184: 176.44 | U184: 1 | V184: 176.44 | Y184: 0 | Z184: 0 | AA184: Referência: AGETOP - 52004
A185: S | B185: 3 | C185: S | D185: 0 | E185: 6 | F185: 5 | G185: 1 | H185: 0 | I185: 0 | J185: 0 | K185: 0 | M185: Serviço | N185: Serviço | O185: - | P185: SINAPI | Q185: 96543 | R185: ARMAÇÃO DE BLOCO, VIGA BALDRAME E SAPATA UTILIZANDO AÇO CA-60 DE 5 MM - MONTAGEM. AF_06/2017 | S185: KG | T185: 96.56 | U185: 1 | V185: 96.56 | Y185: 0 | Z185: 0 | AA185: Referência: AGETOP - 52014
A186: 3 | B186: 3 | C186: 3 | D186: 6 | E186: 6 | F186: 5 | G186: 2 | H186: 0 | I186: 0 | J186: 18 | K186: 6 | M186: Nível 3 | N186: Nível 3 | O186: - | P186: SINAPI | R186: PILARES | S186: - | U186: 1 | V186: - | Y186: 0 | Z186: 0
A187: S | B187: 3 | C187: S | D187: 0 | E187: 6 | F187: 5 | G187: 2 | H187: 0 | I187: 0 | J187: 0 | K187: 0 | M187: Serviço | N187: Serviço | O187: - | P187: SINAPI | Q187: 92426 | R187: MONTAGEM E DESMONTAGEM DE FÔRMA DE PILARES RETANGULARES E ESTRUTURAS SIMILARES COM ÁREA MÉDIA DAS SEÇÕES MENOR OU IGUAL A 0,25 M², PÉ-DIREITO SIMPLES, EM CHAPA DE MADEIRA COMPENSADA RESINADA, 8 UTILIZAÇÕES. AF_12/2015 | S187: M2 | T187: 38.19 | U187: 1 | V187: 38.19 | Y187: 0 | Z187: 0
A188: S | B188: 3 | C188: S | D188: 0 | E188: 6 | F188: 5 | G188: 2 | H188: 0 | I188: 0 | J188: 0 | K188: 0 | M188: Serviço | N188: Serviço | O188: - | P188: SINAPI | Q188: 94964 | R188: CONCRETO FCK = 20MPA, TRAÇO 1:2,7:3 (CIMENTO/ AREIA MÉDIA/ BRITA 1) - PREPARO MECÂNICO COM BETONEIRA 400 L. AF_07/2016 | S188: M3 | T188: 1.82 | U188: 1 | V188: 1.82 | Y188: 0 | Z188: 0
A189: S | B189: 3 | C189: S | D189: 0 | E189: 6 | F189: 5 | G189: 2 | H189: 0 | I189: 0 | J189: 0 | K189: 0 | M189: Serviço | N189: Serviço | O189: - | P189: SINAPI | Q189: 92873 | R189: LANÇAMENTO COM USO DE BALDES, ADENSAMENTO E ACABAMENTO DE CONCRETO EM ESTRUTURAS. AF_12/2015 | S189: M3 | T189: 1.82 | U189: 1 | V189: 1.82 | Y189: 0 | Z189: 0 | AA189: Referência: AGETOP - 60801
A190: S | B190: 3 | C190: S | D190: 0 | E190: 6 | F190: 5 | G190: 2 | H190: 0 | I190: 0 | J190: 0 | K190: 0 | M190: Serviço | N190: Serviço | O190: - | P190: SINAPI | Q190: 92778 | R190: ARMAÇÃO DE PILAR OU VIGA DE UMA ESTRUTURA CONVENCIONAL DE CONCRETO ARMADO EM UMA EDIFICAÇÃO TÉRREA OU SOBRADO UTILIZANDO AÇO CA-50 DE 10,0 MM - MONTAGEM. AF_12/2015 | S190: KG | T190: 108.66 | U190: 1 | V190: 108.66 | Y190: 0 | Z190: 0 | AA190: Referência: AGETOP - 60305
A191: S | B191: 3 | C191: S | D191: 0 | E191: 6 | F191: 5 | G191: 2 | H191: 0 | I191: 0 | J191: 0 | K191: 0 | M191: Serviço | N191: Serviço | O191: - | P191: SINAPI | Q191: 92775 | R191: ARMAÇÃO DE PILAR OU VIGA DE UMA ESTRUTURA CONVENCIONAL DE CONCRETO ARMADO EM UMA EDIFICAÇÃO TÉRREA OU SOBRADO UTILIZANDO AÇO CA-60 DE 5,0 MM - MONTAGEM. AF_12/2015 | S191: KG | T191: 49.5 | U191: 1 | V191: 49.5 | Y191: 0 | Z191: 0 | AA191: Referência: AGETOP - 60314
A192: 3 | B192: 3 | C192: 3 | D192: 8 | E192: 6 | F192: 5 | G192: 3 | H192: 0 | I192: 0 | J192: 12 | K192: 8 | M192: Nível 3 | N192: Nível 3 | O192: - | P192: SINAPI | R192: VIGAS DE COBERTURA | S192: - | U192: 1 | V192: - | Y192: 0 | Z192: 0
A193: S | B193: 3 | C193: S | D193: 0 | E193: 6 | F193: 5 | G193: 3 | H193: 0 | I193: 0 | J193: 0 | K193: 0 | M193: Serviço | N193: Serviço | O193: - | P193: SINAPI | Q193: 92464 | R193: MONTAGEM E DESMONTAGEM DE FÔRMA DE VIGA, ESCORAMENTO METÁLICO, PÉ-DIREITO SIMPLES, EM CHAPA DE MADEIRA RESINADA, 8 UTILIZAÇÕES. AF_12/2015 | S193: M2 | T193: 68.47 | U193: 1 | V193: 68.47 | Y193: 0 | Z193: 0 | AA193: Referência: AGETOP - 60209
A194: S | B194: 3 | C194: S | D194: 0 | E194: 6 | F194: 5 | G194: 3 | H194: 0 | I194: 0 | J194: 0 | K194: 0 | M194: Serviço | N194: Serviço | O194: - | P194: SINAPI | Q194: 94964 | R194: CONCRETO FCK = 20MPA, TRAÇO 1:2,7:3 (CIMENTO/ AREIA MÉDIA/ BRITA 1) - PREPARO MECÂNICO COM BETONEIRA 400 L. AF_07/2016 | S194: M3 | T194: 4.08 | U194: 1 | V194: 4.08 | Y194: 0 | Z194: 0
A195: S | B195: 3 | C195: S | D195: 0 | E195: 6 | F195: 5 | G195: 3 | H195: 0 | I195: 0 | J195: 0 | K195: 0 | M195: Serviço | N195: Serviço | O195: - | P195: SINAPI | Q195: 92873 | R195: LANÇAMENTO COM USO DE BALDES, ADENSAMENTO E ACABAMENTO DE CONCRETO EM ESTRUTURAS. AF_12/2015 | S195: M3 | T195: 4.08 | U195: 1 | V195: 4.08 | Y195: 0 | Z195: 0 | AA195: Referência: AGETOP - 60801
A196: S | B196: 3 | C196: S | D196: 0 | E196: 6 | F196: 5 | G196: 3 | H196: 0 | I196: 0 | J196: 0 | K196: 0 | M196: Serviço | N196: Serviço | O196: - | P196: SINAPI | Q196: 92777 | R196: ARMAÇÃO DE PILAR OU VIGA DE UMA ESTRUTURA CONVENCIONAL DE CONCRETO ARMADO EM UMA EDIFICAÇÃO TÉRREA OU SOBRADO UTILIZANDO AÇO CA-50 DE 8,0 MM - MONTAGEM. AF_12/2015 | S196: KG | T196: 52.8 | U196: 1 | V196: 52.8 | Y196: 0 | Z196: 0 | AA196: Referência: AGETOP - 60304
A197: S | B197: 3 | C197: S | D197: 0 | E197: 6 | F197: 5 | G197: 3 | H197: 0 | I197: 0 | J197: 0 | K197: 0 | M197: Serviço | N197: Serviço | O197: - | P197: SINAPI | Q197: 92778 | R197: ARMAÇÃO DE PILAR OU VIGA DE UMA ESTRUTURA CONVENCIONAL DE CONCRETO ARMADO EM UMA EDIFICAÇÃO TÉRREA OU SOBRADO UTILIZANDO AÇO CA-50 DE 10,0 MM - MONTAGEM. AF_12/2015 | S197: KG | T197: 159.51 | U197: 1 | V197: 159.51 | Y197: 0 | Z197: 0 | AA197: Referência: AGETOP - 60305
A198: S | B198: 3 | C198: S | D198: 0 | E198: 6 | F198: 5 | G198: 3 | H198: 0 | I198: 0 | J198: 0 | K198: 0 | M198: Serviço | N198: Serviço | O198: - | P198: SINAPI | Q198: 92779 | R198: ARMAÇÃO DE PILAR OU VIGA DE UMA ESTRUTURA CONVENCIONAL DE CONCRETO ARMADO EM UMA EDIFICAÇÃO TÉRREA OU SOBRADO UTILIZANDO AÇO CA-50 DE 12,5 MM - MONTAGEM. AF_12/2015 | S198: KG | T198: 52.8 | U198: 1 | V198: 52.8 | Y198: 0 | Z198: 0
A199: S | B199: 3 | C199: S | D199: 0 | E199: 6 | F199: 5 | G199: 3 | H199: 0 | I199: 0 | J199: 0 | K199: 0 | M199: Serviço | N199: Serviço | O199: - | P199: SINAPI | Q199: 92775 | R199: ARMAÇÃO DE PILAR OU VIGA DE UMA ESTRUTURA CONVENCIONAL DE CONCRETO ARMADO EM UMA EDIFICAÇÃO TÉRREA OU SOBRADO UTILIZANDO AÇO CA-60 DE 5,0 MM - MONTAGEM. AF_12/2015 | S199: KG | T199: 68.3 | U199: 1 | V199: 68.3 | Y199: 0 | Z199: 0 | AA199: Referência: AGETOP - 60314
A200: 3 | B200: 3 | C200: 3 | D200: 2 | E200: 6 | F200: 5 | G200: 4 | H200: 0 | I200: 0 | J200: 4 | K200: 2 | M200: Nível 3 | N200: Nível 3 | O200: - | P200: SINAPI | R200: LAJE | S200: - | U200: 1 | V200: - | Y200: 0 | Z200: 0
A201: S | B201: 3 | C201: S | D201: 0 | E201: 6 | F201: 5 | G201: 4 | H201: 0 | I201: 0 | J201: 0 | K201: 0 | M201: Serviço | N201: Serviço | O201: - | P201: SINAPI | Q201: 74202/1 | R201: LAJE PRE-MOLDADA P/FORRO, SOBRECARGA 100KG/M2, VAOS ATE 3,50M/E=8CM, C/LAJOTAS E CAP.C/CONC FCK=20MPA, 3CM, INTER-EIXO 38CM, C/ESCORAMENTO (REAPR.3X) E FERRAGEM NEGATIVA | S201: M2 | T201: 151.86 | U201: 1 | V201: 151.86 | Y201: 0 | Z201: 0 | AA201: Referência: AGETOP - 61101
A202: 3 | B202: 3 | C202: 3 | D202: 2 | E202: 6 | F202: 5 | G202: 5 | H202: 0 | I202: 0 | J202: 2 | M202: Nível 3 | N202: Nível 3 | O202: - | P202: SINAPI | R202: OUTROS | S202: - | U202: 1 | V202: - | Y202: 0 | Z202: 0
A203: S | B203: 3 | C203: S | D203: 0 | E203: 6 | F203: 5 | G203: 5 | H203: 0 | I203: 0 | J203: 0 | K203: 0 | M203: Serviço | N203: Serviço | O203: - | P203: AGETOP | Q203: 50251 | R203: CORPO DE PROVA | S203: Un | T203: 6 | U203: 1 | V203: 6 | Y203: 0 | Z203: 0
A204: 2 | B204: 2 | C204: 2 | D204: 48 | E204: 6 | F204: 6 | G204: 0 | H204: 0 | I204: 0 | J204: 100 | K204: 48 | M204: Nível 2 | N204: Nível 2 | O204: - | P204: SINAPI | R204: INSTALAÇÕES ELÉTRICAS | S204: - | U204: 1 | V204: - | Y204: 0 | Z204: 0
A205: 3 | B205: 3 | C205: 3 | D205: 32 | E205: 6 | F205: 6 | G205: 1 | H205: 0 | I205: 0 | J205: 47 | K205: 32 | M205: Nível 3 | N205: Nível 3 | O205: - | P205: SINAPI | R205: INST. ELÉTRICAS | S205: - | U205: 1 | V205: - | Y205: 0 | Z205: 0
A206: S | B206: 3 | C206: S | D206: 0 | E206: 6 | F206: 6 | G206: 1 | H206: 0 | I206: 0 | J206: 0 | K206: 0 | M206: Serviço | N206: Serviço | O206: - | P206: AGETOP | Q206: 70351 | R206: BRACADEIRA METALICA TIPO "U" DIAM. 3/4" | S206: Un | T206: 60 | U206: 1 | V206: 60 | Y206: 0 | Z206: 0
... 397 more rows

Sheet Resumo
B3: UNIDADE ESCOLAR | G3: CÓDIGO INEP
B4: =Orçamento!$O$4 -> COORDENAÇÃO REGIONAL DE EDUCAÇÃO DE TRINDADE | G4: =Orçamento!X4 -> 0
B6: OBRA | G6: CIDADE
B7: =Orçamento!$O$7 -> REFORMA E AMPLIAÇÃO | G7: =Orçamento!$X$7 -> TRINDADE
B9: ENDEREÇO | G9: CRE
B10: =Orçamento!$R$10 -> AVENIDA MANOEL MONTEIRO, 163 - BAIRRO SANTUÁRIO | G10: =Orçamento!$O$10 -> CRE-TRINDADE
B12: REFERÊNCIA | D12: DATA | G12: ÁREA TOTAL CONSTRUÍDA (M²)
B13: =CONCATENATE("AGETOP E SINAPI - ",Orçamento!$T$10) -> AGETOP E SINAPI - ONERADA | D13: =Orçamento!$S$7 -> 2020-09-02 | G13: =Orçamento!$X$13 -> 769.17
A14: FILTRO
B15: RESUMO GERAL DO ORÇAMENTO
A16: ↓ | B16: ITEM | C16: DESCRIÇÃO DOS SERVIÇOS | G16: PREÇO SEM BDI | H16: PREÇO COM BDI | I16: PARTICIP. (%)
A17: =IF(G17>0,"F","") ->  | B17: 1. | C17: =Orçamento!$P583 -> 1. ADEQUAÇÕES EXTERNAS ACESSIBILIDADE | G17: =IFERROR(Orçamento!S583,"-") -> 0 | H17: =IFERROR(Orçamento!X583,"") -> 0 | I17: =Orçamento!AA583 -> 
A18: =IF(G18>0,"F","") ->  | B18: 2. | C18: =Orçamento!$P584 -> 2. EXECUÇÃO DE NOVA COBERTURA | G18: =IFERROR(Orçamento!S584,"-") -> 0 | H18: =IFERROR(Orçamento!X584,"") -> 0 | I18: =Orçamento!AA584 -> 
B19: 3. | C19: =Orçamento!$P585 -> 3. REFORMA GERAL | G19: =IFERROR(Orçamento!S585,"-") -> 0 | H19: =IFERROR(Orçamento!X585,"") -> 0 | I19: =Orçamento!AA585 -> 
B20: 4. | C20: =Orçamento!$P586 -> 7 - IMPLANTAÇÃO DE PASSARELA COBERTA | G20: =IFERROR(Orçamento!S586,"-") -> 0 | H20: =IFERROR(Orçamento!X586,"") -> 0 | I20: =Orçamento!AA586 -> 
B21: 5. | C21: =Orçamento!$P587 -> 8 - IMPLANTAÇÃO DE BLOCO PADRÃO SECUC 2017 | G21: =IFERROR(Orçamento!S587,"-") -> 0 | H21: =IFERROR(Orçamento!X587,"") -> 0 | I21: =Orçamento!AA587 -> 
B22: 6. | C22: =Orçamento!$P588 -> BLOCO 03 SALAS PADRÃO SEDUC 2019 - LAJE | G22: =IFERROR(Orçamento!S588,"-") -> 0 | H22: =IFERROR(Orçamento!X588,"") -> 0 | I22: =Orçamento!AA588 -> 
B23: 7. | C23: =Orçamento!$P589 -> PASSARELA MODELO 02 - PADRÃO SÉC. XXI 2015 | G23: =IFERROR(Orçamento!S589,"-") -> 0 | H23: =IFERROR(Orçamento!X589,"") -> 0 | I23: =Orçamento!AA589 -> 
B24: 8. | C24: =Orçamento!$P590 -> ADMINISTRAÇÃO LOCAL | G24: =IFERROR(Orçamento!S590,"-") -> 0 | H24: =IFERROR(Orçamento!X590,"") -> 0 | I24: =Orçamento!AA590 -> 
B25: 9. | C25: =Orçamento!$P591 -> OBRAS | G25: =IFERROR(Orçamento!S591,"-") -> 0 | H25: =IFERROR(Orçamento!X591,"") -> 0 | I25: =Orçamento!AA591 -> 
B26: 10. | C26: =Orçamento!$P592 -> PROJETO ELÉTRICO | G26: =IFERROR(Orçamento!S592,"-") -> 0 | H26: =IFERROR(Orçamento!X592,"") -> 0 | I26: =Orçamento!AA592 -> 
B27: 11. | C27: =Orçamento!$P593 -> PROJETO DE GÁS | G27: =IFERROR(Orçamento!S593,"-") -> 0 | H27: =IFERROR(Orçamento!X593,"") -> 0 | I27: =Orçamento!AA593 -> 
B28: 12. | C28: =Orçamento!$P594 -> PROJETO DE PREVENÇÃO E COMBATE A INCÊNDIO | G28: =IFERROR(Orçamento!S594,"-") -> 0 | H28: =IFERROR(Orçamento!X594,"") -> 0 | I28: =Orçamento!AA594 -> 
B29: 13. | C29: =Orçamento!$P595 -> PROJETO HIDROSSANITÁRIO | G29: =IFERROR(Orçamento!S595,"-") -> 0 | H29: =IFERROR(Orçamento!X595,"") -> 0 | I29: =Orçamento!AA595 -> 
B30: 14. | C30: =Orçamento!$P596 -> PROJETO ESTRUTURAL - COBERTURA | G30: =IFERROR(Orçamento!S596,"-") -> 0 | H30: =IFERROR(Orçamento!X596,"") -> 0 | I30: =Orçamento!AA596 -> 
B31: 15. | C31: =Orçamento!$P597 -> PROJETO ESTRUTURAS METÁLICAS | G31: =IFERROR(Orçamento!S597,"-") -> 0 | H31: =IFERROR(Orçamento!X597,"") -> 0 | I31: =Orçamento!AA597 -> 
B32: 16. | C32: =Orçamento!$P598 ->  | G32: =IFERROR(Orçamento!S598,"-") -> 0 | H32: =IFERROR(Orçamento!X598,"") -> 0 | I32: =Orçamento!AA598 -> 
B33: 17. | C33: =Orçamento!$P599 ->  | G33: =IFERROR(Orçamento!S599,"-") -> 0 | H33: =IFERROR(Orçamento!X599,"") -> 0 | I33: =Orçamento!AA599 -> 
B34: 18. | C34: =Orçamento!$P600 ->  | G34: =IFERROR(Orçamento!S600,"-") -> 0 | H34: =IFERROR(Orçamento!X600,"") -> 0 | I34: =Orçamento!AA600 -> 
B35: 19. | C35: =Orçamento!$P601 ->  | G35: =IFERROR(Orçamento!S601,"-") -> 0 | H35: =IFERROR(Orçamento!X601,"") -> 0 | I35: =Orçamento!AA601 -> 
B36: 20. | C36: =Orçamento!$P602 ->  | G36: =IFERROR(Orçamento!S602,"-") -> 0 | H36: =IFERROR(Orçamento!X602,"") -> 0 | I36: =Orçamento!AA602 -> 
A37: F | B37: TOTAL GERAL DO ORÇAMENTO (R$) | G37: =SUM(G17:G36) -> 0 | H37: =SUM(H17:H36) -> 0 | I37: =SUM(I17:I36) -> 
A38: F
A39: F

Sheet Somatório
B3: UNIDADE ESCOLAR | E3: CÓDIGO INEP
B4: =Orçamento!$O$4 -> COORDENAÇÃO REGIONAL DE EDUCAÇÃO DE TRINDADE | E4: =Orçamento!X4 -> 0
B6: OBRA | E6: CIDADE
B7: =Orçamento!$O$7 -> REFORMA E AMPLIAÇÃO | E7: =Orçamento!$X$7 -> TRINDADE
B9: ENDEREÇO | E9: CRE
B10: =Orçamento!$R$10 -> AVENIDA MANOEL MONTEIRO, 163 - BAIRRO SANTUÁRIO | E10: =Orçamento!$O$10 -> CRE-TRINDADE
B12: REFERÊNCIA | D12: DATA | E12: ÁREA TOTAL CONSTRUÍDA (M²)
B13: =CONCATENATE("AGETOP E SINAPI - ",Orçamento!$T$10) -> AGETOP E SINAPI - ONERADA | D13: =Orçamento!$S$7 -> 2020-09-02 | E13: =Orçamento!$X$13 -> 769.17
A14: FILTRO
B15: SOMATÓRIO DE SERVIÇOS
A16: ↓ | B16: ITEM | C16: DESCRIÇÃO DOS SERVIÇOS | D16: PREÇO SEM BDI (R$) | E16: PREÇO COM BDI (R$) | F16: PARTIC. ( % )
A17: =IF(D17>0,"F","") ->  | B17: a. | C17: =Orçamento!P549 -> SERVIÇOS PRELIMINARES | D17: =Orçamento!S549 -> 0 | E17: =Orçamento!X549 -> 0 | F17: =Orçamento!AA549 -> 0
A18: =IF(D18>0,"F","") ->  | B18: b. | C18: =Orçamento!P550 -> TRANSPORTES | D18: =Orçamento!S550 -> 0 | E18: =Orçamento!X550 -> 0 | F18: =Orçamento!AA550 -> 0
B19: c. | C19: =Orçamento!P551 -> SERVIÇO EM TERRA | D19: =Orçamento!S551 -> 0 | E19: =Orçamento!X551 -> 0 | F19: =Orçamento!AA551 -> 0
B20: d. | C20: =Orçamento!P552 -> FUNDAÇÕES E SONDAGENS | D20: =Orçamento!S552 -> 0 | E20: =Orçamento!X552 -> 0 | F20: =Orçamento!AA552 -> 0
B21: e. | C21: =Orçamento!P553 -> ESTRUTURA | D21: =Orçamento!S553 -> 0 | E21: =Orçamento!X553 -> 0 | F21: =Orçamento!AA553 -> 0
B22: f. | C22: =Orçamento!P554 -> INSTALAÇÕES ELÉTRICAS | D22: =Orçamento!S554 -> 0 | E22: =Orçamento!X554 -> 0 | F22: =Orçamento!AA554 -> 0
B23: g. | C23: =Orçamento!P555 -> INSTALAÇÕES HIDROSSANITÁRIAS | D23: =Orçamento!S555 -> 0 | E23: =Orçamento!X555 -> 0 | F23: =Orçamento!AA555 -> 0
B24: h | C24: =Orçamento!P556 -> INSTALAÇÕES ESPECIAIS | D24: =Orçamento!S556 -> 0 | E24: =Orçamento!X556 -> 0 | F24: =Orçamento!AA556 -> 0
B25: i. | C25: =Orçamento!P557 -> ALVENARIAS E DIVISÓRIAS | D25: =Orçamento!S557 -> 0 | E25: =Orçamento!X557 -> 0 | F25: =Orçamento!AA557 -> 0
B26: j. | C26: =Orçamento!P558 -> ALVENARIA AUTO-PORTANTE | D26: =Orçamento!S558 -> 0 | E26: =Orçamento!X558 -> 0 | F26: =Orçamento!AA558 -> 0
B27: k. | C27: =Orçamento!P559 -> IMPERMEABILIZAÇÃO | D27: =Orçamento!S559 -> 0 | E27: =Orçamento!X559 -> 0 | F27: =Orçamento!AA559 -> 0
B28: l. | C28: =Orçamento!P560 -> ISOLAMENTO TÉRMICO E ACÚSTICO | D28: =Orçamento!S560 -> 0 | E28: =Orçamento!X560 -> 0 | F28: =Orçamento!AA560 -> 0
B29: m. | C29: =Orçamento!P561 -> ESTRUTURA DE MADEIRA | D29: =Orçamento!S561 -> 0 | E29: =Orçamento!X561 -> 0 | F29: =Orçamento!AA561 -> 0
B30: n. | C30: =Orçamento!P562 -> ESTRUTURAS METÁLICAS | D30: =Orçamento!S562 -> 0 | E30: =Orçamento!X562 -> 0 | F30: =Orçamento!AA562 -> 0
B31: o. | C31: =Orçamento!P563 -> COBERTURAS | D31: =Orçamento!S563 -> 0 | E31: =Orçamento!X563 -> 0 | F31: =Orçamento!AA563 -> 0
B32: p. | C32: =Orçamento!P564 -> ESQUADRIAS DE MADEIRA | D32: =Orçamento!S564 -> 0 | E32: =Orçamento!X564 -> 0 | F32: =Orçamento!AA564 -> 0
B33: q. | C33: =Orçamento!P565 -> ESQUADRIAS METÁLICAS | D33: =Orçamento!S565 -> 0 | E33: =Orçamento!X565 -> 0 | F33: =Orçamento!AA565 -> 0
B34: r. | C34: =Orçamento!P566 -> VIDROS | D34: =Orçamento!S566 -> 0 | E34: =Orçamento!X566 -> 0 | F34: =Orçamento!AA566 -> 0
B35: s. | C35: =Orçamento!P567 -> REVESTIMENTO DE PAREDE | D35: =Orçamento!S567 -> 0 | E35: =Orçamento!X567 -> 0 | F35: =Orçamento!AA567 -> 0
B36: t. | C36: =Orçamento!P568 -> FORROS | D36: =Orçamento!S568 -> 0 | E36: =Orçamento!X568 -> 0 | F36: =Orçamento!AA568 -> 0
B37: u. | C37: =Orçamento!P569 -> REVESTIMENTO DE PISO | D37: =Orçamento!S569 -> 0 | E37: =Orçamento!X569 -> 0 | F37: =Orçamento!AA569 -> 0
B38: v. | C38: =Orçamento!P570 -> FERRAGENS | D38: =Orçamento!S570 -> 0 | E38: =Orçamento!X570 -> 0 | F38: =Orçamento!AA570 -> 0
B39: w. | C39: =Orçamento!P571 -> MARCENARIA | D39: =Orçamento!S571 -> 0 | E39: =Orçamento!X571 -> 0 | F39: =Orçamento!AA571 -> 0
B40: x. | C40: =Orçamento!P572 -> ADMINISTRAÇÃO | D40: =Orçamento!S572 -> 0 | E40: =Orçamento!X572 -> 0 | F40: =Orçamento!AA572 -> 0
B41: y. | C41: =Orçamento!P573 -> PINTURA | D41: =Orçamento!S573 -> 0 | E41: =Orçamento!X573 -> 0 | F41: =Orçamento!AA573 -> 0
B42: z. | C42: =Orçamento!P574 -> DIVERSOS | D42: =Orçamento!S574 -> 0 | E42: =Orçamento!X574 -> 0 | F42: =Orçamento!AA574 -> 0
A43: F | B43: TOTAL GERAL DO ORÇAMENTO | D43: =SUM(D17:D42) -> 0 | E43: =SUM(E17:E42) -> 0 | F43: =SUM(F17:F42) -> 0
B45: (*) Para itens da AGETOP, os vidros não estão inclusos nas esquadrias e já foram considerados os custos de contramarco para as esquadrias de alumínio;

Sheet Cronog_120_Dias
B3: UNIDADE ESCOLAR | I3: PRAZO
B4: =Orçamento!O4 -> COORDENAÇÃO REGIONAL DE EDUCAÇÃO DE TRINDADE | I4: 120 DIAS CORRIDOS
B6: OBRA | I6: DATA
B7: =Orçamento!O7 -> REFORMA E AMPLIAÇÃO | I7: =Orçamento!S7 -> 2020-09-02
B9: LOCAL | I9: ÁREA TOTAL CONSTRUÍDA (M²)
A10: FILTRO | B10: =Orçamento!X7 -> TRINDADE | I10: =Orçamento!X13 -> 769.17
B12: CRONOGRAMA - FÍSICO FINANCEIRO
A13: ↓ | B13: CUSTO TOTAL: | C13: =D93 -> 0 | D13: VALOR | E13: Dias: | F13: 30 | J13: 60 | N13: 90 | R13: 120 | V13: TOTAL
B14: DESCRIÇÃO DOS SERVIÇOS | E14: % | F14: 1ª PARCELA | J14: 2ª PARCELA | N14: 3ª PARCELA | R14: 4ª PARCELA
A15: =IF(D15>0,"F","") ->  | B15: SERVIÇOS PRELIMINARES | D15: =Orçamento!X549 -> 0 | E15: =Orçamento!AA549 -> 0 | F15: =ROUND(F17*$D$15,2) -> 0 | J15: =ROUND(J17*$D$15,2) -> 0 | N15: =ROUND(N17*$D$15,2) -> 0 | R15: =ROUND(R17*$D$15,2) -> 0 | V15: =SUM(F15:U15) -> 0 | X15: =IF(D15=V15,"OK","ERRO") -> OK
A16: =IF(A15="F",A15,"") -> 
A17: =IF(A16="F",A16,"") ->  | F17: 1 | J17: 0 | N17: 0 | R17: =100%-(SUM(F17:Q17)) -> 0 | V17: =IFERROR(E15/100,"") -> 0 | X17: =IF(E15=V17*100,"OK","ERRO") -> OK
A18: =IF(D18>0,"F","") ->  | B18: TRANSPORTES | D18: =Orçamento!X550 -> 0 | E18: =Orçamento!AA550 -> 0 | F18: =ROUND(F20*$D$18,2) -> 0 | J18: =ROUND(J20*$D$18,2) -> 0 | N18: =ROUND(N20*$D$18,2) -> 0 | R18: =ROUND(R20*$D$18,2) -> 0 | V18: =SUM(F18:U18) -> 0 | X18: =IF(D18=V18,"OK","ERRO") -> OK
A19: =IF(A18="F",A18,"") -> 
A20: =IF(A19="F",A19,"") ->  | F20: 0.2487518801 | J20: =F20 -> 0.2487518801 | N20: =F20 -> 0.2487518801 | R20: =100%-(SUM(F20:Q20)) -> 0.2537443596 | V20: =IFERROR(E18/100,"") -> 0 | X20: =IF(E18=V20*100,"OK","ERRO") -> OK
A21: =IF(D21>0,"F","") ->  | B21: SERVIÇO EM TERRA | D21: =Orçamento!X551 -> 0 | E21: =Orçamento!AA551 -> 0 | F21: =ROUND(F23*$D$21,2) -> 0 | J21: =ROUND(J23*$D$21,2) -> 0 | N21: =ROUND(N23*$D$21,2) -> 0 | R21: =ROUND(R23*$D$21,2) -> 0 | V21: =SUM(F21:U21) -> 0 | X21: =IF(D21=V21,"OK","ERRO") -> OK
A22: =IF(A21="F",A21,"") -> 
A23: =IF(A22="F",A22,"") ->  | F23: 1 | J23: 0 | N23: 0 | R23: =100%-(SUM(F23:Q23)) -> 0 | V23: =IFERROR(E21/100,"") -> 0 | X23: =IF(E21=V23*100,"OK","ERRO") -> OK
A24: =IF(D24>0,"F","") ->  | B24: FUNDAÇÕES E SONDAGENS | D24: =Orçamento!X552 -> 0 | E24: =Orçamento!AA552 -> 0 | F24: =ROUND(F26*$D$24,2) -> 0 | J24: =ROUND(J26*$D$24,2) -> 0 | N24: =ROUND(N26*$D$24,2) -> 0 | R24: =ROUND(R26*$D$24,2) -> 0 | V24: =SUM(F24:U24) -> 0 | X24: =IF(D24=V24,"OK","ERRO") -> OK
A25: =IF(A24="F",A24,"") -> 
A26: =IF(A25="F",A25,"") ->  | F26: 1 | J26: 0 | R26: =100%-(SUM(F26:Q26)) -> 0 | V26: =IFERROR(E24/100,"") -> 0 | X26: =IF(E24=V26*100,"OK","ERRO") -> OK
A27: =IF(D27>0,"F","") ->  | B27: ESTRUTURA | D27: =Orçamento!X553 -> 0 | E27: =Orçamento!AA553 -> 0 | F27: =ROUND(F29*$D$27,2) -> 0 | J27: =ROUND(J29*$D$27,2) -> 0 | N27: =ROUND(N29*$D$27,2) -> 0 | R27: =ROUND(R29*$D$27,2) -> 0 | V27: =SUM(F27:U27) -> 0 | X27: =IF(D27=V27,"OK","ERRO") -> OK
A28: =IF(A27="F",A27,"") -> 
A29: =IF(A28="F",A28,"") ->  | F29: 0.43 | J29: =1-F29 -> 0.57 | N29: 0 | R29: =100%-(SUM(F29:Q29)) -> 0 | V29: =IFERROR(E27/100,"") -> 0 | X29: =IF(E27=V29*100,"OK","ERRO") -> OK
A30: =IF(D30>0,"F","") ->  | B30: INST.ELET/TELEFÔNICA/CABEAMENTO ESTRUTURADO | D30: =Orçamento!X554 -> 0 | E30: =Orçamento!AA554 -> 0 | F30: =ROUND(F32*$D$30,2) -> 0 | J30: =ROUND(J32*$D$30,2) -> 0 | N30: =ROUND(N32*$D$30,2) -> 0 | R30: =ROUND(R32*$D$30,2) -> 0 | V30: =SUM(F30:U30) -> 0 | X30: =IF(D30=V30,"OK","ERRO") -> OK
A31: =IF(A30="F",A30,"") -> 
A32: =IF(A31="F",A31,"") ->  | J32: 0.75 | N32: 0.25 | R32: =100%-(SUM(F32:Q32)) -> 0 | V32: =IFERROR(E30/100,"") -> 0 | X32: =IF(E30=V32*100,"OK","ERRO") -> OK
A33: =IF(D33>0,"F","") ->  | B33: INSTALAÇÕES HIDROSSANITÁRIAS | D33: =Orçamento!X555 -> 0 | E33: =Orçamento!AA555 -> 0 | F33: =ROUND(F35*$D$33,2) -> 0 | J33: =ROUND(J35*$D$33,2) -> 0 | N33: =ROUND(N35*$D$33,2) -> 0 | R33: =ROUND(R35*$D$33,2) -> 0 | V33: =SUM(F33:U33) -> 0 | X33: =IF(D33=V33,"OK","ERRO") -> OK
A34: =IF(A33="F",A33,"") -> 
A35: =IF(A34="F",A34,"") ->  | J35: 0.75 | N35: 0.25 | R35: =100%-(SUM(F35:Q35)) -> 0 | V35: =IFERROR(E33/100,"") -> 0 | X35: =IF(E33=V35*100,"OK","ERRO") -> OK
A36: =IF(D36>0,"F","") ->  | B36: INSTALAÇÕES ESPECIAIS | D36: =Orçamento!X556 -> 0 | E36: =Orçamento!AA556 -> 0 | F36: =ROUND(F38*$D$36,2) -> 0 | J36: =ROUND(J38*$D$36,2) -> 0 | N36: =ROUND(N38*$D$36,2) -> 0 | R36: =ROUND(R38*$D$36,2) -> 0 | V36: =SUM(F36:U36) -> 0 | X36: =IF(D36=V36,"OK","ERRO") -> OK
A37: =IF(A36="F",A36,"") -> 
A38: =IF(A37="F",A37,"") ->  | J38: 0.63 | N38: 0.37 | R38: =100%-(SUM(F38:Q38)) -> 0 | V38: =IFERROR(E36/100,"") -> 0 | X38: =IF(E36=V38*100,"OK","ERRO") -> OK
A39: =IF(D39>0,"F","") ->  | B39: ALVENARIA E DIVISÓRIAS | D39: =Orçamento!X557 -> 0 | E39: =Orçamento!AA557 -> 0 | F39: =ROUND(F41*$D$39,2) -> 0 | J39: =ROUND(J41*$D$39,2) -> 0 | N39: =ROUND(N41*$D$39,2) -> 0 | R39: =ROUND(R41*$D$39,2) -> 0 | V39: =SUM(F39:U39) -> 0 | X39: =IF(D39=V39,"OK","ERRO") -> OK
A40: =IF(A39="F",A39,"") -> 
A41: =IF(A40="F",A40,"") ->  | J41: 0.63 | N41: 0.37 | R41: =100%-(SUM(F41:Q41)) -> 0 | V41: =IFERROR(E39/100,"") -> 0 | X41: =IF(E39=V41*100,"OK","ERRO") -> OK
A42: =IF(D42>0,"F","") ->  | B42: ALVENARIA AUTO-PORTANTE | D42: =Orçamento!X558 -> 0 | E42: =Orçamento!AA558 -> 0 | F42: =ROUND(F44*$D$42,2) -> 0 | J42: =ROUND(J44*$D$42,2) -> 0 | N42: =ROUND(N44*$D$42,2) -> 0 | R42: =ROUND(R44*$D$42,2) -> 0 | V42: =SUM(F42:U42) -> 0 | X42: =IF(D42=V42,"OK","ERRO") -> OK
A43: =IF(A42="F",A42,"") -> 
A44: =IF(A43="F",A43,"") ->  | J44: 0.63 | N44: 0.37 | R44: =100%-(SUM(F44:Q44)) -> 0 | V44: =IFERROR(E42/100,"") -> 0 | X44: =IF(E42=V44*100,"OK","ERRO") -> OK
A45: =IF(D45>0,"F","") ->  | B45: IMPERMEABILIZAÇÃO | D45: =Orçamento!X559 -> 0 | E45: =Orçamento!AA559 -> 0 | F45: =ROUND(F47*$D$45,2) -> 0 | J45: =ROUND(J47*$D$45,2) -> 0 | N45: =ROUND(N47*$D$45,2) -> 0 | R45: =ROUND(R47*$D$45,2) -> 0 | V45: =SUM(F45:U45) -> 0 | X45: =IF(D45=V45,"OK","ERRO") -> OK
A46: =IF(A45="F",A45,"") -> 
A47: =IF(A46="F",A46,"") ->  | F47: 0.3262 | J47: =F47 -> 0.3262 | N47: =100%-F47-J47 -> 0.3476 | R47: =100%-(SUM(F47:Q47)) -> 0 | V47: =IFERROR(E45/100,"") -> 0 | X47: =IF(E45=V47*100,"OK","ERRO") -> OK
A48: =IF(D48>0,"F","") ->  | B48: ISOLAMENTO TÉRMICO E ACÚSTICO | D48: =Orçamento!X560 -> 0 | E48: =Orçamento!AA560 -> 0 | F48: =ROUND(F50*$D$48,2) -> 0 | J48: =ROUND(J50*$D$48,2) -> 0 | N48: =ROUND(N50*$D$48,2) -> 0 | R48: =ROUND(R50*$D$48,2) -> 0 | V48: =SUM(F48:U48) -> 0 | X48: =IF(D48=V48,"OK","ERRO") -> OK
A49: =IF(A48="F",A48,"") -> 
A50: =IF(A49="F",A49,"") ->  | J50: 0.55 | N50: 0.4 | R50: =100%-(SUM(F50:Q50)) -> 0.05 | V50: =IFERROR(E48/100,"") -> 0 | X50: =IF(E48=V50*100,"OK","ERRO") -> OK
A51: =IF(D51>0,"F","") ->  | B51: ESTRUTURA DE MADEIRA | D51: =Orçamento!X561 -> 0 | E51: =Orçamento!AA561 -> 0 | F51: =ROUND(F53*$D$51,2) -> 0 | J51: =ROUND(J53*$D$51,2) -> 0 | N51: =ROUND(N53*$D$51,2) -> 0 | R51: =ROUND(R53*$D$51,2) -> 0 | V51: =SUM(F51:U51) -> 0 | X51: =IF(D51=V51,"OK","ERRO") -> OK
A52: =IF(A51="F",A51,"") -> 
A53: =IF(A52="F",A52,"") ->  | J53: 0.35 | N53: 0.65 | R53: =100%-(SUM(F53:Q53)) -> 0 | V53: =IFERROR(E51/100,"") -> 0 | X53: =IF(E51=V53*100,"OK","ERRO") -> OK
A54: =IF(D54>0,"F","") ->  | B54: ESTRUTURA METÁLICA | D54: =Orçamento!X562 -> 0 | E54: =Orçamento!AA562 -> 0 | F54: =ROUND(F56*$D$54,2) -> 0 | J54: =ROUND(J56*$D$54,2) -> 0 | N54: =ROUND(N56*$D$54,2) -> 0 | R54: =ROUND(R56*$D$54,2) -> 0 | V54: =SUM(F54:U54) -> 0 | X54: =IF(D54=V54,"OK","ERRO") -> OK
A55: =IF(A54="F",A54,"") -> 
A56: =IF(A55="F",A55,"") ->  | J56: 0.35 | N56: 0.65 | R56: =100%-(SUM(F56:Q56)) -> 0 | V56: =IFERROR(E54/100,"") -> 0 | X56: =IF(E54=V56*100,"OK","ERRO") -> OK
A57: =IF(D57>0,"F","") ->  | B57: COBERTURAS | D57: =Orçamento!X563 -> 0 | E57: =Orçamento!AA563 -> 0 | F57: =ROUND(F59*$D$57,2) -> 0 | J57: =ROUND(J59*$D$57,2) -> 0 | N57: =ROUND(N59*$D$57,2) -> 0 | R57: =ROUND(R59*$D$57,2) -> 0 | V57: =SUM(F57:U57) -> 0 | X57: =IF(D57=V57,"OK","ERRO") -> OK
A58: =IF(A57="F",A57,"") -> 
A59: =IF(A58="F",A58,"") ->  | N59: 0.56 | R59: =100%-(SUM(F59:Q59)) -> 0.44 | V59: =IFERROR(E57/100,"") -> 0 | X59: =IF(E57=V59*100,"OK","ERRO") -> OK
A60: =IF(D60>0,"F","") ->  | B60: ESQUADRIAS DE MADEIRA | D60: =Orçamento!X564 -> 0 | E60: =Orçamento!AA564 -> 0 | F60: =ROUND(F62*$D$60,2) -> 0 | J60: =ROUND(J62*$D$60,2) -> 0 | N60: =ROUND(N62*$D$60,2) -> 0 | R60: =ROUND(R62*$D$60,2) -> 0 | V60: =SUM(F60:U60) -> 0 | X60: =IF(D60=V60,"OK","ERRO") -> OK
A61: =IF(A60="F",A60,"") -> 
A62: =IF(A61="F",A61,"") ->  | N62: 0.55 | R62: =100%-(SUM(F62:Q62)) -> 0.45 | V62: =IFERROR(E60/100,"") -> 0 | X62: =IF(E60=V62*100,"OK","ERRO") -> OK
A63: =IF(D63>0,"F","") ->  | B63: ESQUADRIAS METÁLICAS | D63: =Orçamento!X565 -> 0 | E63: =Orçamento!AA565 -> 0 | F63: =ROUND(F65*$D$63,2) -> 0 | J63: =ROUND(J65*$D$63,2) -> 0 | N63: =ROUND(N65*$D$63,2) -> 0 | R63: =ROUND(R65*$D$63,2) -> 0 | V63: =SUM(F63:U63) -> 0 | X63: =IF(D63=V63,"OK","ERRO") -> OK
A64: =IF(A63="F",A63,"") -> 
A65: =IF(A64="F",A64,"") ->  | N65: 0.55 | R65: =100%-(SUM(F65:Q65)) -> 0.45 | V65: =IFERROR(E63/100,"") -> 0 | X65: =IF(E63=V65*100,"OK","ERRO") -> OK
A66: =IF(D66>0,"F","") ->  | B66: VIDROS | D66: =Orçamento!X566 -> 0 | E66: =Orçamento!AA566 -> 0 | F66: =ROUND(F68*$D$66,2) -> 0 | J66: =ROUND(J68*$D$66,2) -> 0 | N66: =ROUND(N68*$D$66,2) -> 0 | R66: =ROUND(R68*$D$66,2) -> 0 | V66: =SUM(F66:U66) -> 0 | X66: =IF(D66=V66,"OK","ERRO") -> OK
A67: =IF(A66="F",A66,"") -> 
A68: =IF(A67="F",A67,"") ->  | N68: 0 | R68: 1 | V68: =IFERROR(E66/100,"") -> 0 | X68: =IF(E66=V68*100,"OK","ERRO") -> OK
A69: =IF(D69>0,"F","") ->  | B69: REVESTIMENTO DE PAREDE | D69: =Orçamento!X567 -> 0 | E69: =Orçamento!AA567 -> 0 | F69: =ROUND(F71*$D$69,2) -> 0 | J69: =ROUND(J71*$D$69,2) -> 0 | N69: =ROUND(N71*$D$69,2) -> 0 | R69: =ROUND(R71*$D$69,2) -> 0 | V69: =SUM(F69:U69) -> 0 | X69: =IF(D69=V69,"OK","ERRO") -> OK
A70: =IF(A69="F",A69,"") -> 
A71: =IF(A70="F",A70,"") ->  | N71: 1 | R71: =100%-(SUM(F71:Q71)) -> 0 | V71: =IFERROR(E69/100,"") -> 0 | X71: =IF(E69=V71*100,"OK","ERRO") -> OK
A72: =IF(D72>0,"F","") ->  | B72: FORROS | D72: =Orçamento!X568 -> 0 | E72: =Orçamento!AA568 -> 0 | F72: =ROUND(F74*$D$72,2) -> 0 | J72: =ROUND(J74*$D$72,2) -> 0 | N72: =ROUND(N74*$D$72,2) -> 0 | R72: =ROUND(R74*$D$72,2) -> 0 | V72: =SUM(F72:U72) -> 0 | X72: =IF(D72=V72,"OK","ERRO") -> OK
A73: =IF(A72="F",A72,"") -> 
A74: =IF(A73="F",A73,"") ->  | N74: 0.4 | R74: =100%-(SUM(F74:Q74)) -> 0.6 | V74: =IFERROR(E72/100,"") -> 0 | X74: =IF(E72=V74*100,"OK","ERRO") -> OK
A75: =IF(D75>0,"F","") ->  | B75: REVESTIMENTO DE PISO | D75: =Orçamento!X569 -> 0 | E75: =Orçamento!AA569 -> 0 | F75: =ROUND(F77*$D$75,2) -> 0 | J75: =ROUND(J77*$D$75,2) -> 0 | N75: =ROUND(N77*$D$75,2) -> 0 | R75: =ROUND(R77*$D$75,2) -> 0 | V75: =SUM(F75:U75) -> 0 | X75: =IF(D75=V75,"OK","ERRO") -> OK
A76: =IF(A75="F",A75,"") -> 
A77: =IF(A76="F",A76,"") ->  | N77: 0.4 | R77: =100%-(SUM(F77:Q77)) -> 0.6 | V77: =IFERROR(E75/100,"") -> 0 | X77: =IF(E75=V77*100,"OK","ERRO") -> OK
A78: =IF(D78>0,"F","") ->  | B78: FERRAGENS | D78: =Orçamento!X570 -> 0 | E78: =Orçamento!AA570 -> 0 | F78: =ROUND(F80*$D$78,2) -> 0 | J78: =ROUND(J80*$D$78,2) -> 0 | N78: =ROUND(N80*$D$78,2) -> 0 | R78: =ROUND(R80*$D$78,2) -> 0 | V78: =SUM(F78:U78) -> 0 | X78: =IF(D78=V78,"OK","ERRO") -> OK
A79: =IF(A78="F",A78,"") -> 
A80: =IF(A79="F",A79,"") ->  | R80: =100%-(SUM(F80:Q80)) -> 1 | V80: =IFERROR(E78/100,"") -> 0 | X80: =IF(E78=V80*100,"OK","ERRO") -> OK
A81: =IF(D81>0,"F","") ->  | B81: MARCENARIA | D81: =Orçamento!X571 -> 0 | E81: =Orçamento!AA571 -> 0 | F81: =ROUND(F83*$D$81,2) -> 0 | J81: =ROUND(J83*$D$81,2) -> 0 | N81: =ROUND(N83*$D$81,2) -> 0 | R81: =ROUND(R83*$D$81,2) -> 0 | V81: =SUM(F81:U81) -> 0 | X81: =IF(D81=V81,"OK","ERRO") -> OK
A82: =IF(A81="F",A81,"") -> 
A83: =IF(A82="F",A82,"") ->  | R83: =100%-(SUM(F83:Q83)) -> 1 | V83: =IFERROR(E81/100,"") -> 0 | X83: =IF(E81=V83*100,"OK","ERRO") -> OK
A84: =IF(D84>0,"F","") ->  | B84: ADMINISTRAÇÃO - MENSALISTAS | D84: =Orçamento!X572 -> 0 | E84: =Orçamento!AA572 -> 0 | F84: =ROUND(F86*$D$84,2) -> 0 | J84: =ROUND(J86*$D$84,2) -> 0 | N84: =ROUND(N86*$D$84,2) -> 0 | R84: =ROUND(R86*$D$84,2) -> 0 | V84: =SUM(F84:U84) -> 0 | X84: =IF(D84=V84,"OK","ERRO") -> OK
A85: =IF(A84="F",A84,"") -> 
A86: =IF(A85="F",A85,"") ->  | F86: 0.26 | J86: 0.26 | N86: 0.25 | R86: =100%-(SUM(F86:Q86)) -> 0.23 | V86: =IFERROR(E84/100,"") -> 0 | X86: =IF(E84=V86*100,"OK","ERRO") -> OK
A87: =IF(D87>0,"F","") ->  | B87: PINTURA | D87: =Orçamento!X573 -> 0 | E87: =Orçamento!AA573 -> 0 | F87: =ROUND(F89*$D$87,2) -> 0 | J87: =ROUND(J89*$D$87,2) -> 0 | N87: =ROUND(N89*$D$87,2) -> 0 | R87: =ROUND(R89*$D$87,2) -> 0 | V87: =SUM(F87:U87) -> 0 | X87: =IF(D87=V87,"OK","ERRO") -> OK
A88: =IF(A87="F",A87,"") -> 
A89: =IF(A88="F",A88,"") ->  | N89: 0.36 | R89: =100%-(SUM(F89:Q89)) -> 0.64 | V89: =IFERROR(E87/100,"") -> 0 | X89: =IF(E87=V89*100,"OK","ERRO") -> OK
A90: =IF(D90>0,"F","") ->  | B90: DIVERSOS | D90: =Orçamento!X574 -> 0 | E90: =Orçamento!AA574 -> 0 | F90: =ROUND(F92*$D$90,2) -> 0 | J90: =ROUND(J92*$D$90,2) -> 0 | N90: =ROUND(N92*$D$90,2) -> 0 | R90: =ROUND(R92*$D$90,2) -> 0 | V90: =SUM(F90:U90) -> 0 | X90: =IF(D90=V90,"OK","ERRO") -> OK
A91: =IF(A90="F",A90,"") -> 
A92: =IF(A91="F",A91,"") ->  | F92: 0.25755 | J92: 0.255 | N92: 0.255 | R92: =100%-(SUM(F92:Q92)) -> 0.23245 | V92: =IFERROR(E90/100,"") -> 0 | X92: =IF(E90=V92*100,"OK","ERRO") -> OK
A93: F | B93: CUSTO DO ORÇAMENTO | D93: =SUM(D15:D92) -> 0 | E93: =SUM(E15:E92) -> 0 | F93: =F15+F18+F21+F24+F27+F30+F33+F36+F39+F42+F45+F48+F51+F54+F57+F60+F63+F66+F69+F72+F75+F78+F81+F84+F87+F90 -> 0 | J93: =J15+J18+J21+J24+J27+J30+J33+J36+J39+J42+J45+J48+J51+J54+J57+J60+J63+J66+J69+J72+J75+J78+J81+J84+J87+J90 -> 0 | N93: =N15+N18+N21+N24+N27+N30+N33+N36+N39+N42+N45+N48+N51+N54+N57+N60+N63+N66+N69+N72+N75+N78+N81+N84+N87+N90 -> 0 | R93: =R15+R18+R21+R24+R27+R30+R33+R36+R39+R42+R45+R48+R51+R54+R57+R60+R63+R66+R69+R72+R75+R78+R81+R84+R87+R90 -> 0 | V93: =V15+V18+V21+V24+V27+V30+V33+V36+V39+V42+V45+V48+V51+V54+V57+V60+V63+V66+V69+V72+V75+V78+V81+V84+V87+V90 -> 0
A94: F | B94: PERCENTUAIS: | F94: =IFERROR(F93/$D$93,"") ->  | J94: =IFERROR(J93/$D$93,"") ->  | N94: =IFERROR(N93/$D$93,"") ->  | R94: =IFERROR(R93/$D$93,"") ->  | V94: =SUM(F94:U94) -> 0
A95: F | B95: TOTAIS ACUMULADOS: | F95: =F93 -> 0 | J95: =J93+F95 -> 0 | N95: =N93+J95 -> 0 | R95: =R93+N95 -> 0
A96: F | B96: PERCENTUAIS ACUMULADOS: | F96: =F94 ->  | J96: =J94+F96 ->  | N96: =N94+J96 ->  | R96: =R94+N96 -> 
A97: F
A98: F | B98: OBSERVAÇÕES:
A99: F | B99: Os pagamentos somente poderão ser efetuados mediante medição e atesto pelos técnicos da Secretaria da Educação.

Sheet Composição BDI
A3: UNIDADE ESCOLAR
A4: =Orçamento!$O$4 -> COORDENAÇÃO REGIONAL DE EDUCAÇÃO DE TRINDADE
A6: OBRA
A7: =Orçamento!$O$7 -> REFORMA E AMPLIAÇÃO
A9: ENDEREÇO
A10: =Orçamento!$R$10 -> AVENIDA MANOEL MONTEIRO, 163 - BAIRRO SANTUÁRIO
A12: CIDADE
A13: =Orçamento!$X$7 -> TRINDADE
A15: CRE
A16: =Orçamento!$O$10 -> CRE-TRINDADE
A18: DETALHAMENTO DA COMPOSIÇÃO DE BDI
A19: COMPOSIÇÃO BDI PARA OBRAS CIVIS | F19: BDI CONSTRUÇÃO E REFORMA
A20: DESCRIÇÃO | B20: COEF. | C20: TAXA % (a.m) | D20: % no preço de venda | F20: Situação | G20: 1º Quartil | H20: Médio | I20: 3º Quartil
A21: 1) COFINS | B21: 1 | C21: 0.03 | D21: =C21 -> 0.03 | F21: =IF(OR(C21<G21,C21>I21),"FORA DO INTERVALO","OK") -> OK | G21: 0.03 | H21: 0.03 | I21: 0.03
A22: 2) PIS | B22: 1 | C22: 0.0065 | D22: =C22 -> 0.0065 | F22: =IF(OR(C22<G22,C22>I22),"FORA DO INTERVALO","OK") -> OK | G22: 0.0065 | H22: 0.0065 | I22: 0.0065
A23: 3) ISSQN | B23: 1 | C23: 0.05 | D23: =C23*B23 -> 0.05 | F23: OK | G23: 0.02 | H23: 0.035 | I23: 0.05
A24: 4) CPRB | B24: 1 | C24: 0 | D24: =C24 -> 0 | F24: FORA DO INTERVALO | G24: 0.045 | H24: 0.045 | I24: 0.045
A25: 5) Administração Central | B25: 1 | C25: 0.03 | D25: 0.03 | F25: OK | G25: 0.03 | H25: 0.04 | I25: 0.055
A26: 6) Despesas Financeiras | B26: 1 | C26: 0.0056 | D26: 0.0056 | F26: FORA DO INTERVALO | G26: 0.0059 | H26: 0.0123 | I26: 0.0139
A27: 7) Seguros + Garantias | B27: 1 | C27: 0.0012 | D27: 0.0012 | F27: FORA DO INTERVALO | G27: 0.008 | H27: 0.008 | I27: 0.01
A28: 8) Risco | B28: 1 | C28: 0.0097 | D28: 0.0097 | F28: OK | G28: 0.0097 | H28: 0.0127 | I28: 0.0127
A29: 9) Lucro | B29: 1 | C29: 0.0616 | D29: 0.0616 | F29: OK | G29: 0.0616 | H29: 0.074 | I29: 0.0896
A30: BDI - FINAL | D30: =(((1+D25+D27+D28)*(1+D26)*(1+D29))/(1-(D21+D22+D23+D24))-1) -> 0.2164286249 | F30: =IF(OR(D30<G30,D30>I30),"FORA DO INTERVALO","OK") -> OK | G30: 0.2034 | H30: 0.2212 | I30: 0.25
A32: Notas:
A33: (1) e (2) Alíquota definida por lei.
A34: (3) Alíquota e base de cálculo definidas pela legislação municipal.
A35: (4) Alíquota definida pelas leis 12.546/11, 12844/13 e 13.161/15 (CPRB – contribuição previdenciária sobre a receita bruta).
A36: (5) Valores definidos a partir dos limites no Acórdão nº 2.622/2013 - TCU – Plenário. Valores entre o 1º e 3º quartis.
A37: (6) Valor calculado pela expressão matemática do acórdão 2.369/2011 – TCU – Plenário e disponibilizado pela AGETOP em dezembro de 2018. (Foi utilizado para o cálculo a média da Taxa SELIC no período de 11/2017 a 10/2018)
A39: (7) Valores definidos pela AGETOP a partir dos limites no Acórdão nº 2.622/2013 - TCU – Plenário. Valores médios. Observação da AGETOP: (Seguros contra erros de execução, incêndio e explosão, danos da natureza (vendaval, destelhamento, alagamento, inundação, desmoronamento, geadas etc.), emprego de material defeituoso ou inadequado, roubo e/ou furto qualificado, quebra de equipamentos, desmoronamento de estrutura, nas modalidades de Obras Civis em Construção (OCC); Instalação e Montagem (IM); e Obras Civis em Construção e Instalação e Montagem (OCC/IM). Bem como coberturas adicionais para ampliação dessas coberturas básicas, como: cobertura de responsabilidade civil geral, cobertura de responsabilidade civil cruzada, cobertura de despesas extraordinárias, cobertura de tumultos, cobertura de desentulho do local, cobertura de riscos do fabricante, dentre outras, incluindo o seguro de vida em grupo regido pela convenção coletiva dos trabalhadores na indústria da construção civil). A partir de 24/02/2015 por intermédio da Portaria 449/2015 a Presidência da AGETOP, na pessoa do Senhor Jayme Eduardo Rincon, determinou a exclusão dos valores referentes aos Seguros de Risco de Engenharia e Responsabilidade Civil do Profissional na composição do cálculo do B.D.I..
A40: (8) Valores definidos a partir dos limites no Acórdão nº 2.622/2013 - TCU – Plenário. Valores entre 1º e 3° quartis.
A41: (9) Valores definidos a partir dos limites definidos no Acórdão nº 2.622/2013 - TCU – Plenário. Valores adotados e praticados no mercado ( “ ex ante ” ) ou aqueles entre os 1º e 3º quartis.
A43: (*) A fórmula para estipulação da taxa de BDI estimado adotado é a mesma que foi aplicada para a obtenção das tabelas contidas no Acórdão n. 2.622/2013 – TCUPlenário
A45: Obs.: Para obras com valores superiores a R$ 20.000.000,00 sugere-se recalcular o BDI, dimensionando as taxas de administração central e lucro para patamares inferiores ao estipulado acima.

Sheet Relatório CENTRAL
B3: UNIDADE ESCOLAR | D3: CIDADE
B4: =Orçamento!$O$4 -> COORDENAÇÃO REGIONAL DE EDUCAÇÃO DE TRINDADE | D4: =Orçamento!$X$7 -> TRINDADE
B6: OBRA | D6: CRE
B7: =Orçamento!$O$7 -> REFORMA E AMPLIAÇÃO | D7: =Orçamento!$O$10 -> CRE-TRINDADE
B9: ENDEREÇO | D9: DATA
A10: FILTRO | B10: =Orçamento!$R$10 -> AVENIDA MANOEL MONTEIRO, 163 - BAIRRO SANTUÁRIO | D10: =Orçamento!$S$7 -> 2020-09-02
B12: RELATÓRIO CENTRAL
A13: ↓ | B13: CÓDIGO | C13: ETAPA | D13: PREÇO (R$) C/ BDI | E13: PARTIC ( % )
A14: =IF(D14>0,"F","") ->  | B14: =Orçamento!O549 -> a. | C14: =Orçamento!P549 -> SERVIÇOS PRELIMINARES | D14: =Orçamento!X549 -> 0 | E14: =Orçamento!AA549 -> 0
A15: =IF(D15>0,"F","") ->  | B15: =Orçamento!O550 -> b. | C15: =Orçamento!P550 -> TRANSPORTES | D15: =Orçamento!X550 -> 0 | E15: =Orçamento!AA550 -> 0
B16: =Orçamento!O551 -> c. | C16: =Orçamento!P551 -> SERVIÇO EM TERRA | D16: =Orçamento!X551 -> 0 | E16: =Orçamento!AA551 -> 0
B17: =Orçamento!O552 -> d. | C17: =Orçamento!P552 -> FUNDAÇÕES E SONDAGENS | D17: =Orçamento!X552 -> 0 | E17: =Orçamento!AA552 -> 0
B18: =Orçamento!O553 -> e. | C18: =Orçamento!P553 -> ESTRUTURA | D18: =Orçamento!X553 -> 0 | E18: =Orçamento!AA553 -> 0
B19: =Orçamento!O554 -> f. | C19: =Orçamento!P554 -> INSTALAÇÕES ELÉTRICAS | D19: =Orçamento!X554 -> 0 | E19: =Orçamento!AA554 -> 0
B20: =Orçamento!O555 -> g. | C20: =Orçamento!P555 -> INSTALAÇÕES HIDROSSANITÁRIAS | D20: =Orçamento!X555 -> 0 | E20: =Orçamento!AA555 -> 0
B21: =Orçamento!O556 -> h | C21: =Orçamento!P556 -> INSTALAÇÕES ESPECIAIS | D21: =Orçamento!X556 -> 0 | E21: =Orçamento!AA556 -> 0
B22: =Orçamento!O557 -> i. | C22: =Orçamento!P557 -> ALVENARIAS E DIVISÓRIAS | D22: =Orçamento!X557 -> 0 | E22: =Orçamento!AA557 -> 0
B23: =Orçamento!O558 -> j. | C23: =Orçamento!P558 -> ALVENARIA AUTO-PORTANTE | D23: =Orçamento!X558 -> 0 | E23: =Orçamento!AA558 -> 0
B24: =Orçamento!O559 -> k. | C24: =Orçamento!P559 -> IMPERMEABILIZAÇÃO | D24: =Orçamento!X559 -> 0 | E24: =Orçamento!AA559 -> 0
B25: =Orçamento!O560 -> l. | C25: =Orçamento!P560 -> ISOLAMENTO TÉRMICO E ACÚSTICO | D25: =Orçamento!X560 -> 0 | E25: =Orçamento!AA560 -> 0
B26: =Orçamento!O561 -> m. | C26: =Orçamento!P561 -> ESTRUTURA DE MADEIRA | D26: =Orçamento!X561 -> 0 | E26: =Orçamento!AA561 -> 0
B27: =Orçamento!O562 -> n. | C27: =Orçamento!P562 -> ESTRUTURAS METÁLICAS | D27: =Orçamento!X562 -> 0 | E27: =Orçamento!AA562 -> 0
B28: =Orçamento!O563 -> o. | C28: =Orçamento!P563 -> COBERTURAS | D28: =Orçamento!X563 -> 0 | E28: =Orçamento!AA563 -> 0
B29: =Orçamento!O564 -> p. | C29: =Orçamento!P564 -> ESQUADRIAS DE MADEIRA | D29: =Orçamento!X564 -> 0 | E29: =Orçamento!AA564 -> 0
B30: =Orçamento!O565 -> q. | C30: =Orçamento!P565 -> ESQUADRIAS METÁLICAS | D30: =Orçamento!X565 -> 0 | E30: =Orçamento!AA565 -> 0
B31: =Orçamento!O566 -> r. | C31: =Orçamento!P566 -> VIDROS | D31: =Orçamento!X566 -> 0 | E31: =Orçamento!AA566 -> 0
B32: =Orçamento!O567 -> s. | C32: =Orçamento!P567 -> REVESTIMENTO DE PAREDE | D32: =Orçamento!X567 -> 0 | E32: =Orçamento!AA567 -> 0
B33: =Orçamento!O568 -> t. | C33: =Orçamento!P568 -> FORROS | D33: =Orçamento!X568 -> 0 | E33: =Orçamento!AA568 -> 0
B34: =Orçamento!O569 -> u. | C34: =Orçamento!P569 -> REVESTIMENTO DE PISO | D34: =Orçamento!X569 -> 0 | E34: =Orçamento!AA569 -> 0
B35: =Orçamento!O570 -> v. | C35: =Orçamento!P570 -> FERRAGENS | D35: =Orçamento!X570 -> 0 | E35: =Orçamento!AA570 -> 0
B36: =Orçamento!O571 -> w. | C36: =Orçamento!P571 -> MARCENARIA | D36: =Orçamento!X571 -> 0 | E36: =Orçamento!AA571 -> 0
B37: =Orçamento!O572 -> x. | C37: =Orçamento!P572 -> ADMINISTRAÇÃO | D37: =Orçamento!X572 -> 0 | E37: =Orçamento!AA572 -> 0
B38: =Orçamento!O573 -> y. | C38: =Orçamento!P573 -> PINTURA | D38: =Orçamento!X573 -> 0 | E38: =Orçamento!AA573 -> 0
B39: =Orçamento!O574 -> z. | C39: =Orçamento!P574 -> DIVERSOS | D39: =Orçamento!X574 -> 0 | E39: =Orçamento!AA574 -> 0
A40: F | B40: TOTAL GERAL DO ORÇAMENTO (R$) C/BDI | D40: =SUM(D14:D39) -> 0 | E40: =SUM(E14:E39) -> 0

Sheet Parc Maior Relev
B3: UNIDADE ESCOLAR | E3: CÓDIGO INEP
B4: =Orçamento!$O$4 -> COORDENAÇÃO REGIONAL DE EDUCAÇÃO DE TRINDADE | E4: =Orçamento!$X$4 -> 0
B6: OBRA | E6: CIDADE
B7: =Orçamento!$O$7 -> REFORMA E AMPLIAÇÃO | E7: =Orçamento!$X$7 -> TRINDADE
B9: CRE | E9: ÁREA TOTAL CONSTRUÍDA (M²)
B10: =Orçamento!$O$10 -> CRE-TRINDADE | E10: =Orçamento!$X$13 -> 769.17
A12: FILTRO | B12: PARCELA DE MAIOR RELEVÂNCIA
A13: =IF(G14>0,"F","") ->  | B13: CÓDIGO | C13: SERVIÇO | D13: DESCRIÇÃO | E13: UNID | F13: QUANT | G13: PARC. MAIOR RELEV (100%)
A14: =IF(G14>0,"F","") ->  | B14: f. | C14: INSTALAÇÕES ELÉTRICAS | D14: SUBESTAÇÃO | E14: KVA | F14: =SUMIF(Orçamento!$R$530:$R$530,'Parc Maior Relev'!D14,Orçamento!$T$530:$T$530) -> 0 | G14: =F14 -> 0
A15: =IF(SUM(G16:G30)>0,"F","") -> F | B15: CÓDIGO | C15: SERVIÇO | D15: DESCRIÇÃO | E15: UNID | F15: QUANT | G15: PARC. MAIOR RELEV (50%)
A16: =IF(G16>0,"F","") ->  | B16: e. | C16: ESTRUTURA | D16: CONCRETO | E16: M3 | F16: =SUMIF(Orçamento!$R$530:$R$530,'Parc Maior Relev'!D16,Orçamento!$T$530:$T$530) -> 0 | G16: =F16*0.5 -> 0
A17: =IF(G17>0,"F","") ->  | B17: f. | C17: INSTALAÇÕES ELÉTRICAS | D17: INSTALAÇÕES ELÉTRICAS | E17: KVA | F17: =SUMIF(Orçamento!$R$530:$R$530,'Parc Maior Relev'!D17,Orçamento!$T$530:$T$530) -> 0 | G17: =F17*0.5 -> 0
A18: =IF(G18>0,"F","") ->  | B18: o. | C18: COBERTURAS | D18: COBERTURA CERÂMICA | E18: M2 | F18: =SUMIF(Orçamento!$R$530:$R$530,'Parc Maior Relev'!D18,Orçamento!$T$530:$T$530) -> 0 | G18: 0
A19: F | B19: o. | C19: COBERTURAS | D19: FIBROCIMENTO | E19: M2 | F19: 465 | G19: 232.5
B20: s. | C20: REVESTIMENTO DE PAREDE | D20: CHAPISCO | E20: M2 | F20: =SUMIF(Orçamento!$R$530:$R$530,'Parc Maior Relev'!D20,Orçamento!$T$530:$T$530) -> 0 | G20: 0
B21: s. | C21: REVESTIMENTO DE PAREDE | D21: REBOCO | E21: M2 | F21: =SUMIF(Orçamento!$R$530:$R$530,'Parc Maior Relev'!D21,Orçamento!$T$530:$T$530) -> 0 | G21: 0
B22: s. | C22: REVESTIMENTO DE PAREDE | D22: REVESTIMENTO CERÂMICO | E22: M2 | F22: =SUMIF(Orçamento!$R$530:$R$530,'Parc Maior Relev'!D22,Orçamento!$T$530:$T$530) -> 0 | G22: 0
B23: t. | C23: FORROS | D23: FORRO DE GESSO | E23: M2 | F23: =SUMIF(Orçamento!$R$530:$R$530,'Parc Maior Relev'!D23,Orçamento!$T$530:$T$530) -> 0 | G23: 0
A24: F | B24: t. | C24: FORROS | D24: FORRO DE PVC | E24: M2 | F24: 425.55 | G24: 212.775
B25: t. | C25: FORROS | D25: FORRO DE GESSO ACARTONADO | E25: M2 | F25: =SUMIF(Orçamento!$R$530:$R$530,'Parc Maior Relev'!D25,Orçamento!$T$530:$T$530) -> 0 | G25: 0
B26: u. | C26: REVESTIMENTO DE PISO | D26: PISO DE GRANITINA | E26: M2 | F26: =SUMIF(Orçamento!$R$530:$R$530,'Parc Maior Relev'!D26,Orçamento!$T$530:$T$530) -> 0 | G26: 0
B27: u. | C27: REVESTIMENTO DE PISO | D27: PISO LAMINADO | E27: M2 | F27: =SUMIF(Orçamento!$R$530:$R$530,'Parc Maior Relev'!D27,Orçamento!$T$530:$T$530) -> 0 | G27: 0
B28: u. | C28: REVESTIMENTO DE PISO | D28: PISO DE CONCRETO DESEMPENADO | E28: M2 | F28: =SUMIF(Orçamento!$R$530:$R$530,'Parc Maior Relev'!D28,Orçamento!$T$530:$T$530) -> 0 | G28: 0
B29: u. | C29: REVESTIMENTO DE PISO | D29: PISO CERÂMICO | E29: M2 | F29: =SUMIF(Orçamento!$R$530:$R$530,'Parc Maior Relev'!D29,Orçamento!$T$530:$T$530) -> 0 | G29: 0
B30: y. | C30: PINTURA | D30: PINTURA | E30: M2 | F30: =SUMIF(Orçamento!$R$530:$R$530,'Parc Maior Relev'!D30,Orçamento!$T$530:$T$530) -> 0 | G30: 0
A31: F
A32: F | B32: (*) Para os fins do inciso I dp § 1º do Art. 30 da Lei Federal 8.666/93, são consideradas parcelas de maior relevância técnica as execuções apresentadas
A33: F

Sheet Composições
A4: UNIDADE ESCOLAR | H4: CÓDIGO INEP
A5: =Orçamento!$O$4 -> COORDENAÇÃO REGIONAL DE EDUCAÇÃO DE TRINDADE | H5: =Orçamento!$X$4 -> 0
A7: OBRA | H7: CIDADE
A8: =Orçamento!$O$7 -> REFORMA E AMPLIAÇÃO | H8: =Orçamento!$X$7 -> TRINDADE
A10: CRE | D10: ENDEREÇO | H10: REFERÊNCIA AGETOP
A11: =Orçamento!$O$10 -> CRE-TRINDADE | D11: =Orçamento!$R$10 -> AVENIDA MANOEL MONTEIRO, 163 - BAIRRO SANTUÁRIO | H11: =Orçamento!$S$10 -> ABR/19 | I11: =Orçamento!$T$10 -> ONERADA
A13: DATA | D13: ÁREA TOTAL CONSTRUÍDA (M²) | H13: REFERÊNCIA SINAPI
A14: =Orçamento!$S$7 -> 2020-09-02 | D14: =Orçamento!$X$13 -> 769.17 | H14: =Orçamento!$X$10 -> ABR/20 | I14: =Orçamento!$Y$10 -> ONERADA
A16: COMPOSIÇÕES DE CUSTOS UNITÁRIOS - SEE-GO
A17: 10 | B17: FONTE | C17: CÓDIGO | D17: DESCRIÇÃO | E17: UNIDADE | F17: COEFIC. | G17: CUSTO UNITÁRIO | I17: CUSTO TOTAL (A) + (B) + (C) + (D) + (E)
G18: DESONERADO | H18: NÃO DESONER. | I18: DESONERADO | J18: NÃO DESONER.
B19: COMPOSIÇÃO | C19: COMP 010_SEE | D19: DEMOLIÇÃO DE GRADE/GRELHA/CORRIMÃO/GUARDA CORPO - METÁLICO | E19: M2 | G19: - | H19: - | I19: 4.06 | J19: 4.71
B20: MÃO DE OBRA (B) - TOTAL | I20: 0 | J20: 0
B21: AGETOP | C21: 20106 | D21: RETIRADA DE JANELAS OU PORTAIS C/ TRANSP. ATÉ CB. E CARGA | E21: m2 | F21: 1 | G21: 4.06 | H21: 4.71 | I21: 4.06 | J21: 4.71
B22: MATERIAL (C) - TOTAL | I22: 4.06 | J22: 4.71
A24: 84 | B24: FONTE | C24: CÓDIGO | D24: DESCRIÇÃO | E24: UNIDADE | F24: COEFIC. | G24: CUSTO UNITÁRIO | I24: CUSTO TOTAL (A) + (B) + (C) + (D) + (E)
G25: DESONERADO | H25: NÃO DESONER. | I25: DESONERADO | J25: NÃO DESONER.
B26: COMPOSIÇÃO | C26: COMP 084_SEE | D26: GUARDA-CORPO COM CORRIMÃO - SEDUC | E26: M | I26: 206.14 | J26: 211.22
B27: AGETOP_I | C27: 25 | D27: OFICIAL "B" | E27: h | F27: 1.1 | G27: 13.95 | H27: 16.16 | I27: 15.35 | J27: 17.78
B28: AGETOP_I | C28: 8 | D28: AJUDANTE | E28: h | F28: 1.1 | G28: 8.75 | H28: 10.14 | I28: 9.63 | J28: 11.15
B29: MÃO DE OBRA (B) - TOTAL | I29: 24.98 | J29: 28.93
B30: AGETOP_I | C30: 2376 | D30: TUBO INDUSTRIAL 2" CHAPA 13 | E30: Kg | F30: 7.7778 | G30: 5.23 | H30: 5.23 | I30: 40.68 | J30: 40.68
B31: AGETOP_I | C31: 2504 | D31: TUBO INDUSTRIAL D=25 MM CHAPA 13 | E31: Kg | F31: 4.632 | G31: 5.07 | H31: 5.07 | I31: 23.48 | J31: 23.48
B32: AGETOP_I | C32: 2377 | D32: TUBO INDUSTRIAL 40X40 CH.13 | E32: Kg | F32: 6.342 | G32: 5.07 | H32: 5.07 | I32: 32.15 | J32: 32.15
B33: AGETOP_I | C33: 2421 | D33: TUBO INDUSTRIAL 1.1/2" CHAPA 13 | E33: Kg | F33: 1.4862 | G33: 5.07 | H33: 5.07 | I33: 7.54 | J33: 7.54
B34: AGETOP_I | C34: 2417 | D34: MASSA PLASTICA | E34: Kg | F34: 0.2041 | G34: 10.58 | H34: 10.58 | I34: 2.16 | J34: 2.16
B35: AGETOP_I | C35: 2246 | D35: ELETRODO 2.5 OK | E35: Kg | F35: 0.1146 | G35: 8.7 | H35: 8.7 | I35: 1 | J35: 1
B36: AGETOP_I | C36: 1672 | D36: LIXA PARA FERRO ( NÚMERO 100 ) | E36: un | F36: 0.2551 | G36: 2.12 | H36: 2.12 | I36: 0.54 | J36: 0.54
B37: AGETOP_I | C37: 1264 | D37: DISCO DE DESBASTE 7/8" P/ CONC./FERRO (1/4" X 7") | E37: un | F37: 0.051 | G37: 7 | H37: 7 | I37: 0.36 | J37: 0.36
B38: AGETOP_I | C38: 1334 | D38: DISCO DE CORTE DIAM. 5/8"- 10" | E38: un | F38: 0.373 | G38: 5.5 | H38: 5.5 | I38: 2.05 | J38: 2.05
B39: AGETOP_I | C39: 2902 | D39: FABRICAÇÃO / MONTAGEM | E39: un | F39: 1 | G39: 50.44 | H39: 50.44 | I39: 50.44 | J39: 50.44
B40: AGETOP_I | C40: 2150 | D40: CHAPA DE FERRO DOBRADA No.13 | E40: Kg | F40: 0.4352 | G40: 5.28 | H40: 5.28 | I40: 2.3 | J40: 2.3
B41: AGETOP_I | C41: 2719 | D41: CHAPA PERFILADA 3/16" | E41: Kg | F41: 1.098 | G41: 5.04 | H41: 5.04 | I41: 5.53 | J41: 5.53
B42: AGETOP_I | C42: 2436 | D42: ACO CA-25 - 6,3 MM (1/4") - BARRA LISA A-36 | E42: Kg | F42: 0.38125 | G42: 5.13 | H42: 5.13 | I42: 1.96 | J42: 1.96
B43: AGETOP | C43: 261602 | D43: PINT.ESMALTE/ESQUAD.FERRO C/FUNDO ANTICOR. | E43: m2 | F43: 0.78 | G43: 14.07 | H43: 15.51 | I43: 10.97 | J43: 12.1
B44: MATERIAL (C) - TOTAL | I44: 181.16 | J44: 182.29
A46: 387 | B46: FONTE | C46: CÓDIGO | D46: DESCRIÇÃO | E46: UNIDADE | F46: COEFIC. | G46: CUSTO UNITÁRIO | I46: CUSTO TOTAL (A) + (B) + (C) + (D) + (E)
G47: DESONERADO | H47: NÃO DESONER. | I47: DESONERADO | J47: NÃO DESONER.
B48: COMPOSIÇÃO | C48: COMP 387_SEE | D48: LÂMPADA LED TUBULAR 18W | E48: UN | I48: 22.3 | J48: 22.35
B49: AGETOP_I | C49: 8 | D49: AJUDANTE | E49: h | F49: 0.015 | G49: 8.75 | H49: 10.14 | I49: 0.13 | J49: 0.15
B50: AGETOP_I | C50: 12 | D50: ELETRICISTA | E50: h | F50: 0.015 | G50: 13.95 | H50: 16.16 | I50: 0.21 | J50: 0.24
B51: MÃO DE OBRA (B) - TOTAL | I51: 0.34 | J51: 0.39
B52: COTAÇÃO | C52: COT 195_SEE | D52: LÂMPADA LED TUBULAR 18W | E52: UN | F52: 1 | G52: 21.96 | H52: 21.96 | I52: 21.96 | J52: 21.96
B53: MATERIAL (C) - TOTAL | I53: 21.96 | J53: 21.96
A55: 34 | B55: FONTE | C55: CÓDIGO | D55: DESCRIÇÃO | E55: UNIDADE | F55: COEFIC. | G55: CUSTO UNITÁRIO | I55: CUSTO TOTAL (A) + (B) + (C) + (D) + (E)
G56: DESONERADO | H56: NÃO DESONER. | I56: DESONERADO | J56: NÃO DESONER.
B57: COMPOSIÇÃO | C57: COMP 034_SEE | D57: TERMINAL AÉREO SPDA 30CM Fo Go DIAM. 5/16" COM SUPORTE | E57: UN | I57: 16.26 | J57: 17.33
B58: AGETOP_I | C58: 8 | D58: AJUDANTE | E58: h | F58: 0.3 | G58: 8.75 | H58: 10.14 | I58: 2.63 | J58: 3.04
B59: AGETOP_I | C59: 12 | D59: ELETRICISTA | E59: h | F59: 0.3 | G59: 13.95 | H59: 16.16 | I59: 4.19 | J59: 4.85
B60: MÃO DE OBRA (B) - TOTAL | I60: 6.82 | J60: 7.89
B61: SINAPI_I | C61: 7571 | D61: TERMINAL AEREO EM ACO GALVANIZADO DN 5/16", COMPRIMENTO DE 350MM, COM BASE DE FIXACAO HORIZONTAL | E61: UN | F61: 1 | G61: 9.44 | H61: 9.44 | I61: 9.44 | J61: 9.44
B62: MATERIAL (C) - TOTAL | I62: 9.44 | J62: 9.44
A64: 36 | B64: FONTE | C64: CÓDIGO | D64: DESCRIÇÃO | E64: UNIDADE | F64: COEFIC. | G64: CUSTO UNITÁRIO | I64: CUSTO TOTAL (A) + (B) + (C) + (D) + (E)
G65: DESONERADO | H65: NÃO DESONER. | I65: DESONERADO | J65: NÃO DESONER.
B66: COMPOSIÇÃO | C66: COMP 036_SEE | D66: PRESILHA LATÃO 16/35MM 5MM+PARAF FENDA | E66: UN | I66: 3.03 | J66: 3.33
B67: AGETOP_I | C67: 8 | D67: AJUDANTE | E67: h | F67: 0.0833 | G67: 8.75 | H67: 10.14 | I67: 0.73 | J67: 0.84
B68: AGETOP_I | C68: 12 | D68: ELETRICISTA | E68: h | F68: 0.0833 | G68: 13.95 | H68: 16.16 | I68: 1.16 | J68: 1.35
B69: MÃO DE OBRA (B) - TOTAL | I69: 1.89 | J69: 2.19
B70: COTAÇÃO | C70: COT 004_SEE | D70: PRESILHA LATÃO 16/35MM 5MM+PARAF FENDA 1/4''X1.1/4'' | E70: UN | F70: 1 | G70: 1.143333333 | H70: 1.143333333 | I70: 1.14 | J70: 1.14
B71: MATERIAL (C) - TOTAL | I71: 1.14 | J71: 1.14
A73: 39 | B73: FONTE | C73: CÓDIGO | D73: DESCRIÇÃO | E73: UNIDADE | F73: COEFIC. | G73: CUSTO UNITÁRIO | I73: CUSTO TOTAL (A) + (B) + (C) + (D) + (E)
G74: DESONERADO | H74: NÃO DESONER. | I74: DESONERADO | J74: NÃO DESONER.
B75: COMPOSIÇÃO | C75: COMP 039_SEE | D75: MOLDE GRAF CGT 5/8 50MM C | E75: UN | I75: 139.47 | J75: 139.6
B76: AGETOP_I | C76: 8 | D76: AJUDANTE | E76: h | F76: 0.0333 | G76: 8.75 | H76: 10.14 | I76: 0.29 | J76: 0.34
B77: AGETOP_I | C77: 12 | D77: ELETRICISTA | E77: h | F77: 0.0333 | G77: 13.95 | H77: 16.16 | I77: 0.46 | J77: 0.54
B78: MÃO DE OBRA (B) - TOTAL | I78: 0.75 | J78: 0.88
B79: COTAÇÃO | C79: COT 007_SEE | D79: MOLDE GRAF CGT 5/8 50MM C | E79: UN | F79: 1 | G79: 138.7175 | H79: 138.7175 | I79: 138.72 | J79: 138.72
B80: MATERIAL (C) - TOTAL | I80: 138.72 | J80: 138.72
A82: 550 | B82: FONTE | C82: CÓDIGO | D82: DESCRIÇÃO | E82: UNID | F82: COEFIC. | G82: CUSTO UNITÁRIO | I82: CUSTO TOTAL (A) + (B) + (C) + (D) + (E)
G83: DESONERADO | H83: NÃO DESONER. | I83: DESONERADO | J83: NÃO DESONER.
B84: COMPOSIÇÃO | C84: COMP 550_SEE | D84: ALIC P/MOLDE C-84 | E84: UN | F84: - | G84: - | H84: - | I84: 88.22 | J84: 88.35
B85: AGETOP_I | C85: 8 | D85: AJUDANTE | E85: h | F85: 0.0333 | G85: 8.75 | H85: 10.14 | I85: 0.29 | J85: 0.34
B86: AGETOP_I | C86: 12 | D86: ELETRICISTA | E86: h | F86: 0.0333 | G86: 13.95 | H86: 16.16 | I86: 0.46 | J86: 0.54
B87: MÃO DE OBRA (B) - TOTAL | I87: 0.75 | J87: 0.88
B88: COTAÇÃO | C88: COT 292_SEE | D88: ALIC P/MOLDE C-84 | E88: UN | F88: 1 | G88: 87.465 | H88: 87.465 | I88: 87.47 | J88: 87.47
B89: MATERIAL (C) - TOTAL | I89: 87.47 | J89: 87.47
A91: 48 | B91: FONTE | C91: CÓDIGO | D91: DESCRIÇÃO | E91: UNIDADE | F91: COEFIC. | G91: CUSTO UNITÁRIO | I91: CUSTO TOTAL (A) + (B) + (C) + (D) + (E)
G92: DESONERADO | H92: NÃO DESONER. | I92: DESONERADO | J92: NÃO DESONER.
B93: COMPOSIÇÃO | C93: COMP 048_SEE | D93: HASTE ROSQUEADA "TIRANTE" 3/8" | E93: M | I93: 14.46 | J93: 15.9
B94: AGETOP_I | C94: 8 | D94: AJUDANTE | E94: h | F94: 0.4 | G94: 8.75 | H94: 10.14 | I94: 3.5 | J94: 4.06
B95: AGETOP_I | C95: 12 | D95: ELETRICISTA | E95: h | F95: 0.4 | G95: 13.95 | H95: 16.16 | I95: 5.58 | J95: 6.46
B96: MÃO DE OBRA (B) - TOTAL | I96: 9.08 | J96: 10.52
B97: COTAÇÃO | C97: COT 012_SEE | D97: HASTE ROSQUEADA "TIRANTE" 3/8" | E97: M | F97: 1 | G97: 5.383333333 | H97: 5.383333333 | I97: 5.38 | J97: 5.38
B98: MATERIAL (C) - TOTAL | I98: 5.38 | J98: 5.38
A100: 24 | B100: FONTE | C100: CÓDIGO | D100: DESCRIÇÃO | E100: UNIDADE | F100: COEFIC. | G100: CUSTO UNITÁRIO | I100: CUSTO TOTAL (A) + (B) + (C) + (D) + (E)
G101: DESONERADO | H101: NÃO DESONER. | I101: DESONERADO | J101: NÃO DESONER.
B102: COMPOSIÇÃO | C102: COMP 024_SEE | D102: SINALIZADOR FOTOLUMINESCENTE PARA EXTINTOR | E102: UN | G102: - | H102: - | I102: 25.32 | J102: 25.44
B103: AGETOP_I | C103: 5 | D103: SERVENTE | E103: h | F103: 0.09 | G103: 8.75 | H103: 10.14 | I103: 0.79 | J103: 0.91
B104: MÃO DE OBRA (B) - TOTAL | I104: 0.79 | J104: 0.91
B105: AGETOP_I | C105: 3070 | D105: BUCHA DE NYLON S-6 | E105: un | F105: 2 | G105: 0.04 | H105: 0.04 | I105: 0.08 | J105: 0.08
B106: AGETOP_I | C106: 3393 | D106: PARAFUSO P/BUCHA S-6 | E106: un | F106: 2 | G106: 0.08 | H106: 0.08 | I106: 0.16 | J106: 0.16
B107: SINAPI_I | C107: 37556 | D107: PLACA DE SINALIZACAO DE SEGURANCA CONTRA INCENDIO, FOTOLUMINESCENTE, QUADRADA, *20 X 20* CM, EM PVC *2* MM ANTI-CHAMAS (SIMBOLOS, CORES E PICTOGRAMAS CONFORME NBR 13434) | E107: UN | F107: 1 | G107: 24.29 | H107: 24.29 | I107: 24.29 | J107: 24.29
B108: MATERIAL (C) - TOTAL | I108: 24.53 | J108: 24.53
A110: 25 | B110: FONTE | C110: CÓDIGO | D110: DESCRIÇÃO | E110: UNIDADE | F110: COEFIC. | G110: CUSTO UNITÁRIO | I110: CUSTO TOTAL (A) + (B) + (C) + (D) + (E)
G111: DESONERADO | H111: NÃO DESONER. | I111: DESONERADO | J111: NÃO DESONER.
B112: COMPOSIÇÃO | C112: COMP 025_SEE | D112: SINALIZADOR FOTOLUMINESCENTE DE EMERGÊNCIA | E112: UN | G112: - | H112: - | I112: 25.32 | J112: 25.44
B113: AGETOP_I | C113: 5 | D113: SERVENTE | E113: h | F113: 0.09 | G113: 8.75 | H113: 10.14 | I113: 0.79 | J113: 0.91
B114: MÃO DE OBRA (B) - TOTAL | I114: 0.79 | J114: 0.91
B115: AGETOP_I | C115: 3070 | D115: BUCHA DE NYLON S-6 | E115: un | F115: 2 | G115: 0.04 | H115: 0.04 | I115: 0.08 | J115: 0.08
B116: AGETOP_I | C116: 3393 | D116: PARAFUSO P/BUCHA S-6 | E116: un | F116: 2 | G116: 0.08 | H116: 0.08 | I116: 0.16 | J116: 0.16
B117: SINAPI_I | C117: 37556 | D117: PLACA DE SINALIZACAO DE SEGURANCA CONTRA INCENDIO, FOTOLUMINESCENTE, QUADRADA, *20 X 20* CM, EM PVC *2* MM ANTI-CHAMAS (SIMBOLOS, CORES E PICTOGRAMAS CONFORME NBR 13434) | E117: UN | F117: 1 | G117: 24.29 | H117: 24.29 | I117: 24.29 | J117: 24.29
B118: MATERIAL (C) - TOTAL | I118: 24.53 | J118: 24.53
A120: 277 | B120: FONTE | C120: CÓDIGO | D120: DESCRIÇÃO | E120: UNIDADE | F120: COEFIC. | G120: CUSTO UNITÁRIO | I120: CUSTO TOTAL (A) + (B) + (C) + (D) + (E)
G121: DESONERADO | H121: NÃO DESONER. | I121: DESONERADO | J121: NÃO DESONER.
B122: COMPOSIÇÃO | C122: COMP 277_SEE | D122: MARCAÇÃO NO PISO - 1X1 M PARA EXTINTOR | E122: M2 | I122: 29.69 | J122: 29.76
B123: AGETOP_I | C123: 5 | D123: SERVENTE | E123: h | F123: 0.0333 | G123: 8.75 | H123: 10.14 | I123: 0.29 | J123: 0.34
B124: MÃO DE OBRA (B) - TOTAL | I124: 0.29 | J124: 0.34
B125: SINAPI_I | C125: 5318 | D125: SOLVENTE DILUENTE A BASE DE AGUARRAS | E125: L | F125: 0.13 | G125: 11.98 | H125: 11.98 | I125: 1.56 | J125: 1.56
B126: SINAPI | C126: 5824 | D126: CAMINHÃO TOCO, PBT 16.000 KG, CARGA ÚTIL MÁX. 10.685 KG, DIST. ENTRE EIXOS 4,8 M, POTÊNCIA 189 CV, INCLUSIVE CARROCERIA FIXA ABERTA DE MADEIRA P/ TRANSPORTE GERAL DE CARGA SECA, DIMEN. APROX. 2,5 X 7,00 X 0,50 M - CHP DIURNO. AF_06/2014 | E126: CHP | F126: 0.0033 | G126: 115.5 | H126: 118.69 | I126: 0.38 | J126: 0.39
B127: SINAPI_I | C127: 7343 | D127: TINTA A BASE DE RESINA ACRILICA, PARA SINALIZACAO HORIZONTAL VIARIA (NBR 11862) | E127: L | F127: 0.6 | G127: 12.82 | H127: 12.82 | I127: 7.69 | J127: 7.69
B128: SINAPI_I | C128: 7348 | D128: TINTA ACRILICA PREMIUM PARA PISO | E128: L | F128: 0.03 | G128: 13.96 | H128: 13.96 | I128: 0.42 | J128: 0.42
B129: SINAPI_I | C129: 25972 | D129: MICROESFERAS DE VIDRO PARA SINALIZACAO HORIZONTAL VIARIA, TIPO I-B (PREMIX) - NBR 16184 | E129: KG | F129: 2.14 | G129: 8.88 | H129: 8.88 | I129: 19 | J129: 19
B130: SINAPI | C130: 95133 | D130: MÁQUINA DEMARCADORA DE FAIXA DE TRÁFEGO À FRIO, AUTOPROPELIDA, POTÊNCIA 38 HP - CHP DIURNO. AF_07/2016 | E130: CHP | F130: 0.0033 | G130: 105.93 | H130: 109.48 | I130: 0.35 | J130: 0.36
B131: MATERIAL (C) - TOTAL | I131: 29.4 | J131: 29.42
A133: 412 | B133: FONTE | C133: CÓDIGO | D133: DESCRIÇÃO | E133: UNIDADE | F133: COEFIC. | G133: CUSTO UNITÁRIO | I133: CUSTO TOTAL (A) + (B) + (C) + (D) + (E)
G134: DESONERADO | H134: NÃO DESONER. | I134: DESONERADO | J134: NÃO DESONER.
B135: COMPOSIÇÃO | C135: COMP 412_SEE | D135: PLACA DE SINALIZAÇÃO EM PVC COD 17 - (316X158) MENSAGEM "SAÍDA" | E135: UN | I135: 30.82 | J135: 30.94
B136: AGETOP_I | C136: 5 | D136: SERVENTE | E136: h | F136: 0.09 | G136: 8.75 | H136: 10.14 | I136: 0.79 | J136: 0.91
B137: MÃO DE OBRA (B) - TOTAL | I137: 0.79 | J137: 0.91
B138: AGETOP_I | C138: 3070 | D138: BUCHA DE NYLON S-6 | E138: un | F138: 2 | G138: 0.04 | H138: 0.04 | I138: 0.08 | J138: 0.08
B139: AGETOP_I | C139: 3393 | D139: PARAFUSO P/BUCHA S-6 | E139: un | F139: 2 | G139: 0.08 | H139: 0.08 | I139: 0.16 | J139: 0.16
B140: SINAPI_I | C140: 37559 | D140: PLACA DE SINALIZACAO DE SEGURANCA CONTRA INCENDIO, FOTOLUMINESCENTE, RETANGULAR, *12 X 40* CM, EM PVC *2* MM ANTI-CHAMAS (SIMBOLOS, CORES E PICTOGRAMAS CONFORME NBR 13434) | E140: UN | F140: 1 | G140: 29.79 | H140: 29.79 | I140: 29.79 | J140: 29.79
B141: MATERIAL (C) - TOTAL | I141: 30.03 | J141: 30.03
A143: 375 | B143: FONTE | C143: CÓDIGO | D143: DESCRIÇÃO | E143: UNIDADE | F143: COEFIC. | G143: CUSTO UNITÁRIO | I143: CUSTO TOTAL (A) + (B) + (C) + (D) + (E)
G144: DESONERADO | H144: NÃO DESONER. | I144: DESONERADO | J144: NÃO DESONER.
B145: COMPOSIÇÃO | C145: COMP 375_SEE | D145: REFLETOR DE LED HOLOFORTE 50W | E145: UN | I145: 82.16 | J145: 83.32
B146: AGETOP_I | C146: 12 | D146: ELETRICISTA | E146: h | F146: 0.4165 | G146: 13.95 | H146: 16.16 | I146: 5.81 | J146: 6.73
B147: AGETOP_I | C147: 8 | D147: AJUDANTE | E147: h | F147: 0.1735 | G147: 8.75 | H147: 10.14 | I147: 1.52 | J147: 1.76
B148: MÃO DE OBRA (B) - TOTAL | I148: 7.33 | J148: 8.49
B149: COTAÇÃO | C149: COT 190_SEE | D149: REFLETOR DE LED HOLOFORTE 50W | E149: UN | F149: 1 | G149: 74.83 | H149: 74.83 | I149: 74.83 | J149: 74.83
B150: MATERIAL (C) - TOTAL | I150: 74.83 | J150: 74.83
A152: 382 | B152: FONTE | C152: CÓDIGO | D152: DESCRIÇÃO | E152: UNIDADE | F152: COEFIC. | G152: CUSTO UNITÁRIO | I152: CUSTO TOTAL (A) + (B) + (C) + (D) + (E)
G153: DESONERADO | H153: NÃO DESONER. | I153: DESONERADO | J153: NÃO DESONER.
B154: COMPOSIÇÃO | C154: COMP 382_SEE | D154: TE DE REDUCAO DE FERRO GALVANIZADO, COM ROSCA BSP, DE 3/4" X 1/2" | E154: UN | I154: 24.25 | J154: 26.43
B155: AGETOP_I | C155: 8 | D155: AJUDANTE | E155: h | F155: 0.6 | G155: 8.75 | H155: 10.14 | I155: 5.25 | J155: 6.08
B156: AGETOP_I | C156: 11 | D156: ENCANADOR | E156: h | F156: 0.6105 | G156: 13.95 | H156: 16.16 | I156: 8.52 | J156: 9.87
B157: MÃO DE OBRA (B) - TOTAL | I157: 13.77 | J157: 15.95
B158: SINAPI_I | C158: 3146 | D158: FITA VEDA ROSCA EM ROLOS DE 18 MM X 10 M (L X C) | E158: UN | F158: 0.120754717 | G158: 3.4 | H158: 3.4 | I158: 0.41 | J158: 0.41
B159: SINAPI_I | C159: 6302 | D159: TE DE REDUCAO DE FERRO GALVANIZADO, COM ROSCA BSP, DE 3/4" X 1/2" | E159: UN | F159: 1 | G159: 10.07 | H159: 10.07 | I159: 10.07 | J159: 10.07
B160: MATERIAL (C) - TOTAL | I160: 10.48 | J160: 10.48
A162: 383 | B162: FONTE | C162: CÓDIGO | D162: DESCRIÇÃO | E162: UNIDADE | F162: COEFIC. | G162: CUSTO UNITÁRIO | I162: CUSTO TOTAL (A) + (B) + (C) + (D) + (E)
G163: DESONERADO | H163: NÃO DESONER. | I163: DESONERADO | J163: NÃO DESONER.
B164: COMPOSIÇÃO | C164: COMP 383_SEE | D164: BUCHA DE REDUCAO DE FERRO GALVANIZADO, COM ROSCA BSP, DE 1/2" X 1/4" | E164: UN | I164: 7.68 | J164: 8.26
B165: AGETOP_I | C165: 8 | D165: AJUDANTE | E165: h | F165: 0.16 | G165: 8.75 | H165: 10.14 | I165: 1.4 | J165: 1.62
B166: AGETOP_I | C166: 11 | D166: ENCANADOR | E166: h | F166: 0.16 | G166: 13.95 | H166: 16.16 | I166: 2.23 | J166: 2.59
B167: MÃO DE OBRA (B) - TOTAL | I167: 3.63 | J167: 4.21
B168: AGETOP_I | C168: H689 | D168: FITA VEDAROSCA 12 MM | E168: m | F168: 1.2 | G168: 0.28 | H168: 0.28 | I168: 0.34 | J168: 0.34
B169: SINAPI_I | C169: 770 | D169: BUCHA DE REDUCAO DE FERRO GALVANIZADO, COM ROSCA BSP, DE 1/2" X 1/4" | E169: UN | F169: 1 | G169: 3.71 | H169: 3.71 | I169: 3.71 | J169: 3.71
B170: MATERIAL (C) - TOTAL | I170: 4.05 | J170: 4.05
A172: 212 | B172: FONTE | C172: CÓDIGO | D172: DESCRIÇÃO | E172: UNIDADE | F172: COEFIC. | G172: CUSTO UNITÁRIO | I172: CUSTO TOTAL (A) + (B) + (C) + (D) + (E)
G173: DESONERADO | H173: NÃO DESONER. | I173: DESONERADO | J173: NÃO DESONER.
B174: COMPOSIÇÃO | C174: COMP 212_SEE | D174: NIPLE DE REDUÇÃO 1/2" X 1/4" BSP | E174: UN | I174: 9.68 | J174: 10.26
B175: AGETOP_I | C175: 8 | D175: AJUDANTE | E175: h | F175: 0.16 | G175: 8.75 | H175: 10.14 | I175: 1.4 | J175: 1.62
B176: AGETOP_I | C176: 11 | D176: ENCANADOR | E176: h | F176: 0.16 | G176: 13.95 | H176: 16.16 | I176: 2.23 | J176: 2.59
B177: MÃO DE OBRA (B) - TOTAL | I177: 3.63 | J177: 4.21
B178: COTAÇÃO | C178: COT 103_SEE | D178: NIPLE DE REDUÇÃO 1/2" X 1/4" BSP | E178: UN | F178: 1 | G178: 6.053333333 | H178: 6.053333333 | I178: 6.05 | J178: 6.05
B179: MATERIAL (C) - TOTAL | I179: 6.05 | J179: 6.05
A181: 213 | B181: FONTE | C181: CÓDIGO | D181: DESCRIÇÃO | E181: UNIDADE | F181: COEFIC. | G181: CUSTO UNITÁRIO | I181: CUSTO TOTAL (A) + (B) + (C) + (D) + (E)
G182: DESONERADO | H182: NÃO DESONER. | I182: DESONERADO | J182: NÃO DESONER.
B183: COMPOSIÇÃO | C183: COMP 213_SEE | D183: NIPLE DE REDUÇÃO 3/4" X 1/2" BSP | E183: UN | I183: 13.34 | J183: 13.92
B184: AGETOP_I | C184: 8 | D184: AJUDANTE | E184: h | F184: 0.16 | G184: 8.75 | H184: 10.14 | I184: 1.4 | J184: 1.62
B185: AGETOP_I | C185: 11 | D185: ENCANADOR | E185: h | F185: 0.16 | G185: 13.95 | H185: 16.16 | I185: 2.23 | J185: 2.59
B186: MÃO DE OBRA (B) - TOTAL | I186: 3.63 | J186: 4.21
B187: COTAÇÃO | C187: COT 104_SEE | D187: NIPLE DE REDUÇÃO 3/4" X 1/2" BSP | E187: UN | F187: 1 | G187: 9.71 | H187: 9.71 | I187: 9.71 | J187: 9.71
B188: MATERIAL (C) - TOTAL | I188: 9.71 | J188: 9.71
A190: 237 | B190: FONTE | C190: CÓDIGO | D190: DESCRIÇÃO | E190: UNIDADE | F190: COEFIC. | G190: CUSTO UNITÁRIO | I190: CUSTO TOTAL (A) + (B) + (C) + (D) + (E)
G191: DESONERADO | H191: NÃO DESONER. | I191: DESONERADO | J191: NÃO DESONER.
B192: COMPOSIÇÃO | C192: COMP 237_SEE | D192: FITA ANTICORROSIVA | E192: M | I192: 11.16 | J192: 11.88
B193: AGETOP_I | C193: 8 | D193: AJUDANTE | E193: h | F193: 0.2 | G193: 8.75 | H193: 10.14 | I193: 1.75 | J193: 2.03
B194: AGETOP_I | C194: 12 | D194: ELETRICISTA | E194: h | F194: 0.2 | G194: 13.95 | H194: 16.16 | I194: 2.79 | J194: 3.23
B195: MÃO DE OBRA (B) - TOTAL | I195: 4.54 | J195: 5.26
B196: SINAPI_I | C196: 39634 | D196: FITA ADESIVA ANTICORROSIVA DE PVC FLEXIVEL, COR PRETA, PARA PROTECAO TUBULACAO, 50 MM X 30 M (L X C), E= *0,25* MM | E196: M | F196: 1 | G196: 6.62 | H196: 6.62 | I196: 6.62 | J196: 6.62
B197: MATERIAL (C) - TOTAL | I197: 6.62 | J197: 6.62
A199: 542 | B199: FONTE | C199: CÓDIGO | D199: DESCRIÇÃO | E199: UNIDADE | F199: COEFIC. | G199: CUSTO UNITÁRIO | I199: CUSTO TOTAL (A) + (B) + (C) + (D) + (E)
G200: DESONERADO | H200: NÃO DESONER. | I200: DESONERADO | J200: NÃO DESONER.
B201: COMPOSIÇÃO | C201: COMP 542_SEE | D201: VÁLVULA UGV 3/4" (S) LATÃO | E201: UN | I201: 25.65 | J201: 27.2
B202: AGETOP_I | C202: 8 | D202: AJUDANTE | E202: h | F202: 0.432 | G202: 8.75 | H202: 10.14 | I202: 3.78 | J202: 4.38
B203: AGETOP_I | C203: 11 | D203: ENCANADOR | E203: h | F203: 0.432 | G203: 13.95 | H203: 16.16 | I203: 6.03 | J203: 6.98
B204: MÃO DE OBRA (B) - TOTAL | I204: 9.81 | J204: 11.36
B205: COTAÇÃO | C205: COT 281_SEE | D205: VÁLVULA UGV 3/4" (S) LATÃO | E205: UN | F205: 1 | G205: 15.83666667 | H205: 15.83666667 | I205: 15.84 | J205: 15.84
B206: MATERIAL (C) - TOTAL | I206: 15.84 | J206: 15.84
A208: 543 | B208: FONTE | C208: CÓDIGO | D208: DESCRIÇÃO | E208: UNIDADE | F208: COEFIC. | G208: CUSTO UNITÁRIO | I208: CUSTO TOTAL (A) + (B) + (C) + (D) + (E)
G209: DESONERADO | H209: NÃO DESONER. | I209: DESONERADO | J209: NÃO DESONER.
B210: COMPOSIÇÃO | C210: COMP 543_SEE | D210: VÁLVULA UGV 1/2" (S) LATÃO | E210: UN | I210: 24.98 | J210: 26.53
B211: AGETOP_I | C211: 8 | D211: AJUDANTE | E211: h | F211: 0.432 | G211: 8.75 | H211: 10.14 | I211: 3.78 | J211: 4.38
B212: AGETOP_I | C212: 11 | D212: ENCANADOR | E212: h | F212: 0.432 | G212: 13.95 | H212: 16.16 | I212: 6.03 | J212: 6.98
B213: MÃO DE OBRA (B) - TOTAL | I213: 9.81 | J213: 11.36
B214: COTAÇÃO | C214: COT 282_SEE | D214: VÁLVULA UGV 1/2" (S) LATÃO | E214: UN | F214: 1 | G214: 15.16666667 | H214: 15.16666667 | I214: 15.17 | J214: 15.17
B215: MATERIAL (C) - TOTAL | I215: 15.17 | J215: 15.17
A217: 211 | B217: FONTE | C217: CÓDIGO | D217: DESCRIÇÃO | E217: UNIDADE | F217: COEFIC. | G217: CUSTO UNITÁRIO | I217: CUSTO TOTAL (A) + (B) + (C) + (D) + (E)
G218: DESONERADO | H218: NÃO DESONER. | I218: DESONERADO | J218: NÃO DESONER.
B219: COMPOSIÇÃO | C219: COMP 211_SEE | D219: REGULADOR DE 2º ESTÁGIO 5KG/H | E219: UN | I219: 86.72 | J219: 90.86
B220: AGETOP_I | C220: 8 | D220: AJUDANTE | E220: h | F220: 1.15 | G220: 8.75 | H220: 10.14 | I220: 10.06 | J220: 11.66
B221: AGETOP_I | C221: 11 | D221: ENCANADOR | E221: h | F221: 1.15 | G221: 13.95 | H221: 16.16 | I221: 16.04 | J221: 18.58
B222: MÃO DE OBRA (B) - TOTAL | I222: 26.1 | J222: 30.24
B223: COTAÇÃO | C223: COT 102_SEE | D223: REGULADOR DE 2º ESTÁGIO 5KG/H | E223: UN | F223: 1 | G223: 59.83333333 | H223: 59.83333333 | I223: 59.83 | J223: 59.83
B224: AGETOP_I | C224: H689 | D224: FITA VEDAROSCA 12 MM | E224: m | F224: 2.82 | G224: 0.28 | H224: 0.28 | I224: 0.79 | J224: 0.79
B225: MATERIAL (C) - TOTAL | I225: 60.62 | J225: 60.62
A227: 210 | B227: FONTE | C227: CÓDIGO | D227: DESCRIÇÃO | E227: UNIDADE | F227: COEFIC. | G227: CUSTO UNITÁRIO | I227: CUSTO TOTAL (A) + (B) + (C) + (D) + (E)
G228: DESONERADO | H228: NÃO DESONER. | I228: DESONERADO | J228: NÃO DESONER.
... 43 more rows
